Workbook

Sheet Azonosítás
B2: Beszámoló típusa: | C2: Verzió: 3.0
A5: Szerződésszám:
A8: =IF(A9="","","Intézmény neve:") -> 
A9: =IFERROR(INDEX(Alapadatok,MATCH($A$6,Szerzodesszam),3),"") -> 
A11: =IF(Erasmus_kod="","","Erasmus kód") -> 
A12: =IFERROR(INDEX(Alapadatok,MATCH($A$6,Szerzodesszam),2),"") -> 
A32: Benyújtási határidő : 2014. április 30.
A34: Benyújtási határidő : 2014. október 30.
A35: Erasmus évközi beszámoló 2013/2014
A36: Erasmus módosított évközi beszámoló 2013/2014
A37: Erasmus éves beszámoló 2013/2014

Sheet Nyilatkozat
A2: Nyilatkozat
A6: Alulírott, mint a pályázó intézmény hivatalos képviselője aláírásommal igazolom, hogy a beszámolóban megadott adatok – legjobb tudomásom és ismereteim szerint – valósak és helytállók, a mobilitásban résztvevőkkel a szükséges szerződéseket minden esetben megkötöttük.
A10: Aláírásommal hozzájárulok, hogy a Tempus Közalapítvány a beszámolóban megadott adatokat kizárólag a beszámoló feldolgozása érdekében kezelje, feldolgozza és azokat legalább 5 évig megőrizze. Hozzájárulok ahhoz, hogy az adatok feldolgozását követően az intézmény e beszámolóban feltüntetett főbb adatait a Tempus Közalapítvány nyilvánosságra hozza.
A15: Aláírásommal igazolom, hogy tanulmányi célú hallgatói és oktatói mobilitást csak érvényes kétoldalú megállapodás birtokában hajtunk végre olyan intézménnyel, mely jóváhagyott Erasmus Charter for Higher Education dokumentummal rendelkezik.
A20: Kelt:
A22: Név: | E22: Aláírás
A23: Beosztás:
A26: Név: | E26: Ellenjegyző aláírás (ha szükséges)
A27: Beosztás:
F28: PH.

Sheet Partnerek
B2: Intézményi partnerek
C4: EGT koordinátor aláírása
B5: Intézmény neve: | C5: =IFERROR(IF(Azonosítás!$A$9="","",Azonosítás!$A$9),"") -> 
B6: Szerződésszám: | C6: =IFERROR(Azonosítás!$A$6,"") -> 0 | D6: =TODAY() -> 2016-10-13
A8: Partnerazonosító | B8: Partner Erasmus-kódja | C8: Partner hivatalos neve (eredeti neve) | D8: Partner angol neve | E8: Intézmény típusa | F8: Tevékenység jellege | G8: Jogi státusz | H8: Gazdasági ágazat | I8: Irányító- szám | J8: Város | K8: Ország | L8: NUTS kód | M8: Adószám | N8: Kétoldalú egyezmény létrejötte (ÉÉÉÉ/HH/NN) | O8: Partner kontaktszemély neve | P8: Partnerszemély telefonszáma | Q8: Partner kontaktszemély e-mailcíme
B9: =IF(Erasmus_kod="","",Erasmus_kod) ->  | C9: =IF(Azonosítás!A9="","",Azonosítás!A9) ->  | E9: =IF(B9<>"","EDU.4","") ->  | F9: =IFERROR(IF(B9<>"",VLOOKUP(B9,'Pályázói adatok'!B:BD,46,FALSE),""),"") ->  | G9: =IFERROR(IF(B9<>"",VLOOKUP(B9,'Pályázói adatok'!B:BD,47,FALSE),""),"") ->  | H9: =IFERROR(IF(B9<>"",VLOOKUP(B9,'Pályázói adatok'!B:BD,48,FALSE),""),"") ->  | I9: =IFERROR(IF(B9<>"",VLOOKUP(B9,'Pályázói adatok'!B:BD,53,FALSE),""),"") ->  | J9: =IFERROR(IF(B9<>"",VLOOKUP(B9,'Pályázói adatok'!B:D,3,FALSE),""),"") ->  | K9: =IF(B9<>"","HU","") ->  | L9: =IFERROR(IF(B9<>"",VLOOKUP(B9,'Pályázói adatok'!B:BH,59,FALSE),""),"") ->  | N9: =IF(B9<>"","---","") ->  | O9: =IFERROR(IF(B9<>"",VLOOKUP(B9,'Pályázói adatok'!B:BI,60,FALSE),""),"") ->  | P9: =IFERROR(IF(B9<>"",VLOOKUP(B9,'Pályázói adatok'!B:BK,61,FALSE),""),"") ->  | Q9: =IFERROR(IF(B9<>"",VLOOKUP(B9,'Pályázói adatok'!B:BK,62,FALSE),""),"") -> 
C10: =IFERROR(PROPER(INDEX(Erasmus_kodok!B$2:B$52,MATCH(B10,EUC_osszes))),"") ->  | E10: =IF(B10<>"","EDU.4","") ->  | J10: =IFERROR(VLOOKUP(B10,Erasmus_kodok!C$1:F$52,4,FALSE),"") ->  | K10: =IFERROR(VLOOKUP(B10,Erasmus_kodok!C$1:F$52,3,FALSE),"") -> 
C11: =IFERROR(PROPER(INDEX(Erasmus_kodok!B$2:B$52,MATCH(B11,EUC_osszes))),"") ->  | E11: =IF(B11<>"","EDU.4","") ->  | J11: =IFERROR(VLOOKUP(B11,Erasmus_kodok!C$1:F$52,4,FALSE),"") ->  | K11: =IFERROR(VLOOKUP(B11,Erasmus_kodok!C$1:F$52,3,FALSE),"") -> 
C12: =IFERROR(PROPER(INDEX(Erasmus_kodok!B$2:B$52,MATCH(B12,EUC_osszes))),"") ->  | J12: =IFERROR(VLOOKUP(B12,Erasmus_kodok!C$1:F$52,4,FALSE),"") ->  | K12: =IFERROR(VLOOKUP(B12,Erasmus_kodok!C$1:F$52,3,FALSE),"") -> 
C13: =IFERROR(PROPER(INDEX(Erasmus_kodok!B$2:B$52,MATCH(B13,EUC_osszes))),"") ->  | J13: =IFERROR(VLOOKUP(B13,Erasmus_kodok!C$1:F$52,4,FALSE),"") ->  | K13: =IFERROR(VLOOKUP(B13,Erasmus_kodok!C$1:F$52,3,FALSE),"") -> 
C14: =IFERROR(PROPER(INDEX(Erasmus_kodok!B$2:B$52,MATCH(B14,EUC_osszes))),"") ->  | J14: =IFERROR(VLOOKUP(B14,Erasmus_kodok!C$1:F$52,4,FALSE),"") ->  | K14: =IFERROR(VLOOKUP(B14,Erasmus_kodok!C$1:F$52,3,FALSE),"") -> 
C15: =IFERROR(PROPER(INDEX(Erasmus_kodok!B$2:B$52,MATCH(B15,EUC_osszes))),"") ->  | J15: =IFERROR(VLOOKUP(B15,Erasmus_kodok!C$1:F$52,4,FALSE),"") ->  | K15: =IFERROR(VLOOKUP(B15,Erasmus_kodok!C$1:F$52,3,FALSE),"") -> 
C16: =IFERROR(PROPER(INDEX(Erasmus_kodok!B$2:B$52,MATCH(B16,EUC_osszes))),"") ->  | J16: =IFERROR(VLOOKUP(B16,Erasmus_kodok!C$1:F$52,4,FALSE),"") ->  | K16: =IFERROR(VLOOKUP(B16,Erasmus_kodok!C$1:F$52,3,FALSE),"") -> 
C17: =IFERROR(PROPER(INDEX(Erasmus_kodok!B$2:B$52,MATCH(B17,EUC_osszes))),"") ->  | J17: =IFERROR(VLOOKUP(B17,Erasmus_kodok!C$1:F$52,4,FALSE),"") ->  | K17: =IFERROR(VLOOKUP(B17,Erasmus_kodok!C$1:F$52,3,FALSE),"") -> 
C18: =IFERROR(PROPER(INDEX(Erasmus_kodok!B$2:B$52,MATCH(B18,EUC_osszes))),"") ->  | J18: =IFERROR(VLOOKUP(B18,Erasmus_kodok!C$1:F$52,4,FALSE),"") ->  | K18: =IFERROR(VLOOKUP(B18,Erasmus_kodok!C$1:F$52,3,FALSE),"") -> 
C19: =IFERROR(PROPER(INDEX(Erasmus_kodok!B$2:B$52,MATCH(B19,EUC_osszes))),"") ->  | J19: =IFERROR(VLOOKUP(B19,Erasmus_kodok!C$1:F$52,4,FALSE),"") ->  | K19: =IFERROR(VLOOKUP(B19,Erasmus_kodok!C$1:F$52,3,FALSE),"") -> 
C20: =IFERROR(PROPER(INDEX(Erasmus_kodok!B$2:B$52,MATCH(B20,EUC_osszes))),"") ->  | J20: =IFERROR(VLOOKUP(B20,Erasmus_kodok!C$1:F$52,4,FALSE),"") ->  | K20: =IFERROR(VLOOKUP(B20,Erasmus_kodok!C$1:F$52,3,FALSE),"") -> 
C21: =IFERROR(PROPER(INDEX(Erasmus_kodok!B$2:B$52,MATCH(B21,EUC_osszes))),"") ->  | J21: =IFERROR(VLOOKUP(B21,Erasmus_kodok!C$1:F$52,4,FALSE),"") ->  | K21: =IFERROR(VLOOKUP(B21,Erasmus_kodok!C$1:F$52,3,FALSE),"") -> 
C22: =IFERROR(PROPER(INDEX(Erasmus_kodok!B$2:B$52,MATCH(B22,EUC_osszes))),"") ->  | J22: =IFERROR(VLOOKUP(B22,Erasmus_kodok!C$1:F$52,4,FALSE),"") ->  | K22: =IFERROR(VLOOKUP(B22,Erasmus_kodok!C$1:F$52,3,FALSE),"") -> 
C23: =IFERROR(PROPER(INDEX(Erasmus_kodok!B$2:B$52,MATCH(B23,EUC_osszes))),"") ->  | J23: =IFERROR(VLOOKUP(B23,Erasmus_kodok!C$1:F$52,4,FALSE),"") ->  | K23: =IFERROR(VLOOKUP(B23,Erasmus_kodok!C$1:F$52,3,FALSE),"") -> 
C24: =IFERROR(PROPER(INDEX(Erasmus_kodok!B$2:B$52,MATCH(B24,EUC_osszes))),"") ->  | J24: =IFERROR(VLOOKUP(B24,Erasmus_kodok!C$1:F$52,4,FALSE),"") ->  | K24: =IFERROR(VLOOKUP(B24,Erasmus_kodok!C$1:F$52,3,FALSE),"") -> 
C25: =IFERROR(PROPER(INDEX(Erasmus_kodok!B$2:B$52,MATCH(B25,EUC_osszes))),"") ->  | J25: =IFERROR(VLOOKUP(B25,Erasmus_kodok!C$1:F$52,4,FALSE),"") ->  | K25: =IFERROR(VLOOKUP(B25,Erasmus_kodok!C$1:F$52,3,FALSE),"") -> 
C26: =IFERROR(PROPER(INDEX(Erasmus_kodok!B$2:B$52,MATCH(B26,EUC_osszes))),"") ->  | J26: =IFERROR(VLOOKUP(B26,Erasmus_kodok!C$1:F$52,4,FALSE),"") ->  | K26: =IFERROR(VLOOKUP(B26,Erasmus_kodok!C$1:F$52,3,FALSE),"") -> 
C27: =IFERROR(PROPER(INDEX(Erasmus_kodok!B$2:B$52,MATCH(B27,EUC_osszes))),"") ->  | J27: =IFERROR(VLOOKUP(B27,Erasmus_kodok!C$1:F$52,4,FALSE),"") ->  | K27: =IFERROR(VLOOKUP(B27,Erasmus_kodok!C$1:F$52,3,FALSE),"") -> 
C28: =IFERROR(PROPER(INDEX(Erasmus_kodok!B$2:B$52,MATCH(B28,EUC_osszes))),"") ->  | J28: =IFERROR(VLOOKUP(B28,Erasmus_kodok!C$1:F$52,4,FALSE),"") ->  | K28: =IFERROR(VLOOKUP(B28,Erasmus_kodok!C$1:F$52,3,FALSE),"") -> 
C29: =IFERROR(PROPER(INDEX(Erasmus_kodok!B$2:B$52,MATCH(B29,EUC_osszes))),"") ->  | J29: =IFERROR(VLOOKUP(B29,Erasmus_kodok!C$1:F$52,4,FALSE),"") ->  | K29: =IFERROR(VLOOKUP(B29,Erasmus_kodok!C$1:F$52,3,FALSE),"") -> 
C30: =IFERROR(PROPER(INDEX(Erasmus_kodok!B$2:B$52,MATCH(B30,EUC_osszes))),"") ->  | J30: =IFERROR(VLOOKUP(B30,Erasmus_kodok!C$1:F$52,4,FALSE),"") ->  | K30: =IFERROR(VLOOKUP(B30,Erasmus_kodok!C$1:F$52,3,FALSE),"") -> 
C31: =IFERROR(PROPER(INDEX(Erasmus_kodok!B$2:B$52,MATCH(B31,EUC_osszes))),"") ->  | J31: =IFERROR(VLOOKUP(B31,Erasmus_kodok!C$1:F$52,4,FALSE),"") ->  | K31: =IFERROR(VLOOKUP(B31,Erasmus_kodok!C$1:F$52,3,FALSE),"") -> 
C32: =IFERROR(PROPER(INDEX(Erasmus_kodok!B$2:B$52,MATCH(B32,EUC_osszes))),"") ->  | J32: =IFERROR(VLOOKUP(B32,Erasmus_kodok!C$1:F$52,4,FALSE),"") ->  | K32: =IFERROR(VLOOKUP(B32,Erasmus_kodok!C$1:F$52,3,FALSE),"") -> 
C33: =IFERROR(PROPER(INDEX(Erasmus_kodok!B$2:B$52,MATCH(B33,EUC_osszes))),"") ->  | J33: =IFERROR(VLOOKUP(B33,Erasmus_kodok!C$1:F$52,4,FALSE),"") ->  | K33: =IFERROR(VLOOKUP(B33,Erasmus_kodok!C$1:F$52,3,FALSE),"") -> 
C34: =IFERROR(PROPER(INDEX(Erasmus_kodok!B$2:B$52,MATCH(B34,EUC_osszes))),"") ->  | J34: =IFERROR(VLOOKUP(B34,Erasmus_kodok!C$1:F$52,4,FALSE),"") ->  | K34: =IFERROR(VLOOKUP(B34,Erasmus_kodok!C$1:F$52,3,FALSE),"") -> 
C35: =IFERROR(PROPER(INDEX(Erasmus_kodok!B$2:B$52,MATCH(B35,EUC_osszes))),"") ->  | J35: =IFERROR(VLOOKUP(B35,Erasmus_kodok!C$1:F$52,4,FALSE),"") ->  | K35: =IFERROR(VLOOKUP(B35,Erasmus_kodok!C$1:F$52,3,FALSE),"") -> 
C36: =IFERROR(PROPER(INDEX(Erasmus_kodok!B$2:B$52,MATCH(B36,EUC_osszes))),"") ->  | J36: =IFERROR(VLOOKUP(B36,Erasmus_kodok!C$1:F$52,4,FALSE),"") ->  | K36: =IFERROR(VLOOKUP(B36,Erasmus_kodok!C$1:F$52,3,FALSE),"") -> 
C37: =IFERROR(PROPER(INDEX(Erasmus_kodok!B$2:B$52,MATCH(B37,EUC_osszes))),"") ->  | J37: =IFERROR(VLOOKUP(B37,Erasmus_kodok!C$1:F$52,4,FALSE),"") ->  | K37: =IFERROR(VLOOKUP(B37,Erasmus_kodok!C$1:F$52,3,FALSE),"") -> 
C38: =IFERROR(PROPER(INDEX(Erasmus_kodok!B$2:B$52,MATCH(B38,EUC_osszes))),"") ->  | J38: =IFERROR(VLOOKUP(B38,Erasmus_kodok!C$1:F$52,4,FALSE),"") ->  | K38: =IFERROR(VLOOKUP(B38,Erasmus_kodok!C$1:F$52,3,FALSE),"") -> 
C39: =IFERROR(PROPER(INDEX(Erasmus_kodok!B$2:B$52,MATCH(B39,EUC_osszes))),"") ->  | J39: =IFERROR(VLOOKUP(B39,Erasmus_kodok!C$1:F$52,4,FALSE),"") ->  | K39: =IFERROR(VLOOKUP(B39,Erasmus_kodok!C$1:F$52,3,FALSE),"") -> 
C40: =IFERROR(PROPER(INDEX(Erasmus_kodok!B$2:B$52,MATCH(B40,EUC_osszes))),"") ->  | J40: =IFERROR(VLOOKUP(B40,Erasmus_kodok!C$1:F$52,4,FALSE),"") ->  | K40: =IFERROR(VLOOKUP(B40,Erasmus_kodok!C$1:F$52,3,FALSE),"") -> 
C41: =IFERROR(PROPER(INDEX(Erasmus_kodok!B$2:B$52,MATCH(B41,EUC_osszes))),"") ->  | J41: =IFERROR(VLOOKUP(B41,Erasmus_kodok!C$1:F$52,4,FALSE),"") ->  | K41: =IFERROR(VLOOKUP(B41,Erasmus_kodok!C$1:F$52,3,FALSE),"") -> 
C42: =IFERROR(PROPER(INDEX(Erasmus_kodok!B$2:B$52,MATCH(B42,EUC_osszes))),"") ->  | J42: =IFERROR(VLOOKUP(B42,Erasmus_kodok!C$1:F$52,4,FALSE),"") ->  | K42: =IFERROR(VLOOKUP(B42,Erasmus_kodok!C$1:F$52,3,FALSE),"") -> 
C43: =IFERROR(PROPER(INDEX(Erasmus_kodok!B$2:B$52,MATCH(B43,EUC_osszes))),"") ->  | J43: =IFERROR(VLOOKUP(B43,Erasmus_kodok!C$1:F$52,4,FALSE),"") ->  | K43: =IFERROR(VLOOKUP(B43,Erasmus_kodok!C$1:F$52,3,FALSE),"") -> 
C44: =IFERROR(PROPER(INDEX(Erasmus_kodok!B$2:B$52,MATCH(B44,EUC_osszes))),"") ->  | J44: =IFERROR(VLOOKUP(B44,Erasmus_kodok!C$1:F$52,4,FALSE),"") ->  | K44: =IFERROR(VLOOKUP(B44,Erasmus_kodok!C$1:F$52,3,FALSE),"") -> 
C45: =IFERROR(PROPER(INDEX(Erasmus_kodok!B$2:B$52,MATCH(B45,EUC_osszes))),"") ->  | J45: =IFERROR(VLOOKUP(B45,Erasmus_kodok!C$1:F$52,4,FALSE),"") ->  | K45: =IFERROR(VLOOKUP(B45,Erasmus_kodok!C$1:F$52,3,FALSE),"") -> 
C46: =IFERROR(PROPER(INDEX(Erasmus_kodok!B$2:B$52,MATCH(B46,EUC_osszes))),"") ->  | J46: =IFERROR(VLOOKUP(B46,Erasmus_kodok!C$1:F$52,4,FALSE),"") ->  | K46: =IFERROR(VLOOKUP(B46,Erasmus_kodok!C$1:F$52,3,FALSE),"") -> 
C47: =IFERROR(PROPER(INDEX(Erasmus_kodok!B$2:B$52,MATCH(B47,EUC_osszes))),"") ->  | J47: =IFERROR(VLOOKUP(B47,Erasmus_kodok!C$1:F$52,4,FALSE),"") ->  | K47: =IFERROR(VLOOKUP(B47,Erasmus_kodok!C$1:F$52,3,FALSE),"") -> 
C48: =IFERROR(PROPER(INDEX(Erasmus_kodok!B$2:B$52,MATCH(B48,EUC_osszes))),"") ->  | J48: =IFERROR(VLOOKUP(B48,Erasmus_kodok!C$1:F$52,4,FALSE),"") ->  | K48: =IFERROR(VLOOKUP(B48,Erasmus_kodok!C$1:F$52,3,FALSE),"") -> 
C49: =IFERROR(PROPER(INDEX(Erasmus_kodok!B$2:B$52,MATCH(B49,EUC_osszes))),"") ->  | J49: =IFERROR(VLOOKUP(B49,Erasmus_kodok!C$1:F$52,4,FALSE),"") ->  | K49: =IFERROR(VLOOKUP(B49,Erasmus_kodok!C$1:F$52,3,FALSE),"") -> 
C50: =IFERROR(PROPER(INDEX(Erasmus_kodok!B$2:B$52,MATCH(B50,EUC_osszes))),"") ->  | J50: =IFERROR(VLOOKUP(B50,Erasmus_kodok!C$1:F$52,4,FALSE),"") ->  | K50: =IFERROR(VLOOKUP(B50,Erasmus_kodok!C$1:F$52,3,FALSE),"") -> 
C51: =IFERROR(PROPER(INDEX(Erasmus_kodok!B$2:B$52,MATCH(B51,EUC_osszes))),"") ->  | J51: =IFERROR(VLOOKUP(B51,Erasmus_kodok!C$1:F$52,4,FALSE),"") ->  | K51: =IFERROR(VLOOKUP(B51,Erasmus_kodok!C$1:F$52,3,FALSE),"") -> 
C52: =IFERROR(PROPER(INDEX(Erasmus_kodok!B$2:B$52,MATCH(B52,EUC_osszes))),"") ->  | J52: =IFERROR(VLOOKUP(B52,Erasmus_kodok!C$1:F$52,4,FALSE),"") ->  | K52: =IFERROR(VLOOKUP(B52,Erasmus_kodok!C$1:F$52,3,FALSE),"") -> 
C53: =IFERROR(PROPER(INDEX(Erasmus_kodok!B$2:B$52,MATCH(B53,EUC_osszes))),"") ->  | J53: =IFERROR(VLOOKUP(B53,Erasmus_kodok!C$1:F$52,4,FALSE),"") ->  | K53: =IFERROR(VLOOKUP(B53,Erasmus_kodok!C$1:F$52,3,FALSE),"") -> 
C54: =IFERROR(PROPER(INDEX(Erasmus_kodok!B$2:B$52,MATCH(B54,EUC_osszes))),"") ->  | J54: =IFERROR(VLOOKUP(B54,Erasmus_kodok!C$1:F$52,4,FALSE),"") ->  | K54: =IFERROR(VLOOKUP(B54,Erasmus_kodok!C$1:F$52,3,FALSE),"") -> 
C55: =IFERROR(PROPER(INDEX(Erasmus_kodok!B$2:B$52,MATCH(B55,EUC_osszes))),"") ->  | J55: =IFERROR(VLOOKUP(B55,Erasmus_kodok!C$1:F$52,4,FALSE),"") ->  | K55: =IFERROR(VLOOKUP(B55,Erasmus_kodok!C$1:F$52,3,FALSE),"") -> 
C56: =IFERROR(PROPER(INDEX(Erasmus_kodok!B$2:B$52,MATCH(B56,EUC_osszes))),"") ->  | J56: =IFERROR(VLOOKUP(B56,Erasmus_kodok!C$1:F$52,4,FALSE),"") ->  | K56: =IFERROR(VLOOKUP(B56,Erasmus_kodok!C$1:F$52,3,FALSE),"") -> 
C57: =IFERROR(PROPER(INDEX(Erasmus_kodok!B$2:B$52,MATCH(B57,EUC_osszes))),"") ->  | J57: =IFERROR(VLOOKUP(B57,Erasmus_kodok!C$1:F$52,4,FALSE),"") ->  | K57: =IFERROR(VLOOKUP(B57,Erasmus_kodok!C$1:F$52,3,FALSE),"") -> 
C58: =IFERROR(PROPER(INDEX(Erasmus_kodok!B$2:B$52,MATCH(B58,EUC_osszes))),"") ->  | J58: =IFERROR(VLOOKUP(B58,Erasmus_kodok!C$1:F$52,4,FALSE),"") ->  | K58: =IFERROR(VLOOKUP(B58,Erasmus_kodok!C$1:F$52,3,FALSE),"") -> 
C59: =IFERROR(PROPER(INDEX(Erasmus_kodok!B$2:B$52,MATCH(B59,EUC_osszes))),"") ->  | J59: =IFERROR(VLOOKUP(B59,Erasmus_kodok!C$1:F$52,4,FALSE),"") ->  | K59: =IFERROR(VLOOKUP(B59,Erasmus_kodok!C$1:F$52,3,FALSE),"") -> 
C60: =IFERROR(PROPER(INDEX(Erasmus_kodok!B$2:B$52,MATCH(B60,EUC_osszes))),"") ->  | J60: =IFERROR(VLOOKUP(B60,Erasmus_kodok!C$1:F$52,4,FALSE),"") ->  | K60: =IFERROR(VLOOKUP(B60,Erasmus_kodok!C$1:F$52,3,FALSE),"") -> 
C61: =IFERROR(PROPER(INDEX(Erasmus_kodok!B$2:B$52,MATCH(B61,EUC_osszes))),"") ->  | J61: =IFERROR(VLOOKUP(B61,Erasmus_kodok!C$1:F$52,4,FALSE),"") ->  | K61: =IFERROR(VLOOKUP(B61,Erasmus_kodok!C$1:F$52,3,FALSE),"") -> 
C62: =IFERROR(PROPER(INDEX(Erasmus_kodok!B$2:B$52,MATCH(B62,EUC_osszes))),"") ->  | J62: =IFERROR(VLOOKUP(B62,Erasmus_kodok!C$1:F$52,4,FALSE),"") ->  | K62: =IFERROR(VLOOKUP(B62,Erasmus_kodok!C$1:F$52,3,FALSE),"") -> 
C63: =IFERROR(PROPER(INDEX(Erasmus_kodok!B$2:B$52,MATCH(B63,EUC_osszes))),"") ->  | J63: =IFERROR(VLOOKUP(B63,Erasmus_kodok!C$1:F$52,4,FALSE),"") ->  | K63: =IFERROR(VLOOKUP(B63,Erasmus_kodok!C$1:F$52,3,FALSE),"") -> 
C64: =IFERROR(PROPER(INDEX(Erasmus_kodok!B$2:B$52,MATCH(B64,EUC_osszes))),"") ->  | J64: =IFERROR(VLOOKUP(B64,Erasmus_kodok!C$1:F$52,4,FALSE),"") ->  | K64: =IFERROR(VLOOKUP(B64,Erasmus_kodok!C$1:F$52,3,FALSE),"") -> 
C65: =IFERROR(PROPER(INDEX(Erasmus_kodok!B$2:B$52,MATCH(B65,EUC_osszes))),"") ->  | J65: =IFERROR(VLOOKUP(B65,Erasmus_kodok!C$1:F$52,4,FALSE),"") ->  | K65: =IFERROR(VLOOKUP(B65,Erasmus_kodok!C$1:F$52,3,FALSE),"") -> 
C66: =IFERROR(PROPER(INDEX(Erasmus_kodok!B$2:B$52,MATCH(B66,EUC_osszes))),"") ->  | J66: =IFERROR(VLOOKUP(B66,Erasmus_kodok!C$1:F$52,4,FALSE),"") ->  | K66: =IFERROR(VLOOKUP(B66,Erasmus_kodok!C$1:F$52,3,FALSE),"") -> 
C67: =IFERROR(PROPER(INDEX(Erasmus_kodok!B$2:B$52,MATCH(B67,EUC_osszes))),"") ->  | J67: =IFERROR(VLOOKUP(B67,Erasmus_kodok!C$1:F$52,4,FALSE),"") ->  | K67: =IFERROR(VLOOKUP(B67,Erasmus_kodok!C$1:F$52,3,FALSE),"") -> 
C68: =IFERROR(PROPER(INDEX(Erasmus_kodok!B$2:B$52,MATCH(B68,EUC_osszes))),"") ->  | J68: =IFERROR(VLOOKUP(B68,Erasmus_kodok!C$1:F$52,4,FALSE),"") ->  | K68: =IFERROR(VLOOKUP(B68,Erasmus_kodok!C$1:F$52,3,FALSE),"") -> 
C69: =IFERROR(PROPER(INDEX(Erasmus_kodok!B$2:B$52,MATCH(B69,EUC_osszes))),"") ->  | J69: =IFERROR(VLOOKUP(B69,Erasmus_kodok!C$1:F$52,4,FALSE),"") ->  | K69: =IFERROR(VLOOKUP(B69,Erasmus_kodok!C$1:F$52,3,FALSE),"") -> 
C70: =IFERROR(PROPER(INDEX(Erasmus_kodok!B$2:B$52,MATCH(B70,EUC_osszes))),"") ->  | J70: =IFERROR(VLOOKUP(B70,Erasmus_kodok!C$1:F$52,4,FALSE),"") ->  | K70: =IFERROR(VLOOKUP(B70,Erasmus_kodok!C$1:F$52,3,FALSE),"") -> 
C71: =IFERROR(PROPER(INDEX(Erasmus_kodok!B$2:B$52,MATCH(B71,EUC_osszes))),"") ->  | J71: =IFERROR(VLOOKUP(B71,Erasmus_kodok!C$1:F$52,4,FALSE),"") ->  | K71: =IFERROR(VLOOKUP(B71,Erasmus_kodok!C$1:F$52,3,FALSE),"") -> 
C72: =IFERROR(PROPER(INDEX(Erasmus_kodok!B$2:B$52,MATCH(B72,EUC_osszes))),"") ->  | J72: =IFERROR(VLOOKUP(B72,Erasmus_kodok!C$1:F$52,4,FALSE),"") ->  | K72: =IFERROR(VLOOKUP(B72,Erasmus_kodok!C$1:F$52,3,FALSE),"") -> 
C73: =IFERROR(PROPER(INDEX(Erasmus_kodok!B$2:B$52,MATCH(B73,EUC_osszes))),"") ->  | E73: =IF(B73<>"","EDU.4","") ->  | J73: =IFERROR(VLOOKUP(B73,Erasmus_kodok!C$1:F$52,4,FALSE),"") ->  | K73: =IFERROR(VLOOKUP(B73,Erasmus_kodok!C$1:F$52,3,FALSE),"") -> 
C74: =IFERROR(PROPER(INDEX(Erasmus_kodok!B$2:B$52,MATCH(B74,EUC_osszes))),"") ->  | J74: =IFERROR(VLOOKUP(B74,Erasmus_kodok!C$1:F$52,4,FALSE),"") ->  | K74: =IFERROR(VLOOKUP(B74,Erasmus_kodok!C$1:F$52,3,FALSE),"") -> 
C75: =IFERROR(PROPER(INDEX(Erasmus_kodok!B$2:B$52,MATCH(B75,EUC_osszes))),"") ->  | J75: =IFERROR(VLOOKUP(B75,Erasmus_kodok!C$1:F$52,4,FALSE),"") ->  | K75: =IFERROR(VLOOKUP(B75,Erasmus_kodok!C$1:F$52,3,FALSE),"") -> 
C76: =IFERROR(PROPER(INDEX(Erasmus_kodok!B$2:B$52,MATCH(B76,EUC_osszes))),"") ->  | J76: =IFERROR(VLOOKUP(B76,Erasmus_kodok!C$1:F$52,4,FALSE),"") ->  | K76: =IFERROR(VLOOKUP(B76,Erasmus_kodok!C$1:F$52,3,FALSE),"") -> 
C77: =IFERROR(PROPER(INDEX(Erasmus_kodok!B$2:B$52,MATCH(B77,EUC_osszes))),"") ->  | J77: =IFERROR(VLOOKUP(B77,Erasmus_kodok!C$1:F$52,4,FALSE),"") ->  | K77: =IFERROR(VLOOKUP(B77,Erasmus_kodok!C$1:F$52,3,FALSE),"") -> 
C78: =IFERROR(PROPER(INDEX(Erasmus_kodok!B$2:B$52,MATCH(B78,EUC_osszes))),"") ->  | J78: =IFERROR(VLOOKUP(B78,Erasmus_kodok!C$1:F$52,4,FALSE),"") ->  | K78: =IFERROR(VLOOKUP(B78,Erasmus_kodok!C$1:F$52,3,FALSE),"") -> 
C79: =IFERROR(PROPER(INDEX(Erasmus_kodok!B$2:B$52,MATCH(B79,EUC_osszes))),"") ->  | J79: =IFERROR(VLOOKUP(B79,Erasmus_kodok!C$1:F$52,4,FALSE),"") ->  | K79: =IFERROR(VLOOKUP(B79,Erasmus_kodok!C$1:F$52,3,FALSE),"") -> 
C80: =IFERROR(PROPER(INDEX(Erasmus_kodok!B$2:B$52,MATCH(B80,EUC_osszes))),"") ->  | J80: =IFERROR(VLOOKUP(B80,Erasmus_kodok!C$1:F$52,4,FALSE),"") ->  | K80: =IFERROR(VLOOKUP(B80,Erasmus_kodok!C$1:F$52,3,FALSE),"") -> 
C81: =IFERROR(PROPER(INDEX(Erasmus_kodok!B$2:B$52,MATCH(B81,EUC_osszes))),"") ->  | J81: =IFERROR(VLOOKUP(B81,Erasmus_kodok!C$1:F$52,4,FALSE),"") ->  | K81: =IFERROR(VLOOKUP(B81,Erasmus_kodok!C$1:F$52,3,FALSE),"") -> 
C82: =IFERROR(PROPER(INDEX(Erasmus_kodok!B$2:B$52,MATCH(B82,EUC_osszes))),"") ->  | J82: =IFERROR(VLOOKUP(B82,Erasmus_kodok!C$1:F$52,4,FALSE),"") ->  | K82: =IFERROR(VLOOKUP(B82,Erasmus_kodok!C$1:F$52,3,FALSE),"") -> 
C83: =IFERROR(PROPER(INDEX(Erasmus_kodok!B$2:B$52,MATCH(B83,EUC_osszes))),"") ->  | J83: =IFERROR(VLOOKUP(B83,Erasmus_kodok!C$1:F$52,4,FALSE),"") ->  | K83: =IFERROR(VLOOKUP(B83,Erasmus_kodok!C$1:F$52,3,FALSE),"") -> 
C84: =IFERROR(PROPER(INDEX(Erasmus_kodok!B$2:B$52,MATCH(B84,EUC_osszes))),"") ->  | J84: =IFERROR(VLOOKUP(B84,Erasmus_kodok!C$1:F$52,4,FALSE),"") ->  | K84: =IFERROR(VLOOKUP(B84,Erasmus_kodok!C$1:F$52,3,FALSE),"") -> 
C85: =IFERROR(PROPER(INDEX(Erasmus_kodok!B$2:B$52,MATCH(B85,EUC_osszes))),"") ->  | J85: =IFERROR(VLOOKUP(B85,Erasmus_kodok!C$1:F$52,4,FALSE),"") ->  | K85: =IFERROR(VLOOKUP(B85,Erasmus_kodok!C$1:F$52,3,FALSE),"") -> 
C86: =IFERROR(PROPER(INDEX(Erasmus_kodok!B$2:B$52,MATCH(B86,EUC_osszes))),"") ->  | J86: =IFERROR(VLOOKUP(B86,Erasmus_kodok!C$1:F$52,4,FALSE),"") ->  | K86: =IFERROR(VLOOKUP(B86,Erasmus_kodok!C$1:F$52,3,FALSE),"") -> 
C87: =IFERROR(PROPER(INDEX(Erasmus_kodok!B$2:B$52,MATCH(B87,EUC_osszes))),"") ->  | J87: =IFERROR(VLOOKUP(B87,Erasmus_kodok!C$1:F$52,4,FALSE),"") ->  | K87: =IFERROR(VLOOKUP(B87,Erasmus_kodok!C$1:F$52,3,FALSE),"") -> 
C88: =IFERROR(PROPER(INDEX(Erasmus_kodok!B$2:B$52,MATCH(B88,EUC_osszes))),"") ->  | J88: =IFERROR(VLOOKUP(B88,Erasmus_kodok!C$1:F$52,4,FALSE),"") ->  | K88: =IFERROR(VLOOKUP(B88,Erasmus_kodok!C$1:F$52,3,FALSE),"") -> 
C89: =IFERROR(PROPER(INDEX(Erasmus_kodok!B$2:B$52,MATCH(B89,EUC_osszes))),"") ->  | J89: =IFERROR(VLOOKUP(B89,Erasmus_kodok!C$1:F$52,4,FALSE),"") ->  | K89: =IFERROR(VLOOKUP(B89,Erasmus_kodok!C$1:F$52,3,FALSE),"") -> 
C90: =IFERROR(PROPER(INDEX(Erasmus_kodok!B$2:B$52,MATCH(B90,EUC_osszes))),"") ->  | J90: =IFERROR(VLOOKUP(B90,Erasmus_kodok!C$1:F$52,4,FALSE),"") ->  | K90: =IFERROR(VLOOKUP(B90,Erasmus_kodok!C$1:F$52,3,FALSE),"") -> 
C91: =IFERROR(PROPER(INDEX(Erasmus_kodok!B$2:B$52,MATCH(B91,EUC_osszes))),"") ->  | J91: =IFERROR(VLOOKUP(B91,Erasmus_kodok!C$1:F$52,4,FALSE),"") ->  | K91: =IFERROR(VLOOKUP(B91,Erasmus_kodok!C$1:F$52,3,FALSE),"") -> 
C92: =IFERROR(PROPER(INDEX(Erasmus_kodok!B$2:B$52,MATCH(B92,EUC_osszes))),"") ->  | J92: =IFERROR(VLOOKUP(B92,Erasmus_kodok!C$1:F$52,4,FALSE),"") ->  | K92: =IFERROR(VLOOKUP(B92,Erasmus_kodok!C$1:F$52,3,FALSE),"") -> 
C93: =IFERROR(PROPER(INDEX(Erasmus_kodok!B$2:B$52,MATCH(B93,EUC_osszes))),"") ->  | J93: =IFERROR(VLOOKUP(B93,Erasmus_kodok!C$1:F$52,4,FALSE),"") ->  | K93: =IFERROR(VLOOKUP(B93,Erasmus_kodok!C$1:F$52,3,FALSE),"") -> 
C94: =IFERROR(PROPER(INDEX(Erasmus_kodok!B$2:B$52,MATCH(B94,EUC_osszes))),"") ->  | J94: =IFERROR(VLOOKUP(B94,Erasmus_kodok!C$1:F$52,4,FALSE),"") ->  | K94: =IFERROR(VLOOKUP(B94,Erasmus_kodok!C$1:F$52,3,FALSE),"") -> 
C95: =IFERROR(PROPER(INDEX(Erasmus_kodok!B$2:B$52,MATCH(B95,EUC_osszes))),"") ->  | J95: =IFERROR(VLOOKUP(B95,Erasmus_kodok!C$1:F$52,4,FALSE),"") ->  | K95: =IFERROR(VLOOKUP(B95,Erasmus_kodok!C$1:F$52,3,FALSE),"") -> 
C96: =IFERROR(PROPER(INDEX(Erasmus_kodok!B$2:B$52,MATCH(B96,EUC_osszes))),"") ->  | J96: =IFERROR(VLOOKUP(B96,Erasmus_kodok!C$1:F$52,4,FALSE),"") ->  | K96: =IFERROR(VLOOKUP(B96,Erasmus_kodok!C$1:F$52,3,FALSE),"") -> 
C97: =IFERROR(PROPER(INDEX(Erasmus_kodok!B$2:B$52,MATCH(B97,EUC_osszes))),"") ->  | J97: =IFERROR(VLOOKUP(B97,Erasmus_kodok!C$1:F$52,4,FALSE),"") ->  | K97: =IFERROR(VLOOKUP(B97,Erasmus_kodok!C$1:F$52,3,FALSE),"") -> 
C98: =IFERROR(PROPER(INDEX(Erasmus_kodok!B$2:B$52,MATCH(B98,EUC_osszes))),"") ->  | J98: =IFERROR(VLOOKUP(B98,Erasmus_kodok!C$1:F$52,4,FALSE),"") ->  | K98: =IFERROR(VLOOKUP(B98,Erasmus_kodok!C$1:F$52,3,FALSE),"") -> 
C99: =IFERROR(PROPER(INDEX(Erasmus_kodok!B$2:B$52,MATCH(B99,EUC_osszes))),"") ->  | J99: =IFERROR(VLOOKUP(B99,Erasmus_kodok!C$1:F$52,4,FALSE),"") ->  | K99: =IFERROR(VLOOKUP(B99,Erasmus_kodok!C$1:F$52,3,FALSE),"") -> 
C100: =IFERROR(PROPER(INDEX(Erasmus_kodok!B$2:B$52,MATCH(B100,EUC_osszes))),"") ->  | J100: =IFERROR(VLOOKUP(B100,Erasmus_kodok!C$1:F$52,4,FALSE),"") ->  | K100: =IFERROR(VLOOKUP(B100,Erasmus_kodok!C$1:F$52,3,FALSE),"") -> 
C101: =IFERROR(PROPER(INDEX(Erasmus_kodok!B$2:B$52,MATCH(B101,EUC_osszes))),"") ->  | J101: =IFERROR(VLOOKUP(B101,Erasmus_kodok!C$1:F$52,4,FALSE),"") ->  | K101: =IFERROR(VLOOKUP(B101,Erasmus_kodok!C$1:F$52,3,FALSE),"") -> 
C102: =IFERROR(PROPER(INDEX(Erasmus_kodok!B$2:B$52,MATCH(B102,EUC_osszes))),"") ->  | J102: =IFERROR(VLOOKUP(B102,Erasmus_kodok!C$1:F$52,4,FALSE),"") ->  | K102: =IFERROR(VLOOKUP(B102,Erasmus_kodok!C$1:F$52,3,FALSE),"") -> 
C103: =IFERROR(PROPER(INDEX(Erasmus_kodok!B$2:B$52,MATCH(B103,EUC_osszes))),"") ->  | J103: =IFERROR(VLOOKUP(B103,Erasmus_kodok!C$1:F$52,4,FALSE),"") ->  | K103: =IFERROR(VLOOKUP(B103,Erasmus_kodok!C$1:F$52,3,FALSE),"") -> 
C104: =IFERROR(PROPER(INDEX(Erasmus_kodok!B$2:B$52,MATCH(B104,EUC_osszes))),"") ->  | J104: =IFERROR(VLOOKUP(B104,Erasmus_kodok!C$1:F$52,4,FALSE),"") ->  | K104: =IFERROR(VLOOKUP(B104,Erasmus_kodok!C$1:F$52,3,FALSE),"") -> 
C105: =IFERROR(PROPER(INDEX(Erasmus_kodok!B$2:B$52,MATCH(B105,EUC_osszes))),"") ->  | J105: =IFERROR(VLOOKUP(B105,Erasmus_kodok!C$1:F$52,4,FALSE),"") ->  | K105: =IFERROR(VLOOKUP(B105,Erasmus_kodok!C$1:F$52,3,FALSE),"") -> 
C106: =IFERROR(PROPER(INDEX(Erasmus_kodok!B$2:B$52,MATCH(B106,EUC_osszes))),"") ->  | J106: =IFERROR(VLOOKUP(B106,Erasmus_kodok!C$1:F$52,4,FALSE),"") ->  | K106: =IFERROR(VLOOKUP(B106,Erasmus_kodok!C$1:F$52,3,FALSE),"") -> 

Sheet Ki- és beutazó hallgatók
A1: =IF(Azonosítás!A3="","",Azonosítás!A3) -> 
A2: Ki- és beutazó hallgatói mobilitás - tanulmányi célú, szakmai gyakorlat, nyári egyetem
A4: Intézmény neve: | C4: =IF(Azonosítás!A9="","",Azonosítás!A9) ->  | E4: EGT koordinátor aláírása | O4: intézményi koordinátor aláírása
A5: Szerződésszám: | C5: =Azonosítás!A6 -> 0 | H5: =TODAY() -> 2016-10-13 | R5: =TODAY() -> 2016-10-13
A8: Mobilitás jellege | B8: Egyéni támogatási szerződésszám | C8: Tanulmányi azonosító kód | D8: Családnév | E8: Keresztnév | F8: Születés időpontja (ÉÉÉÉ/HH/NN) | G8: Neme | H8: Állampolgárság | I8: Szakterület kódja | J8: Leendő végzettsége (magyarul) | K8: A tanulmányok szintje | L8: Évfolyam | M8: Küldő partner azonosítója | N8: Fogadó partner azonosítója | O8: Tanulmányi célú mobilitás kezdete (ÉÉÉÉ/HH/NN) | P8: Tanulmányi célú mobilitás vége (ÉÉÉÉ/HH/NN) | Q8: Tanulmányi célú mobilitás hossza | R8: Szakmai gyakorlat kezdete (ÉÉÉÉ/HH/NN) | S8: Szakmai gyakorlat vége (ÉÉÉÉ/HH/NN) | T8: Szakmai gyakorlat hossza | U8: Nyári egyetem kezdete (ÉÉÉÉ/HH/NN) | V8: Nyári egyetem vége (ÉÉÉÉ/HH/NN) | W8: Nyári egyetem hossza | X8: Tanulmányi ECTS kreditek száma | Y8: Gyakorlati ECTS kreditek száma | Z8: Kétoldalú megállapodás | AA8: Oktatás vagy munka nyelve | AB8: Hallgatói felkészítés | AC8: EGT ösztöndíj összesen (EUR) | AD8: Intézményi forrás (HUF) | AE8: Hallgató e-mail címe | AF8: Költségtérítéses hallgató? | AG8: Megjegyzés | AI8: Küldő ország | AJ8: Fogadó ország | AK8: TÁMOGATÁS | AL8: TÁMOGATÁS hosszabbítás
M9: =IF((IFERROR(RIGHT($A9,2),"")="KI"),Erasmus_kod,"") ->  | AC9: =IFERROR( IF( ((RIGHT(A9,2)="KI")*(AI9="HU")*(AJ9<>"HU"))+((RIGHT(A9,2)="BE")*(AJ9="HU")*(AJ9="HU")), IF(A9<>"",AK9,""),""),"") ->  | AI9: =IFERROR( IF(VLOOKUP($M9,Partnerek!$A$9:$K$106,11,FALSE)="","",VLOOKUP($M9,Partnerek!$A$9:$K$106,11,FALSE)),"") ->  | AJ9: =IFERROR( IF(VLOOKUP($N9,Partnerek!$A$9:$K$106,11,FALSE)="","",VLOOKUP($N9,Partnerek!$A$9:$K$106,11,FALSE)),"") ->  | AK9: =IFERROR(VLOOKUP(AJ9,ráták!$A$10:$AX$13,MATCH(Q9+T9+W9,ráták!$C$9:$AX$9,1)+2,FALSE),"") ->  | AL9: =IFERROR(VLOOKUP(AJ9,ráták!$A$10:$AX$13,MATCH(#REF!+#REF!+#REF!,ráták!$C$9:$AX$9,1)+2,FALSE),"") -> 
M10: =IF((IFERROR(RIGHT($A10,2),"")="KI"),Erasmus_kod,"") ->  | AI10: =IFERROR( IF(VLOOKUP($M10,Partnerek!$A$9:$K$106,11,FALSE)="","",VLOOKUP($M10,Partnerek!$A$9:$K$106,11,FALSE)),"") ->  | AJ10: =IFERROR( IF(RIGHT($A10,2)="BE","HU", IF(VLOOKUP($N10,Partnerek!$A$9:$K$106,11,FALSE)="","",VLOOKUP($N10,Partnerek!$A$9:$K$106,11,FALSE))),"") ->  | AK10: =IFERROR(VLOOKUP(AJ10,ráták!$A$10:$AX$13,MATCH(Q10+T10+W10,ráták!$C$9:$AX$9,1)+2,FALSE),"") ->  | AL10: =IFERROR(VLOOKUP(AJ10,ráták!$A$10:$AX$13,MATCH(#REF!+#REF!+#REF!,ráták!$C$9:$AX$9,1)+2,FALSE),"") -> 
AI11: =IFERROR( IF(VLOOKUP($M11,Partnerek!$A$9:$K$106,11,FALSE)="","",VLOOKUP($M11,Partnerek!$A$9:$K$106,11,FALSE)),"") ->  | AJ11: =IFERROR( IF(RIGHT($A11,2)="BE","HU", IF(VLOOKUP($N11,Partnerek!$A$9:$K$106,11,FALSE)="","",VLOOKUP($N11,Partnerek!$A$9:$K$106,11,FALSE))),"") ->  | AK11: =IFERROR(VLOOKUP(AJ11,ráták!$A$10:$AX$13,MATCH(Q11+T11+W11,ráták!$C$9:$AX$9,1)+2,FALSE),"") ->  | AL11: =IFERROR(VLOOKUP(AJ11,ráták!$A$10:$AX$13,MATCH(#REF!+#REF!+#REF!,ráták!$C$9:$AX$9,1)+2,FALSE),"") -> 
AI12: =IFERROR( IF(VLOOKUP($M12,Partnerek!$A$9:$K$106,11,FALSE)="","",VLOOKUP($M12,Partnerek!$A$9:$K$106,11,FALSE)),"") ->  | AJ12: =IFERROR( IF(RIGHT($A12,2)="BE","HU", IF(VLOOKUP($N12,Partnerek!$A$9:$K$106,11,FALSE)="","",VLOOKUP($N12,Partnerek!$A$9:$K$106,11,FALSE))),"") ->  | AK12: =IFERROR(VLOOKUP(AJ12,ráták!$A$10:$AX$13,MATCH(Q12+T12+W12,ráták!$C$9:$AX$9,1)+2,FALSE),"") ->  | AL12: =IFERROR(VLOOKUP(AJ12,ráták!$A$10:$AX$13,MATCH(#REF!+#REF!+#REF!,ráták!$C$9:$AX$9,1)+2,FALSE),"") -> 
AI13: =IFERROR( IF(VLOOKUP($M13,Partnerek!$A$9:$K$106,11,FALSE)="","",VLOOKUP($M13,Partnerek!$A$9:$K$106,11,FALSE)),"") ->  | AJ13: =IFERROR( IF(RIGHT($A13,2)="BE","HU", IF(VLOOKUP($N13,Partnerek!$A$9:$K$106,11,FALSE)="","",VLOOKUP($N13,Partnerek!$A$9:$K$106,11,FALSE))),"") ->  | AK13: =IFERROR(VLOOKUP(AJ13,ráták!$A$10:$AX$13,MATCH(Q13+T13+W13,ráták!$C$9:$AX$9,1)+2,FALSE),"") ->  | AL13: =IFERROR(VLOOKUP(AJ13,ráták!$A$10:$AX$13,MATCH(#REF!+#REF!+#REF!,ráták!$C$9:$AX$9,1)+2,FALSE),"") -> 
AI14: =IFERROR( IF(VLOOKUP($M14,Partnerek!$A$9:$K$106,11,FALSE)="","",VLOOKUP($M14,Partnerek!$A$9:$K$106,11,FALSE)),"") ->  | AJ14: =IFERROR( IF(RIGHT($A14,2)="BE","HU", IF(VLOOKUP($N14,Partnerek!$A$9:$K$106,11,FALSE)="","",VLOOKUP($N14,Partnerek!$A$9:$K$106,11,FALSE))),"") ->  | AK14: =IFERROR(VLOOKUP(AJ14,ráták!$A$10:$AX$13,MATCH(Q14+T14+W14,ráták!$C$9:$AX$9,1)+2,FALSE),"") ->  | AL14: =IFERROR(VLOOKUP(AJ14,ráták!$A$10:$AX$13,MATCH(#REF!+#REF!+#REF!,ráták!$C$9:$AX$9,1)+2,FALSE),"") -> 
AI15: =IFERROR( IF(VLOOKUP($M15,Partnerek!$A$9:$K$106,11,FALSE)="","",VLOOKUP($M15,Partnerek!$A$9:$K$106,11,FALSE)),"") ->  | AJ15: =IFERROR( IF(RIGHT($A15,2)="BE","HU", IF(VLOOKUP($N15,Partnerek!$A$9:$K$106,11,FALSE)="","",VLOOKUP($N15,Partnerek!$A$9:$K$106,11,FALSE))),"") ->  | AK15: =IFERROR(VLOOKUP(AJ15,ráták!$A$10:$AX$13,MATCH(Q15+T15+W15,ráták!$C$9:$AX$9,1)+2,FALSE),"") ->  | AL15: =IFERROR(VLOOKUP(AJ15,ráták!$A$10:$AX$13,MATCH(#REF!+#REF!+#REF!,ráták!$C$9:$AX$9,1)+2,FALSE),"") -> 
AI16: =IFERROR( IF(VLOOKUP($M16,Partnerek!$A$9:$K$106,11,FALSE)="","",VLOOKUP($M16,Partnerek!$A$9:$K$106,11,FALSE)),"") ->  | AJ16: =IFERROR( IF(RIGHT($A16,2)="BE","HU", IF(VLOOKUP($N16,Partnerek!$A$9:$K$106,11,FALSE)="","",VLOOKUP($N16,Partnerek!$A$9:$K$106,11,FALSE))),"") ->  | AK16: =IFERROR(VLOOKUP(AJ16,ráták!$A$10:$AX$13,MATCH(Q16+T16+W16,ráták!$C$9:$AX$9,1)+2,FALSE),"") ->  | AL16: =IFERROR(VLOOKUP(AJ16,ráták!$A$10:$AX$13,MATCH(#REF!+#REF!+#REF!,ráták!$C$9:$AX$9,1)+2,FALSE),"") -> 
AI17: =IFERROR( IF(VLOOKUP($M17,Partnerek!$A$9:$K$106,11,FALSE)="","",VLOOKUP($M17,Partnerek!$A$9:$K$106,11,FALSE)),"") ->  | AJ17: =IFERROR( IF(RIGHT($A17,2)="BE","HU", IF(VLOOKUP($N17,Partnerek!$A$9:$K$106,11,FALSE)="","",VLOOKUP($N17,Partnerek!$A$9:$K$106,11,FALSE))),"") ->  | AK17: =IFERROR(VLOOKUP(AJ17,ráták!$A$10:$AX$13,MATCH(Q17+T17+W17,ráták!$C$9:$AX$9,1)+2,FALSE),"") ->  | AL17: =IFERROR(VLOOKUP(AJ17,ráták!$A$10:$AX$13,MATCH(#REF!+#REF!+#REF!,ráták!$C$9:$AX$9,1)+2,FALSE),"") -> 
AI18: =IFERROR( IF(VLOOKUP($M18,Partnerek!$A$9:$K$106,11,FALSE)="","",VLOOKUP($M18,Partnerek!$A$9:$K$106,11,FALSE)),"") ->  | AJ18: =IFERROR( IF(RIGHT($A18,2)="BE","HU", IF(VLOOKUP($N18,Partnerek!$A$9:$K$106,11,FALSE)="","",VLOOKUP($N18,Partnerek!$A$9:$K$106,11,FALSE))),"") ->  | AK18: =IFERROR(VLOOKUP(AJ18,ráták!$A$10:$AX$13,MATCH(Q18+T18+W18,ráták!$C$9:$AX$9,1)+2,FALSE),"") ->  | AL18: =IFERROR(VLOOKUP(AJ18,ráták!$A$10:$AX$13,MATCH(#REF!+#REF!+#REF!,ráták!$C$9:$AX$9,1)+2,FALSE),"") -> 
AI19: =IFERROR( IF(VLOOKUP($M19,Partnerek!$A$9:$K$106,11,FALSE)="","",VLOOKUP($M19,Partnerek!$A$9:$K$106,11,FALSE)),"") ->  | AJ19: =IFERROR( IF(RIGHT($A19,2)="BE","HU", IF(VLOOKUP($N19,Partnerek!$A$9:$K$106,11,FALSE)="","",VLOOKUP($N19,Partnerek!$A$9:$K$106,11,FALSE))),"") ->  | AK19: =IFERROR(VLOOKUP(AJ19,ráták!$A$10:$AX$13,MATCH(Q19+T19+W19,ráták!$C$9:$AX$9,1)+2,FALSE),"") ->  | AL19: =IFERROR(VLOOKUP(AJ19,ráták!$A$10:$AX$13,MATCH(#REF!+#REF!+#REF!,ráták!$C$9:$AX$9,1)+2,FALSE),"") -> 
AI20: =IFERROR( IF(VLOOKUP($M20,Partnerek!$A$9:$K$106,11,FALSE)="","",VLOOKUP($M20,Partnerek!$A$9:$K$106,11,FALSE)),"") ->  | AJ20: =IFERROR( IF(RIGHT($A20,2)="BE","HU", IF(VLOOKUP($N20,Partnerek!$A$9:$K$106,11,FALSE)="","",VLOOKUP($N20,Partnerek!$A$9:$K$106,11,FALSE))),"") ->  | AK20: =IFERROR(VLOOKUP(AJ20,ráták!$A$10:$AX$13,MATCH(Q20+T20+W20,ráták!$C$9:$AX$9,1)+2,FALSE),"") ->  | AL20: =IFERROR(VLOOKUP(AJ20,ráták!$A$10:$AX$13,MATCH(#REF!+#REF!+#REF!,ráták!$C$9:$AX$9,1)+2,FALSE),"") -> 
AI21: =IFERROR( IF(VLOOKUP($M21,Partnerek!$A$9:$K$106,11,FALSE)="","",VLOOKUP($M21,Partnerek!$A$9:$K$106,11,FALSE)),"") ->  | AJ21: =IFERROR( IF(RIGHT($A21,2)="BE","HU", IF(VLOOKUP($N21,Partnerek!$A$9:$K$106,11,FALSE)="","",VLOOKUP($N21,Partnerek!$A$9:$K$106,11,FALSE))),"") ->  | AK21: =IFERROR(VLOOKUP(AJ21,ráták!$A$10:$AX$13,MATCH(Q21+T21+W21,ráták!$C$9:$AX$9,1)+2,FALSE),"") ->  | AL21: =IFERROR(VLOOKUP(AJ21,ráták!$A$10:$AX$13,MATCH(#REF!+#REF!+#REF!,ráták!$C$9:$AX$9,1)+2,FALSE),"") -> 
AI22: =IFERROR( IF(VLOOKUP($M22,Partnerek!$A$9:$K$106,11,FALSE)="","",VLOOKUP($M22,Partnerek!$A$9:$K$106,11,FALSE)),"") ->  | AJ22: =IFERROR( IF(RIGHT($A22,2)="BE","HU", IF(VLOOKUP($N22,Partnerek!$A$9:$K$106,11,FALSE)="","",VLOOKUP($N22,Partnerek!$A$9:$K$106,11,FALSE))),"") ->  | AK22: =IFERROR(VLOOKUP(AJ22,ráták!$A$10:$AX$13,MATCH(Q22+T22+W22,ráták!$C$9:$AX$9,1)+2,FALSE),"") ->  | AL22: =IFERROR(VLOOKUP(AJ22,ráták!$A$10:$AX$13,MATCH(#REF!+#REF!+#REF!,ráták!$C$9:$AX$9,1)+2,FALSE),"") -> 
AI23: =IFERROR( IF(VLOOKUP($M23,Partnerek!$A$9:$K$106,11,FALSE)="","",VLOOKUP($M23,Partnerek!$A$9:$K$106,11,FALSE)),"") ->  | AJ23: =IFERROR( IF(RIGHT($A23,2)="BE","HU", IF(VLOOKUP($N23,Partnerek!$A$9:$K$106,11,FALSE)="","",VLOOKUP($N23,Partnerek!$A$9:$K$106,11,FALSE))),"") ->  | AK23: =IFERROR(VLOOKUP(AJ23,ráták!$A$10:$AX$13,MATCH(Q23+T23+W23,ráták!$C$9:$AX$9,1)+2,FALSE),"") ->  | AL23: =IFERROR(VLOOKUP(AJ23,ráták!$A$10:$AX$13,MATCH(#REF!+#REF!+#REF!,ráták!$C$9:$AX$9,1)+2,FALSE),"") -> 
AI24: =IFERROR( IF(VLOOKUP($M24,Partnerek!$A$9:$K$106,11,FALSE)="","",VLOOKUP($M24,Partnerek!$A$9:$K$106,11,FALSE)),"") ->  | AJ24: =IFERROR( IF(RIGHT($A24,2)="BE","HU", IF(VLOOKUP($N24,Partnerek!$A$9:$K$106,11,FALSE)="","",VLOOKUP($N24,Partnerek!$A$9:$K$106,11,FALSE))),"") ->  | AK24: =IFERROR(VLOOKUP(AJ24,ráták!$A$10:$AX$13,MATCH(Q24+T24+W24,ráták!$C$9:$AX$9,1)+2,FALSE),"") ->  | AL24: =IFERROR(VLOOKUP(AJ24,ráták!$A$10:$AX$13,MATCH(#REF!+#REF!+#REF!,ráták!$C$9:$AX$9,1)+2,FALSE),"") -> 
AI25: =IFERROR( IF(VLOOKUP($M25,Partnerek!$A$9:$K$106,11,FALSE)="","",VLOOKUP($M25,Partnerek!$A$9:$K$106,11,FALSE)),"") ->  | AJ25: =IFERROR( IF(RIGHT($A25,2)="BE","HU", IF(VLOOKUP($N25,Partnerek!$A$9:$K$106,11,FALSE)="","",VLOOKUP($N25,Partnerek!$A$9:$K$106,11,FALSE))),"") ->  | AK25: =IFERROR(VLOOKUP(AJ25,ráták!$A$10:$AX$13,MATCH(Q25+T25+W25,ráták!$C$9:$AX$9,1)+2,FALSE),"") ->  | AL25: =IFERROR(VLOOKUP(AJ25,ráták!$A$10:$AX$13,MATCH(#REF!+#REF!+#REF!,ráták!$C$9:$AX$9,1)+2,FALSE),"") -> 
AI26: =IFERROR( IF(VLOOKUP($M26,Partnerek!$A$9:$K$106,11,FALSE)="","",VLOOKUP($M26,Partnerek!$A$9:$K$106,11,FALSE)),"") ->  | AJ26: =IFERROR( IF(RIGHT($A26,2)="BE","HU", IF(VLOOKUP($N26,Partnerek!$A$9:$K$106,11,FALSE)="","",VLOOKUP($N26,Partnerek!$A$9:$K$106,11,FALSE))),"") ->  | AK26: =IFERROR(VLOOKUP(AJ26,ráták!$A$10:$AX$13,MATCH(Q26+T26+W26,ráták!$C$9:$AX$9,1)+2,FALSE),"") ->  | AL26: =IFERROR(VLOOKUP(AJ26,ráták!$A$10:$AX$13,MATCH(#REF!+#REF!+#REF!,ráták!$C$9:$AX$9,1)+2,FALSE),"") -> 
AI27: =IFERROR( IF(VLOOKUP($M27,Partnerek!$A$9:$K$106,11,FALSE)="","",VLOOKUP($M27,Partnerek!$A$9:$K$106,11,FALSE)),"") ->  | AJ27: =IFERROR( IF(RIGHT($A27,2)="BE","HU", IF(VLOOKUP($N27,Partnerek!$A$9:$K$106,11,FALSE)="","",VLOOKUP($N27,Partnerek!$A$9:$K$106,11,FALSE))),"") ->  | AK27: =IFERROR(VLOOKUP(AJ27,ráták!$A$10:$AX$13,MATCH(Q27+T27+W27,ráták!$C$9:$AX$9,1)+2,FALSE),"") ->  | AL27: =IFERROR(VLOOKUP(AJ27,ráták!$A$10:$AX$13,MATCH(#REF!+#REF!+#REF!,ráták!$C$9:$AX$9,1)+2,FALSE),"") -> 
AI28: =IFERROR( IF(VLOOKUP($M28,Partnerek!$A$9:$K$106,11,FALSE)="","",VLOOKUP($M28,Partnerek!$A$9:$K$106,11,FALSE)),"") ->  | AJ28: =IFERROR( IF(RIGHT($A28,2)="BE","HU", IF(VLOOKUP($N28,Partnerek!$A$9:$K$106,11,FALSE)="","",VLOOKUP($N28,Partnerek!$A$9:$K$106,11,FALSE))),"") ->  | AK28: =IFERROR(VLOOKUP(AJ28,ráták!$A$10:$AX$13,MATCH(Q28+T28+W28,ráták!$C$9:$AX$9,1)+2,FALSE),"") ->  | AL28: =IFERROR(VLOOKUP(AJ28,ráták!$A$10:$AX$13,MATCH(#REF!+#REF!+#REF!,ráták!$C$9:$AX$9,1)+2,FALSE),"") -> 
AI29: =IFERROR( IF(VLOOKUP($M29,Partnerek!$A$9:$K$106,11,FALSE)="","",VLOOKUP($M29,Partnerek!$A$9:$K$106,11,FALSE)),"") ->  | AJ29: =IFERROR( IF(RIGHT($A29,2)="BE","HU", IF(VLOOKUP($N29,Partnerek!$A$9:$K$106,11,FALSE)="","",VLOOKUP($N29,Partnerek!$A$9:$K$106,11,FALSE))),"") ->  | AK29: =IFERROR(VLOOKUP(AJ29,ráták!$A$10:$AX$13,MATCH(Q29+T29+W29,ráták!$C$9:$AX$9,1)+2,FALSE),"") ->  | AL29: =IFERROR(VLOOKUP(AJ29,ráták!$A$10:$AX$13,MATCH(#REF!+#REF!+#REF!,ráták!$C$9:$AX$9,1)+2,FALSE),"") -> 
AI30: =IFERROR( IF(VLOOKUP($M30,Partnerek!$A$9:$K$106,11,FALSE)="","",VLOOKUP($M30,Partnerek!$A$9:$K$106,11,FALSE)),"") ->  | AJ30: =IFERROR( IF(RIGHT($A30,2)="BE","HU", IF(VLOOKUP($N30,Partnerek!$A$9:$K$106,11,FALSE)="","",VLOOKUP($N30,Partnerek!$A$9:$K$106,11,FALSE))),"") ->  | AK30: =IFERROR(VLOOKUP(AJ30,ráták!$A$10:$AX$13,MATCH(Q30+T30+W30,ráták!$C$9:$AX$9,1)+2,FALSE),"") ->  | AL30: =IFERROR(VLOOKUP(AJ30,ráták!$A$10:$AX$13,MATCH(#REF!+#REF!+#REF!,ráták!$C$9:$AX$9,1)+2,FALSE),"") -> 
AI31: =IFERROR( IF(VLOOKUP($M31,Partnerek!$A$9:$K$106,11,FALSE)="","",VLOOKUP($M31,Partnerek!$A$9:$K$106,11,FALSE)),"") ->  | AJ31: =IFERROR( IF(RIGHT($A31,2)="BE","HU", IF(VLOOKUP($N31,Partnerek!$A$9:$K$106,11,FALSE)="","",VLOOKUP($N31,Partnerek!$A$9:$K$106,11,FALSE))),"") ->  | AK31: =IFERROR(VLOOKUP(AJ31,ráták!$A$10:$AX$13,MATCH(Q31+T31+W31,ráták!$C$9:$AX$9,1)+2,FALSE),"") ->  | AL31: =IFERROR(VLOOKUP(AJ31,ráták!$A$10:$AX$13,MATCH(#REF!+#REF!+#REF!,ráták!$C$9:$AX$9,1)+2,FALSE),"") -> 
AI32: =IFERROR( IF(VLOOKUP($M32,Partnerek!$A$9:$K$106,11,FALSE)="","",VLOOKUP($M32,Partnerek!$A$9:$K$106,11,FALSE)),"") ->  | AJ32: =IFERROR( IF(RIGHT($A32,2)="BE","HU", IF(VLOOKUP($N32,Partnerek!$A$9:$K$106,11,FALSE)="","",VLOOKUP($N32,Partnerek!$A$9:$K$106,11,FALSE))),"") ->  | AK32: =IFERROR(VLOOKUP(AJ32,ráták!$A$10:$AX$13,MATCH(Q32+T32+W32,ráták!$C$9:$AX$9,1)+2,FALSE),"") ->  | AL32: =IFERROR(VLOOKUP(AJ32,ráták!$A$10:$AX$13,MATCH(#REF!+#REF!+#REF!,ráták!$C$9:$AX$9,1)+2,FALSE),"") -> 
AI33: =IFERROR( IF(VLOOKUP($M33,Partnerek!$A$9:$K$106,11,FALSE)="","",VLOOKUP($M33,Partnerek!$A$9:$K$106,11,FALSE)),"") ->  | AJ33: =IFERROR( IF(RIGHT($A33,2)="BE","HU", IF(VLOOKUP($N33,Partnerek!$A$9:$K$106,11,FALSE)="","",VLOOKUP($N33,Partnerek!$A$9:$K$106,11,FALSE))),"") ->  | AK33: =IFERROR(VLOOKUP(AJ33,ráták!$A$10:$AX$13,MATCH(Q33+T33+W33,ráták!$C$9:$AX$9,1)+2,FALSE),"") ->  | AL33: =IFERROR(VLOOKUP(AJ33,ráták!$A$10:$AX$13,MATCH(#REF!+#REF!+#REF!,ráták!$C$9:$AX$9,1)+2,FALSE),"") -> 
AI34: =IFERROR( IF(VLOOKUP($M34,Partnerek!$A$9:$K$106,11,FALSE)="","",VLOOKUP($M34,Partnerek!$A$9:$K$106,11,FALSE)),"") ->  | AJ34: =IFERROR( IF(RIGHT($A34,2)="BE","HU", IF(VLOOKUP($N34,Partnerek!$A$9:$K$106,11,FALSE)="","",VLOOKUP($N34,Partnerek!$A$9:$K$106,11,FALSE))),"") ->  | AK34: =IFERROR(VLOOKUP(AJ34,ráták!$A$10:$AX$13,MATCH(Q34+T34+W34,ráták!$C$9:$AX$9,1)+2,FALSE),"") ->  | AL34: =IFERROR(VLOOKUP(AJ34,ráták!$A$10:$AX$13,MATCH(#REF!+#REF!+#REF!,ráták!$C$9:$AX$9,1)+2,FALSE),"") -> 
AI35: =IFERROR( IF(VLOOKUP($M35,Partnerek!$A$9:$K$106,11,FALSE)="","",VLOOKUP($M35,Partnerek!$A$9:$K$106,11,FALSE)),"") ->  | AJ35: =IFERROR( IF(RIGHT($A35,2)="BE","HU", IF(VLOOKUP($N35,Partnerek!$A$9:$K$106,11,FALSE)="","",VLOOKUP($N35,Partnerek!$A$9:$K$106,11,FALSE))),"") ->  | AK35: =IFERROR(VLOOKUP(AJ35,ráták!$A$10:$AX$13,MATCH(Q35+T35+W35,ráták!$C$9:$AX$9,1)+2,FALSE),"") ->  | AL35: =IFERROR(VLOOKUP(AJ35,ráták!$A$10:$AX$13,MATCH(#REF!+#REF!+#REF!,ráták!$C$9:$AX$9,1)+2,FALSE),"") -> 
AI36: =IFERROR( IF(VLOOKUP($M36,Partnerek!$A$9:$K$106,11,FALSE)="","",VLOOKUP($M36,Partnerek!$A$9:$K$106,11,FALSE)),"") ->  | AJ36: =IFERROR( IF(RIGHT($A36,2)="BE","HU", IF(VLOOKUP($N36,Partnerek!$A$9:$K$106,11,FALSE)="","",VLOOKUP($N36,Partnerek!$A$9:$K$106,11,FALSE))),"") ->  | AK36: =IFERROR(VLOOKUP(AJ36,ráták!$A$10:$AX$13,MATCH(Q36+T36+W36,ráták!$C$9:$AX$9,1)+2,FALSE),"") ->  | AL36: =IFERROR(VLOOKUP(AJ36,ráták!$A$10:$AX$13,MATCH(#REF!+#REF!+#REF!,ráták!$C$9:$AX$9,1)+2,FALSE),"") -> 
AI37: =IFERROR( IF(VLOOKUP($M37,Partnerek!$A$9:$K$106,11,FALSE)="","",VLOOKUP($M37,Partnerek!$A$9:$K$106,11,FALSE)),"") ->  | AJ37: =IFERROR( IF(RIGHT($A37,2)="BE","HU", IF(VLOOKUP($N37,Partnerek!$A$9:$K$106,11,FALSE)="","",VLOOKUP($N37,Partnerek!$A$9:$K$106,11,FALSE))),"") ->  | AK37: =IFERROR(VLOOKUP(AJ37,ráták!$A$10:$AX$13,MATCH(Q37+T37+W37,ráták!$C$9:$AX$9,1)+2,FALSE),"") ->  | AL37: =IFERROR(VLOOKUP(AJ37,ráták!$A$10:$AX$13,MATCH(#REF!+#REF!+#REF!,ráták!$C$9:$AX$9,1)+2,FALSE),"") -> 
AI38: =IFERROR( IF(VLOOKUP($M38,Partnerek!$A$9:$K$106,11,FALSE)="","",VLOOKUP($M38,Partnerek!$A$9:$K$106,11,FALSE)),"") ->  | AJ38: =IFERROR( IF(RIGHT($A38,2)="BE","HU", IF(VLOOKUP($N38,Partnerek!$A$9:$K$106,11,FALSE)="","",VLOOKUP($N38,Partnerek!$A$9:$K$106,11,FALSE))),"") ->  | AK38: =IFERROR(VLOOKUP(AJ38,ráták!$A$10:$AX$13,MATCH(Q38+T38+W38,ráták!$C$9:$AX$9,1)+2,FALSE),"") ->  | AL38: =IFERROR(VLOOKUP(AJ38,ráták!$A$10:$AX$13,MATCH(#REF!+#REF!+#REF!,ráták!$C$9:$AX$9,1)+2,FALSE),"") -> 
AI39: =IFERROR( IF(VLOOKUP($M39,Partnerek!$A$9:$K$106,11,FALSE)="","",VLOOKUP($M39,Partnerek!$A$9:$K$106,11,FALSE)),"") ->  | AJ39: =IFERROR( IF(RIGHT($A39,2)="BE","HU", IF(VLOOKUP($N39,Partnerek!$A$9:$K$106,11,FALSE)="","",VLOOKUP($N39,Partnerek!$A$9:$K$106,11,FALSE))),"") ->  | AK39: =IFERROR(VLOOKUP(AJ39,ráták!$A$10:$AX$13,MATCH(Q39+T39+W39,ráták!$C$9:$AX$9,1)+2,FALSE),"") ->  | AL39: =IFERROR(VLOOKUP(AJ39,ráták!$A$10:$AX$13,MATCH(#REF!+#REF!+#REF!,ráták!$C$9:$AX$9,1)+2,FALSE),"") -> 
AI40: =IFERROR( IF(VLOOKUP($M40,Partnerek!$A$9:$K$106,11,FALSE)="","",VLOOKUP($M40,Partnerek!$A$9:$K$106,11,FALSE)),"") ->  | AJ40: =IFERROR( IF(RIGHT($A40,2)="BE","HU", IF(VLOOKUP($N40,Partnerek!$A$9:$K$106,11,FALSE)="","",VLOOKUP($N40,Partnerek!$A$9:$K$106,11,FALSE))),"") ->  | AK40: =IFERROR(VLOOKUP(AJ40,ráták!$A$10:$AX$13,MATCH(Q40+T40+W40,ráták!$C$9:$AX$9,1)+2,FALSE),"") ->  | AL40: =IFERROR(VLOOKUP(AJ40,ráták!$A$10:$AX$13,MATCH(#REF!+#REF!+#REF!,ráták!$C$9:$AX$9,1)+2,FALSE),"") -> 
AC41: =IFERROR( IF( ((RIGHT(A41,2)="KI")*(AI41="HU")*(AJ41<>"HU"))+((RIGHT(A41,2)="BE")*(AJ41="HU")*(AJ41="HU")), IF(A41<>"",AK41,""),""),"") ->  | AI41: =IFERROR( IF(VLOOKUP($M41,Partnerek!$A$9:$K$106,11,FALSE)="","",VLOOKUP($M41,Partnerek!$A$9:$K$106,11,FALSE)),"") ->  | AJ41: =IFERROR( IF(RIGHT($A41,2)="BE","HU", IF(VLOOKUP($N41,Partnerek!$A$9:$K$106,11,FALSE)="","",VLOOKUP($N41,Partnerek!$A$9:$K$106,11,FALSE))),"") ->  | AK41: =IFERROR(VLOOKUP(AJ41,ráták!$A$10:$AX$13,MATCH(Q41+T41+W41,ráták!$C$9:$AX$9,1)+2,FALSE),"") ->  | AL41: =IFERROR(VLOOKUP(AJ41,ráták!$A$10:$AX$13,MATCH(#REF!+#REF!+#REF!,ráták!$C$9:$AX$9,1)+2,FALSE),"") -> 
AI42: =IFERROR( IF(VLOOKUP($M42,Partnerek!$A$9:$K$106,11,FALSE)="","",VLOOKUP($M42,Partnerek!$A$9:$K$106,11,FALSE)),"") ->  | AJ42: =IFERROR( IF(RIGHT($A42,2)="BE","HU", IF(VLOOKUP($N42,Partnerek!$A$9:$K$106,11,FALSE)="","",VLOOKUP($N42,Partnerek!$A$9:$K$106,11,FALSE))),"") ->  | AK42: =IFERROR(VLOOKUP(AJ42,ráták!$A$10:$AX$13,MATCH(Q42+T42+W42,ráták!$C$9:$AX$9,1)+2,FALSE),"") ->  | AL42: =IFERROR(VLOOKUP(AJ42,ráták!$A$10:$AX$13,MATCH(#REF!+#REF!+#REF!,ráták!$C$9:$AX$9,1)+2,FALSE),"") -> 
AI43: =IFERROR( IF(VLOOKUP($M43,Partnerek!$A$9:$K$106,11,FALSE)="","",VLOOKUP($M43,Partnerek!$A$9:$K$106,11,FALSE)),"") ->  | AJ43: =IFERROR( IF(RIGHT($A43,2)="BE","HU", IF(VLOOKUP($N43,Partnerek!$A$9:$K$106,11,FALSE)="","",VLOOKUP($N43,Partnerek!$A$9:$K$106,11,FALSE))),"") ->  | AK43: =IFERROR(VLOOKUP(AJ43,ráták!$A$10:$AX$13,MATCH(Q43+T43+W43,ráták!$C$9:$AX$9,1)+2,FALSE),"") ->  | AL43: =IFERROR(VLOOKUP(AJ43,ráták!$A$10:$AX$13,MATCH(#REF!+#REF!+#REF!,ráták!$C$9:$AX$9,1)+2,FALSE),"") -> 
AI44: =IFERROR( IF(VLOOKUP($M44,Partnerek!$A$9:$K$106,11,FALSE)="","",VLOOKUP($M44,Partnerek!$A$9:$K$106,11,FALSE)),"") ->  | AJ44: =IFERROR( IF(RIGHT($A44,2)="BE","HU", IF(VLOOKUP($N44,Partnerek!$A$9:$K$106,11,FALSE)="","",VLOOKUP($N44,Partnerek!$A$9:$K$106,11,FALSE))),"") ->  | AK44: =IFERROR(VLOOKUP(AJ44,ráták!$A$10:$AX$13,MATCH(Q44+T44+W44,ráták!$C$9:$AX$9,1)+2,FALSE),"") ->  | AL44: =IFERROR(VLOOKUP(AJ44,ráták!$A$10:$AX$13,MATCH(#REF!+#REF!+#REF!,ráták!$C$9:$AX$9,1)+2,FALSE),"") -> 
AI45: =IFERROR( IF(VLOOKUP($M45,Partnerek!$A$9:$K$106,11,FALSE)="","",VLOOKUP($M45,Partnerek!$A$9:$K$106,11,FALSE)),"") ->  | AJ45: =IFERROR( IF(RIGHT($A45,2)="BE","HU", IF(VLOOKUP($N45,Partnerek!$A$9:$K$106,11,FALSE)="","",VLOOKUP($N45,Partnerek!$A$9:$K$106,11,FALSE))),"") ->  | AK45: =IFERROR(VLOOKUP(AJ45,ráták!$A$10:$AX$13,MATCH(Q45+T45+W45,ráták!$C$9:$AX$9,1)+2,FALSE),"") ->  | AL45: =IFERROR(VLOOKUP(AJ45,ráták!$A$10:$AX$13,MATCH(#REF!+#REF!+#REF!,ráták!$C$9:$AX$9,1)+2,FALSE),"") -> 
AI46: =IFERROR( IF(VLOOKUP($M46,Partnerek!$A$9:$K$106,11,FALSE)="","",VLOOKUP($M46,Partnerek!$A$9:$K$106,11,FALSE)),"") ->  | AJ46: =IFERROR( IF(RIGHT($A46,2)="BE","HU", IF(VLOOKUP($N46,Partnerek!$A$9:$K$106,11,FALSE)="","",VLOOKUP($N46,Partnerek!$A$9:$K$106,11,FALSE))),"") ->  | AK46: =IFERROR(VLOOKUP(AJ46,ráták!$A$10:$AX$13,MATCH(Q46+T46+W46,ráták!$C$9:$AX$9,1)+2,FALSE),"") ->  | AL46: =IFERROR(VLOOKUP(AJ46,ráták!$A$10:$AX$13,MATCH(#REF!+#REF!+#REF!,ráták!$C$9:$AX$9,1)+2,FALSE),"") -> 
AI47: =IFERROR( IF(VLOOKUP($M47,Partnerek!$A$9:$K$106,11,FALSE)="","",VLOOKUP($M47,Partnerek!$A$9:$K$106,11,FALSE)),"") ->  | AJ47: =IFERROR( IF(RIGHT($A47,2)="BE","HU", IF(VLOOKUP($N47,Partnerek!$A$9:$K$106,11,FALSE)="","",VLOOKUP($N47,Partnerek!$A$9:$K$106,11,FALSE))),"") ->  | AK47: =IFERROR(VLOOKUP(AJ47,ráták!$A$10:$AX$13,MATCH(Q47+T47+W47,ráták!$C$9:$AX$9,1)+2,FALSE),"") ->  | AL47: =IFERROR(VLOOKUP(AJ47,ráták!$A$10:$AX$13,MATCH(#REF!+#REF!+#REF!,ráták!$C$9:$AX$9,1)+2,FALSE),"") -> 
AI48: =IFERROR( IF(VLOOKUP($M48,Partnerek!$A$9:$K$106,11,FALSE)="","",VLOOKUP($M48,Partnerek!$A$9:$K$106,11,FALSE)),"") ->  | AJ48: =IFERROR( IF(RIGHT($A48,2)="BE","HU", IF(VLOOKUP($N48,Partnerek!$A$9:$K$106,11,FALSE)="","",VLOOKUP($N48,Partnerek!$A$9:$K$106,11,FALSE))),"") ->  | AK48: =IFERROR(VLOOKUP(AJ48,ráták!$A$10:$AX$13,MATCH(Q48+T48+W48,ráták!$C$9:$AX$9,1)+2,FALSE),"") ->  | AL48: =IFERROR(VLOOKUP(AJ48,ráták!$A$10:$AX$13,MATCH(#REF!+#REF!+#REF!,ráták!$C$9:$AX$9,1)+2,FALSE),"") -> 
AI49: =IFERROR( IF(VLOOKUP($M49,Partnerek!$A$9:$K$106,11,FALSE)="","",VLOOKUP($M49,Partnerek!$A$9:$K$106,11,FALSE)),"") ->  | AJ49: =IFERROR( IF(RIGHT($A49,2)="BE","HU", IF(VLOOKUP($N49,Partnerek!$A$9:$K$106,11,FALSE)="","",VLOOKUP($N49,Partnerek!$A$9:$K$106,11,FALSE))),"") ->  | AK49: =IFERROR(VLOOKUP(AJ49,ráták!$A$10:$AX$13,MATCH(Q49+T49+W49,ráták!$C$9:$AX$9,1)+2,FALSE),"") ->  | AL49: =IFERROR(VLOOKUP(AJ49,ráták!$A$10:$AX$13,MATCH(#REF!+#REF!+#REF!,ráták!$C$9:$AX$9,1)+2,FALSE),"") -> 
AI50: =IFERROR( IF(VLOOKUP($M50,Partnerek!$A$9:$K$106,11,FALSE)="","",VLOOKUP($M50,Partnerek!$A$9:$K$106,11,FALSE)),"") ->  | AJ50: =IFERROR( IF(RIGHT($A50,2)="BE","HU", IF(VLOOKUP($N50,Partnerek!$A$9:$K$106,11,FALSE)="","",VLOOKUP($N50,Partnerek!$A$9:$K$106,11,FALSE))),"") ->  | AK50: =IFERROR(VLOOKUP(AJ50,ráták!$A$10:$AX$13,MATCH(Q50+T50+W50,ráták!$C$9:$AX$9,1)+2,FALSE),"") ->  | AL50: =IFERROR(VLOOKUP(AJ50,ráták!$A$10:$AX$13,MATCH(#REF!+#REF!+#REF!,ráták!$C$9:$AX$9,1)+2,FALSE),"") -> 
AI51: =IFERROR( IF(VLOOKUP($M51,Partnerek!$A$9:$K$106,11,FALSE)="","",VLOOKUP($M51,Partnerek!$A$9:$K$106,11,FALSE)),"") ->  | AJ51: =IFERROR( IF(RIGHT($A51,2)="BE","HU", IF(VLOOKUP($N51,Partnerek!$A$9:$K$106,11,FALSE)="","",VLOOKUP($N51,Partnerek!$A$9:$K$106,11,FALSE))),"") ->  | AK51: =IFERROR(VLOOKUP(AJ51,ráták!$A$10:$AX$13,MATCH(Q51+T51+W51,ráták!$C$9:$AX$9,1)+2,FALSE),"") ->  | AL51: =IFERROR(VLOOKUP(AJ51,ráták!$A$10:$AX$13,MATCH(#REF!+#REF!+#REF!,ráták!$C$9:$AX$9,1)+2,FALSE),"") -> 
AI52: =IFERROR( IF(VLOOKUP($M52,Partnerek!$A$9:$K$106,11,FALSE)="","",VLOOKUP($M52,Partnerek!$A$9:$K$106,11,FALSE)),"") ->  | AJ52: =IFERROR( IF(RIGHT($A52,2)="BE","HU", IF(VLOOKUP($N52,Partnerek!$A$9:$K$106,11,FALSE)="","",VLOOKUP($N52,Partnerek!$A$9:$K$106,11,FALSE))),"") ->  | AK52: =IFERROR(VLOOKUP(AJ52,ráták!$A$10:$AX$13,MATCH(Q52+T52+W52,ráták!$C$9:$AX$9,1)+2,FALSE),"") ->  | AL52: =IFERROR(VLOOKUP(AJ52,ráták!$A$10:$AX$13,MATCH(#REF!+#REF!+#REF!,ráták!$C$9:$AX$9,1)+2,FALSE),"") -> 
AI53: =IFERROR( IF(VLOOKUP($M53,Partnerek!$A$9:$K$106,11,FALSE)="","",VLOOKUP($M53,Partnerek!$A$9:$K$106,11,FALSE)),"") ->  | AJ53: =IFERROR( IF(RIGHT($A53,2)="BE","HU", IF(VLOOKUP($N53,Partnerek!$A$9:$K$106,11,FALSE)="","",VLOOKUP($N53,Partnerek!$A$9:$K$106,11,FALSE))),"") ->  | AK53: =IFERROR(VLOOKUP(AJ53,ráták!$A$10:$AX$13,MATCH(Q53+T53+W53,ráták!$C$9:$AX$9,1)+2,FALSE),"") ->  | AL53: =IFERROR(VLOOKUP(AJ53,ráták!$A$10:$AX$13,MATCH(#REF!+#REF!+#REF!,ráták!$C$9:$AX$9,1)+2,FALSE),"") -> 
AI54: =IFERROR( IF(VLOOKUP($M54,Partnerek!$A$9:$K$106,11,FALSE)="","",VLOOKUP($M54,Partnerek!$A$9:$K$106,11,FALSE)),"") ->  | AJ54: =IFERROR( IF(RIGHT($A54,2)="BE","HU", IF(VLOOKUP($N54,Partnerek!$A$9:$K$106,11,FALSE)="","",VLOOKUP($N54,Partnerek!$A$9:$K$106,11,FALSE))),"") ->  | AK54: =IFERROR(VLOOKUP(AJ54,ráták!$A$10:$AX$13,MATCH(Q54+T54+W54,ráták!$C$9:$AX$9,1)+2,FALSE),"") ->  | AL54: =IFERROR(VLOOKUP(AJ54,ráták!$A$10:$AX$13,MATCH(#REF!+#REF!+#REF!,ráták!$C$9:$AX$9,1)+2,FALSE),"") -> 
AI55: =IFERROR( IF(VLOOKUP($M55,Partnerek!$A$9:$K$106,11,FALSE)="","",VLOOKUP($M55,Partnerek!$A$9:$K$106,11,FALSE)),"") ->  | AJ55: =IFERROR( IF(RIGHT($A55,2)="BE","HU", IF(VLOOKUP($N55,Partnerek!$A$9:$K$106,11,FALSE)="","",VLOOKUP($N55,Partnerek!$A$9:$K$106,11,FALSE))),"") ->  | AK55: =IFERROR(VLOOKUP(AJ55,ráták!$A$10:$AX$13,MATCH(Q55+T55+W55,ráták!$C$9:$AX$9,1)+2,FALSE),"") ->  | AL55: =IFERROR(VLOOKUP(AJ55,ráták!$A$10:$AX$13,MATCH(#REF!+#REF!+#REF!,ráták!$C$9:$AX$9,1)+2,FALSE),"") -> 
AI56: =IFERROR( IF(VLOOKUP($M56,Partnerek!$A$9:$K$106,11,FALSE)="","",VLOOKUP($M56,Partnerek!$A$9:$K$106,11,FALSE)),"") ->  | AJ56: =IFERROR( IF(RIGHT($A56,2)="BE","HU", IF(VLOOKUP($N56,Partnerek!$A$9:$K$106,11,FALSE)="","",VLOOKUP($N56,Partnerek!$A$9:$K$106,11,FALSE))),"") ->  | AK56: =IFERROR(VLOOKUP(AJ56,ráták!$A$10:$AX$13,MATCH(Q56+T56+W56,ráták!$C$9:$AX$9,1)+2,FALSE),"") ->  | AL56: =IFERROR(VLOOKUP(AJ56,ráták!$A$10:$AX$13,MATCH(#REF!+#REF!+#REF!,ráták!$C$9:$AX$9,1)+2,FALSE),"") -> 
AI57: =IFERROR( IF(VLOOKUP($M57,Partnerek!$A$9:$K$106,11,FALSE)="","",VLOOKUP($M57,Partnerek!$A$9:$K$106,11,FALSE)),"") ->  | AJ57: =IFERROR( IF(RIGHT($A57,2)="BE","HU", IF(VLOOKUP($N57,Partnerek!$A$9:$K$106,11,FALSE)="","",VLOOKUP($N57,Partnerek!$A$9:$K$106,11,FALSE))),"") ->  | AK57: =IFERROR(VLOOKUP(AJ57,ráták!$A$10:$AX$13,MATCH(Q57+T57+W57,ráták!$C$9:$AX$9,1)+2,FALSE),"") ->  | AL57: =IFERROR(VLOOKUP(AJ57,ráták!$A$10:$AX$13,MATCH(#REF!+#REF!+#REF!,ráták!$C$9:$AX$9,1)+2,FALSE),"") -> 
AI58: =IFERROR( IF(VLOOKUP($M58,Partnerek!$A$9:$K$106,11,FALSE)="","",VLOOKUP($M58,Partnerek!$A$9:$K$106,11,FALSE)),"") ->  | AJ58: =IFERROR( IF(RIGHT($A58,2)="BE","HU", IF(VLOOKUP($N58,Partnerek!$A$9:$K$106,11,FALSE)="","",VLOOKUP($N58,Partnerek!$A$9:$K$106,11,FALSE))),"") ->  | AK58: =IFERROR(VLOOKUP(AJ58,ráták!$A$10:$AX$13,MATCH(Q58+T58+W58,ráták!$C$9:$AX$9,1)+2,FALSE),"") ->  | AL58: =IFERROR(VLOOKUP(AJ58,ráták!$A$10:$AX$13,MATCH(#REF!+#REF!+#REF!,ráták!$C$9:$AX$9,1)+2,FALSE),"") -> 
AI59: =IFERROR( IF(VLOOKUP($M59,Partnerek!$A$9:$K$106,11,FALSE)="","",VLOOKUP($M59,Partnerek!$A$9:$K$106,11,FALSE)),"") ->  | AJ59: =IFERROR( IF(RIGHT($A59,2)="BE","HU", IF(VLOOKUP($N59,Partnerek!$A$9:$K$106,11,FALSE)="","",VLOOKUP($N59,Partnerek!$A$9:$K$106,11,FALSE))),"") ->  | AK59: =IFERROR(VLOOKUP(AJ59,ráták!$A$10:$AX$13,MATCH(Q59+T59+W59,ráták!$C$9:$AX$9,1)+2,FALSE),"") ->  | AL59: =IFERROR(VLOOKUP(AJ59,ráták!$A$10:$AX$13,MATCH(#REF!+#REF!+#REF!,ráták!$C$9:$AX$9,1)+2,FALSE),"") -> 
AI60: =IFERROR( IF(VLOOKUP($M60,Partnerek!$A$9:$K$106,11,FALSE)="","",VLOOKUP($M60,Partnerek!$A$9:$K$106,11,FALSE)),"") ->  | AJ60: =IFERROR( IF(RIGHT($A60,2)="BE","HU", IF(VLOOKUP($N60,Partnerek!$A$9:$K$106,11,FALSE)="","",VLOOKUP($N60,Partnerek!$A$9:$K$106,11,FALSE))),"") ->  | AK60: =IFERROR(VLOOKUP(AJ60,ráták!$A$10:$AX$13,MATCH(Q60+T60+W60,ráták!$C$9:$AX$9,1)+2,FALSE),"") ->  | AL60: =IFERROR(VLOOKUP(AJ60,ráták!$A$10:$AX$13,MATCH(#REF!+#REF!+#REF!,ráták!$C$9:$AX$9,1)+2,FALSE),"") -> 
AI61: =IFERROR( IF(VLOOKUP($M61,Partnerek!$A$9:$K$106,11,FALSE)="","",VLOOKUP($M61,Partnerek!$A$9:$K$106,11,FALSE)),"") ->  | AJ61: =IFERROR( IF(RIGHT($A61,2)="BE","HU", IF(VLOOKUP($N61,Partnerek!$A$9:$K$106,11,FALSE)="","",VLOOKUP($N61,Partnerek!$A$9:$K$106,11,FALSE))),"") ->  | AK61: =IFERROR(VLOOKUP(AJ61,ráták!$A$10:$AX$13,MATCH(Q61+T61+W61,ráták!$C$9:$AX$9,1)+2,FALSE),"") ->  | AL61: =IFERROR(VLOOKUP(AJ61,ráták!$A$10:$AX$13,MATCH(#REF!+#REF!+#REF!,ráták!$C$9:$AX$9,1)+2,FALSE),"") -> 
AI62: =IFERROR( IF(VLOOKUP($M62,Partnerek!$A$9:$K$106,11,FALSE)="","",VLOOKUP($M62,Partnerek!$A$9:$K$106,11,FALSE)),"") ->  | AJ62: =IFERROR( IF(RIGHT($A62,2)="BE","HU", IF(VLOOKUP($N62,Partnerek!$A$9:$K$106,11,FALSE)="","",VLOOKUP($N62,Partnerek!$A$9:$K$106,11,FALSE))),"") ->  | AK62: =IFERROR(VLOOKUP(AJ62,ráták!$A$10:$AX$13,MATCH(Q62+T62+W62,ráták!$C$9:$AX$9,1)+2,FALSE),"") ->  | AL62: =IFERROR(VLOOKUP(AJ62,ráták!$A$10:$AX$13,MATCH(#REF!+#REF!+#REF!,ráták!$C$9:$AX$9,1)+2,FALSE),"") -> 
AI63: =IFERROR( IF(VLOOKUP($M63,Partnerek!$A$9:$K$106,11,FALSE)="","",VLOOKUP($M63,Partnerek!$A$9:$K$106,11,FALSE)),"") ->  | AJ63: =IFERROR( IF(RIGHT($A63,2)="BE","HU", IF(VLOOKUP($N63,Partnerek!$A$9:$K$106,11,FALSE)="","",VLOOKUP($N63,Partnerek!$A$9:$K$106,11,FALSE))),"") ->  | AK63: =IFERROR(VLOOKUP(AJ63,ráták!$A$10:$AX$13,MATCH(Q63+T63+W63,ráták!$C$9:$AX$9,1)+2,FALSE),"") ->  | AL63: =IFERROR(VLOOKUP(AJ63,ráták!$A$10:$AX$13,MATCH(#REF!+#REF!+#REF!,ráták!$C$9:$AX$9,1)+2,FALSE),"") -> 
AI64: =IFERROR( IF(VLOOKUP($M64,Partnerek!$A$9:$K$106,11,FALSE)="","",VLOOKUP($M64,Partnerek!$A$9:$K$106,11,FALSE)),"") ->  | AJ64: =IFERROR( IF(RIGHT($A64,2)="BE","HU", IF(VLOOKUP($N64,Partnerek!$A$9:$K$106,11,FALSE)="","",VLOOKUP($N64,Partnerek!$A$9:$K$106,11,FALSE))),"") ->  | AK64: =IFERROR(VLOOKUP(AJ64,ráták!$A$10:$AX$13,MATCH(Q64+T64+W64,ráták!$C$9:$AX$9,1)+2,FALSE),"") ->  | AL64: =IFERROR(VLOOKUP(AJ64,ráták!$A$10:$AX$13,MATCH(#REF!+#REF!+#REF!,ráták!$C$9:$AX$9,1)+2,FALSE),"") -> 
AI65: =IFERROR( IF(VLOOKUP($M65,Partnerek!$A$9:$K$106,11,FALSE)="","",VLOOKUP($M65,Partnerek!$A$9:$K$106,11,FALSE)),"") ->  | AJ65: =IFERROR( IF(RIGHT($A65,2)="BE","HU", IF(VLOOKUP($N65,Partnerek!$A$9:$K$106,11,FALSE)="","",VLOOKUP($N65,Partnerek!$A$9:$K$106,11,FALSE))),"") ->  | AK65: =IFERROR(VLOOKUP(AJ65,ráták!$A$10:$AX$13,MATCH(Q65+T65+W65,ráták!$C$9:$AX$9,1)+2,FALSE),"") ->  | AL65: =IFERROR(VLOOKUP(AJ65,ráták!$A$10:$AX$13,MATCH(#REF!+#REF!+#REF!,ráták!$C$9:$AX$9,1)+2,FALSE),"") -> 
AI66: =IFERROR( IF(VLOOKUP($M66,Partnerek!$A$9:$K$106,11,FALSE)="","",VLOOKUP($M66,Partnerek!$A$9:$K$106,11,FALSE)),"") ->  | AJ66: =IFERROR( IF(RIGHT($A66,2)="BE","HU", IF(VLOOKUP($N66,Partnerek!$A$9:$K$106,11,FALSE)="","",VLOOKUP($N66,Partnerek!$A$9:$K$106,11,FALSE))),"") ->  | AK66: =IFERROR(VLOOKUP(AJ66,ráták!$A$10:$AX$13,MATCH(Q66+T66+W66,ráták!$C$9:$AX$9,1)+2,FALSE),"") ->  | AL66: =IFERROR(VLOOKUP(AJ66,ráták!$A$10:$AX$13,MATCH(#REF!+#REF!+#REF!,ráták!$C$9:$AX$9,1)+2,FALSE),"") -> 
AI67: =IFERROR( IF(VLOOKUP($M67,Partnerek!$A$9:$K$106,11,FALSE)="","",VLOOKUP($M67,Partnerek!$A$9:$K$106,11,FALSE)),"") ->  | AJ67: =IFERROR( IF(RIGHT($A67,2)="BE","HU", IF(VLOOKUP($N67,Partnerek!$A$9:$K$106,11,FALSE)="","",VLOOKUP($N67,Partnerek!$A$9:$K$106,11,FALSE))),"") ->  | AK67: =IFERROR(VLOOKUP(AJ67,ráták!$A$10:$AX$13,MATCH(Q67+T67+W67,ráták!$C$9:$AX$9,1)+2,FALSE),"") ->  | AL67: =IFERROR(VLOOKUP(AJ67,ráták!$A$10:$AX$13,MATCH(#REF!+#REF!+#REF!,ráták!$C$9:$AX$9,1)+2,FALSE),"") -> 
AI68: =IFERROR( IF(VLOOKUP($M68,Partnerek!$A$9:$K$106,11,FALSE)="","",VLOOKUP($M68,Partnerek!$A$9:$K$106,11,FALSE)),"") ->  | AJ68: =IFERROR( IF(RIGHT($A68,2)="BE","HU", IF(VLOOKUP($N68,Partnerek!$A$9:$K$106,11,FALSE)="","",VLOOKUP($N68,Partnerek!$A$9:$K$106,11,FALSE))),"") ->  | AK68: =IFERROR(VLOOKUP(AJ68,ráták!$A$10:$AX$13,MATCH(Q68+T68+W68,ráták!$C$9:$AX$9,1)+2,FALSE),"") ->  | AL68: =IFERROR(VLOOKUP(AJ68,ráták!$A$10:$AX$13,MATCH(#REF!+#REF!+#REF!,ráták!$C$9:$AX$9,1)+2,FALSE),"") -> 
AI69: =IFERROR( IF(VLOOKUP($M69,Partnerek!$A$9:$K$106,11,FALSE)="","",VLOOKUP($M69,Partnerek!$A$9:$K$106,11,FALSE)),"") ->  | AJ69: =IFERROR( IF(RIGHT($A69,2)="BE","HU", IF(VLOOKUP($N69,Partnerek!$A$9:$K$106,11,FALSE)="","",VLOOKUP($N69,Partnerek!$A$9:$K$106,11,FALSE))),"") ->  | AK69: =IFERROR(VLOOKUP(AJ69,ráták!$A$10:$AX$13,MATCH(Q69+T69+W69,ráták!$C$9:$AX$9,1)+2,FALSE),"") ->  | AL69: =IFERROR(VLOOKUP(AJ69,ráták!$A$10:$AX$13,MATCH(#REF!+#REF!+#REF!,ráták!$C$9:$AX$9,1)+2,FALSE),"") -> 
AI70: =IFERROR( IF(VLOOKUP($M70,Partnerek!$A$9:$K$106,11,FALSE)="","",VLOOKUP($M70,Partnerek!$A$9:$K$106,11,FALSE)),"") ->  | AJ70: =IFERROR( IF(RIGHT($A70,2)="BE","HU", IF(VLOOKUP($N70,Partnerek!$A$9:$K$106,11,FALSE)="","",VLOOKUP($N70,Partnerek!$A$9:$K$106,11,FALSE))),"") ->  | AK70: =IFERROR(VLOOKUP(AJ70,ráták!$A$10:$AX$13,MATCH(Q70+T70+W70,ráták!$C$9:$AX$9,1)+2,FALSE),"") ->  | AL70: =IFERROR(VLOOKUP(AJ70,ráták!$A$10:$AX$13,MATCH(#REF!+#REF!+#REF!,ráták!$C$9:$AX$9,1)+2,FALSE),"") -> 
AI71: =IFERROR( IF(VLOOKUP($M71,Partnerek!$A$9:$K$106,11,FALSE)="","",VLOOKUP($M71,Partnerek!$A$9:$K$106,11,FALSE)),"") ->  | AJ71: =IFERROR( IF(RIGHT($A71,2)="BE","HU", IF(VLOOKUP($N71,Partnerek!$A$9:$K$106,11,FALSE)="","",VLOOKUP($N71,Partnerek!$A$9:$K$106,11,FALSE))),"") ->  | AK71: =IFERROR(VLOOKUP(AJ71,ráták!$A$10:$AX$13,MATCH(Q71+T71+W71,ráták!$C$9:$AX$9,1)+2,FALSE),"") ->  | AL71: =IFERROR(VLOOKUP(AJ71,ráták!$A$10:$AX$13,MATCH(#REF!+#REF!+#REF!,ráták!$C$9:$AX$9,1)+2,FALSE),"") -> 
AI72: =IFERROR( IF(VLOOKUP($M72,Partnerek!$A$9:$K$106,11,FALSE)="","",VLOOKUP($M72,Partnerek!$A$9:$K$106,11,FALSE)),"") ->  | AJ72: =IFERROR( IF(RIGHT($A72,2)="BE","HU", IF(VLOOKUP($N72,Partnerek!$A$9:$K$106,11,FALSE)="","",VLOOKUP($N72,Partnerek!$A$9:$K$106,11,FALSE))),"") ->  | AK72: =IFERROR(VLOOKUP(AJ72,ráták!$A$10:$AX$13,MATCH(Q72+T72+W72,ráták!$C$9:$AX$9,1)+2,FALSE),"") ->  | AL72: =IFERROR(VLOOKUP(AJ72,ráták!$A$10:$AX$13,MATCH(#REF!+#REF!+#REF!,ráták!$C$9:$AX$9,1)+2,FALSE),"") -> 
M73: =IF((IFERROR(RIGHT($A73,2),"")="KI"),Erasmus_kod,"") ->  | AC73: =IFERROR( IF( ((RIGHT(A73,2)="KI")*(AI73="HU")*(AJ73<>"HU"))+((RIGHT(A73,2)="BE")*(AJ73="HU")*(AJ73="HU")), IF(A73<>"",AK73,""),""),"") ->  | AI73: =IFERROR( IF(VLOOKUP($M73,Partnerek!$A$9:$K$106,11,FALSE)="","",VLOOKUP($M73,Partnerek!$A$9:$K$106,11,FALSE)),"") ->  | AJ73: =IFERROR( IF(RIGHT($A73,2)="BE","HU", IF(VLOOKUP($N73,Partnerek!$A$9:$K$106,11,FALSE)="","",VLOOKUP($N73,Partnerek!$A$9:$K$106,11,FALSE))),"") ->  | AK73: =IFERROR(VLOOKUP(AJ73,ráták!$A$10:$AX$13,MATCH(Q73+T73+W73,ráták!$C$9:$AX$9,1)+2,FALSE),"") ->  | AL73: =IFERROR(VLOOKUP(AJ73,ráták!$A$10:$AX$13,MATCH(#REF!+#REF!+#REF!,ráták!$C$9:$AX$9,1)+2,FALSE),"") -> 
AI74: =IFERROR( IF(VLOOKUP($M74,Partnerek!$A$9:$K$106,11,FALSE)="","",VLOOKUP($M74,Partnerek!$A$9:$K$106,11,FALSE)),"") ->  | AJ74: =IFERROR( IF(RIGHT($A74,2)="BE","HU", IF(VLOOKUP($N74,Partnerek!$A$9:$K$106,11,FALSE)="","",VLOOKUP($N74,Partnerek!$A$9:$K$106,11,FALSE))),"") ->  | AK74: =IFERROR(VLOOKUP(AJ74,ráták!$A$10:$AX$13,MATCH(Q74+T74+W74,ráták!$C$9:$AX$9,1)+2,FALSE),"") ->  | AL74: =IFERROR(VLOOKUP(AJ74,ráták!$A$10:$AX$13,MATCH(#REF!+#REF!+#REF!,ráták!$C$9:$AX$9,1)+2,FALSE),"") -> 
AI75: =IFERROR( IF(VLOOKUP($M75,Partnerek!$A$9:$K$106,11,FALSE)="","",VLOOKUP($M75,Partnerek!$A$9:$K$106,11,FALSE)),"") ->  | AJ75: =IFERROR( IF(RIGHT($A75,2)="BE","HU", IF(VLOOKUP($N75,Partnerek!$A$9:$K$106,11,FALSE)="","",VLOOKUP($N75,Partnerek!$A$9:$K$106,11,FALSE))),"") ->  | AK75: =IFERROR(VLOOKUP(AJ75,ráták!$A$10:$AX$13,MATCH(Q75+T75+W75,ráták!$C$9:$AX$9,1)+2,FALSE),"") ->  | AL75: =IFERROR(VLOOKUP(AJ75,ráták!$A$10:$AX$13,MATCH(#REF!+#REF!+#REF!,ráták!$C$9:$AX$9,1)+2,FALSE),"") -> 
AI76: =IFERROR( IF(VLOOKUP($M76,Partnerek!$A$9:$K$106,11,FALSE)="","",VLOOKUP($M76,Partnerek!$A$9:$K$106,11,FALSE)),"") ->  | AJ76: =IFERROR( IF(RIGHT($A76,2)="BE","HU", IF(VLOOKUP($N76,Partnerek!$A$9:$K$106,11,FALSE)="","",VLOOKUP($N76,Partnerek!$A$9:$K$106,11,FALSE))),"") ->  | AK76: =IFERROR(VLOOKUP(AJ76,ráták!$A$10:$AX$13,MATCH(Q76+T76+W76,ráták!$C$9:$AX$9,1)+2,FALSE),"") ->  | AL76: =IFERROR(VLOOKUP(AJ76,ráták!$A$10:$AX$13,MATCH(#REF!+#REF!+#REF!,ráták!$C$9:$AX$9,1)+2,FALSE),"") -> 
AI77: =IFERROR( IF(VLOOKUP($M77,Partnerek!$A$9:$K$106,11,FALSE)="","",VLOOKUP($M77,Partnerek!$A$9:$K$106,11,FALSE)),"") ->  | AJ77: =IFERROR( IF(RIGHT($A77,2)="BE","HU", IF(VLOOKUP($N77,Partnerek!$A$9:$K$106,11,FALSE)="","",VLOOKUP($N77,Partnerek!$A$9:$K$106,11,FALSE))),"") ->  | AK77: =IFERROR(VLOOKUP(AJ77,ráták!$A$10:$AX$13,MATCH(Q77+T77+W77,ráták!$C$9:$AX$9,1)+2,FALSE),"") ->  | AL77: =IFERROR(VLOOKUP(AJ77,ráták!$A$10:$AX$13,MATCH(#REF!+#REF!+#REF!,ráták!$C$9:$AX$9,1)+2,FALSE),"") -> 
AI78: =IFERROR( IF(VLOOKUP($M78,Partnerek!$A$9:$K$106,11,FALSE)="","",VLOOKUP($M78,Partnerek!$A$9:$K$106,11,FALSE)),"") ->  | AJ78: =IFERROR( IF(RIGHT($A78,2)="BE","HU", IF(VLOOKUP($N78,Partnerek!$A$9:$K$106,11,FALSE)="","",VLOOKUP($N78,Partnerek!$A$9:$K$106,11,FALSE))),"") ->  | AK78: =IFERROR(VLOOKUP(AJ78,ráták!$A$10:$AX$13,MATCH(Q78+T78+W78,ráták!$C$9:$AX$9,1)+2,FALSE),"") ->  | AL78: =IFERROR(VLOOKUP(AJ78,ráták!$A$10:$AX$13,MATCH(#REF!+#REF!+#REF!,ráták!$C$9:$AX$9,1)+2,FALSE),"") -> 
AI79: =IFERROR( IF(VLOOKUP($M79,Partnerek!$A$9:$K$106,11,FALSE)="","",VLOOKUP($M79,Partnerek!$A$9:$K$106,11,FALSE)),"") ->  | AJ79: =IFERROR( IF(RIGHT($A79,2)="BE","HU", IF(VLOOKUP($N79,Partnerek!$A$9:$K$106,11,FALSE)="","",VLOOKUP($N79,Partnerek!$A$9:$K$106,11,FALSE))),"") ->  | AK79: =IFERROR(VLOOKUP(AJ79,ráták!$A$10:$AX$13,MATCH(Q79+T79+W79,ráták!$C$9:$AX$9,1)+2,FALSE),"") ->  | AL79: =IFERROR(VLOOKUP(AJ79,ráták!$A$10:$AX$13,MATCH(#REF!+#REF!+#REF!,ráták!$C$9:$AX$9,1)+2,FALSE),"") -> 
AI80: =IFERROR( IF(VLOOKUP($M80,Partnerek!$A$9:$K$106,11,FALSE)="","",VLOOKUP($M80,Partnerek!$A$9:$K$106,11,FALSE)),"") ->  | AJ80: =IFERROR( IF(RIGHT($A80,2)="BE","HU", IF(VLOOKUP($N80,Partnerek!$A$9:$K$106,11,FALSE)="","",VLOOKUP($N80,Partnerek!$A$9:$K$106,11,FALSE))),"") ->  | AK80: =IFERROR(VLOOKUP(AJ80,ráták!$A$10:$AX$13,MATCH(Q80+T80+W80,ráták!$C$9:$AX$9,1)+2,FALSE),"") ->  | AL80: =IFERROR(VLOOKUP(AJ80,ráták!$A$10:$AX$13,MATCH(#REF!+#REF!+#REF!,ráták!$C$9:$AX$9,1)+2,FALSE),"") -> 
AI81: =IFERROR( IF(VLOOKUP($M81,Partnerek!$A$9:$K$106,11,FALSE)="","",VLOOKUP($M81,Partnerek!$A$9:$K$106,11,FALSE)),"") ->  | AJ81: =IFERROR( IF(RIGHT($A81,2)="BE","HU", IF(VLOOKUP($N81,Partnerek!$A$9:$K$106,11,FALSE)="","",VLOOKUP($N81,Partnerek!$A$9:$K$106,11,FALSE))),"") ->  | AK81: =IFERROR(VLOOKUP(AJ81,ráták!$A$10:$AX$13,MATCH(Q81+T81+W81,ráták!$C$9:$AX$9,1)+2,FALSE),"") ->  | AL81: =IFERROR(VLOOKUP(AJ81,ráták!$A$10:$AX$13,MATCH(#REF!+#REF!+#REF!,ráták!$C$9:$AX$9,1)+2,FALSE),"") -> 
AI82: =IFERROR( IF(VLOOKUP($M82,Partnerek!$A$9:$K$106,11,FALSE)="","",VLOOKUP($M82,Partnerek!$A$9:$K$106,11,FALSE)),"") ->  | AJ82: =IFERROR( IF(RIGHT($A82,2)="BE","HU", IF(VLOOKUP($N82,Partnerek!$A$9:$K$106,11,FALSE)="","",VLOOKUP($N82,Partnerek!$A$9:$K$106,11,FALSE))),"") ->  | AK82: =IFERROR(VLOOKUP(AJ82,ráták!$A$10:$AX$13,MATCH(Q82+T82+W82,ráták!$C$9:$AX$9,1)+2,FALSE),"") ->  | AL82: =IFERROR(VLOOKUP(AJ82,ráták!$A$10:$AX$13,MATCH(#REF!+#REF!+#REF!,ráták!$C$9:$AX$9,1)+2,FALSE),"") -> 
AI83: =IFERROR( IF(VLOOKUP($M83,Partnerek!$A$9:$K$106,11,FALSE)="","",VLOOKUP($M83,Partnerek!$A$9:$K$106,11,FALSE)),"") ->  | AJ83: =IFERROR( IF(RIGHT($A83,2)="BE","HU", IF(VLOOKUP($N83,Partnerek!$A$9:$K$106,11,FALSE)="","",VLOOKUP($N83,Partnerek!$A$9:$K$106,11,FALSE))),"") ->  | AK83: =IFERROR(VLOOKUP(AJ83,ráták!$A$10:$AX$13,MATCH(Q83+T83+W83,ráták!$C$9:$AX$9,1)+2,FALSE),"") ->  | AL83: =IFERROR(VLOOKUP(AJ83,ráták!$A$10:$AX$13,MATCH(#REF!+#REF!+#REF!,ráták!$C$9:$AX$9,1)+2,FALSE),"") -> 
AI84: =IFERROR( IF(VLOOKUP($M84,Partnerek!$A$9:$K$106,11,FALSE)="","",VLOOKUP($M84,Partnerek!$A$9:$K$106,11,FALSE)),"") ->  | AJ84: =IFERROR( IF(RIGHT($A84,2)="BE","HU", IF(VLOOKUP($N84,Partnerek!$A$9:$K$106,11,FALSE)="","",VLOOKUP($N84,Partnerek!$A$9:$K$106,11,FALSE))),"") ->  | AK84: =IFERROR(VLOOKUP(AJ84,ráták!$A$10:$AX$13,MATCH(Q84+T84+W84,ráták!$C$9:$AX$9,1)+2,FALSE),"") ->  | AL84: =IFERROR(VLOOKUP(AJ84,ráták!$A$10:$AX$13,MATCH(#REF!+#REF!+#REF!,ráták!$C$9:$AX$9,1)+2,FALSE),"") -> 
AI85: =IFERROR( IF(VLOOKUP($M85,Partnerek!$A$9:$K$106,11,FALSE)="","",VLOOKUP($M85,Partnerek!$A$9:$K$106,11,FALSE)),"") ->  | AJ85: =IFERROR( IF(RIGHT($A85,2)="BE","HU", IF(VLOOKUP($N85,Partnerek!$A$9:$K$106,11,FALSE)="","",VLOOKUP($N85,Partnerek!$A$9:$K$106,11,FALSE))),"") ->  | AK85: =IFERROR(VLOOKUP(AJ85,ráták!$A$10:$AX$13,MATCH(Q85+T85+W85,ráták!$C$9:$AX$9,1)+2,FALSE),"") ->  | AL85: =IFERROR(VLOOKUP(AJ85,ráták!$A$10:$AX$13,MATCH(#REF!+#REF!+#REF!,ráták!$C$9:$AX$9,1)+2,FALSE),"") -> 
AI86: =IFERROR( IF(VLOOKUP($M86,Partnerek!$A$9:$K$106,11,FALSE)="","",VLOOKUP($M86,Partnerek!$A$9:$K$106,11,FALSE)),"") ->  | AJ86: =IFERROR( IF(RIGHT($A86,2)="BE","HU", IF(VLOOKUP($N86,Partnerek!$A$9:$K$106,11,FALSE)="","",VLOOKUP($N86,Partnerek!$A$9:$K$106,11,FALSE))),"") ->  | AK86: =IFERROR(VLOOKUP(AJ86,ráták!$A$10:$AX$13,MATCH(Q86+T86+W86,ráták!$C$9:$AX$9,1)+2,FALSE),"") ->  | AL86: =IFERROR(VLOOKUP(AJ86,ráták!$A$10:$AX$13,MATCH(#REF!+#REF!+#REF!,ráták!$C$9:$AX$9,1)+2,FALSE),"") -> 
AI87: =IFERROR( IF(VLOOKUP($M87,Partnerek!$A$9:$K$106,11,FALSE)="","",VLOOKUP($M87,Partnerek!$A$9:$K$106,11,FALSE)),"") ->  | AJ87: =IFERROR( IF(RIGHT($A87,2)="BE","HU", IF(VLOOKUP($N87,Partnerek!$A$9:$K$106,11,FALSE)="","",VLOOKUP($N87,Partnerek!$A$9:$K$106,11,FALSE))),"") ->  | AK87: =IFERROR(VLOOKUP(AJ87,ráták!$A$10:$AX$13,MATCH(Q87+T87+W87,ráták!$C$9:$AX$9,1)+2,FALSE),"") ->  | AL87: =IFERROR(VLOOKUP(AJ87,ráták!$A$10:$AX$13,MATCH(#REF!+#REF!+#REF!,ráták!$C$9:$AX$9,1)+2,FALSE),"") -> 
AI88: =IFERROR( IF(VLOOKUP($M88,Partnerek!$A$9:$K$106,11,FALSE)="","",VLOOKUP($M88,Partnerek!$A$9:$K$106,11,FALSE)),"") ->  | AJ88: =IFERROR( IF(RIGHT($A88,2)="BE","HU", IF(VLOOKUP($N88,Partnerek!$A$9:$K$106,11,FALSE)="","",VLOOKUP($N88,Partnerek!$A$9:$K$106,11,FALSE))),"") ->  | AK88: =IFERROR(VLOOKUP(AJ88,ráták!$A$10:$AX$13,MATCH(Q88+T88+W88,ráták!$C$9:$AX$9,1)+2,FALSE),"") ->  | AL88: =IFERROR(VLOOKUP(AJ88,ráták!$A$10:$AX$13,MATCH(#REF!+#REF!+#REF!,ráták!$C$9:$AX$9,1)+2,FALSE),"") -> 
AI89: =IFERROR( IF(VLOOKUP($M89,Partnerek!$A$9:$K$106,11,FALSE)="","",VLOOKUP($M89,Partnerek!$A$9:$K$106,11,FALSE)),"") ->  | AJ89: =IFERROR( IF(RIGHT($A89,2)="BE","HU", IF(VLOOKUP($N89,Partnerek!$A$9:$K$106,11,FALSE)="","",VLOOKUP($N89,Partnerek!$A$9:$K$106,11,FALSE))),"") ->  | AK89: =IFERROR(VLOOKUP(AJ89,ráták!$A$10:$AX$13,MATCH(Q89+T89+W89,ráták!$C$9:$AX$9,1)+2,FALSE),"") ->  | AL89: =IFERROR(VLOOKUP(AJ89,ráták!$A$10:$AX$13,MATCH(#REF!+#REF!+#REF!,ráták!$C$9:$AX$9,1)+2,FALSE),"") -> 
AI90: =IFERROR( IF(VLOOKUP($M90,Partnerek!$A$9:$K$106,11,FALSE)="","",VLOOKUP($M90,Partnerek!$A$9:$K$106,11,FALSE)),"") ->  | AJ90: =IFERROR( IF(RIGHT($A90,2)="BE","HU", IF(VLOOKUP($N90,Partnerek!$A$9:$K$106,11,FALSE)="","",VLOOKUP($N90,Partnerek!$A$9:$K$106,11,FALSE))),"") ->  | AK90: =IFERROR(VLOOKUP(AJ90,ráták!$A$10:$AX$13,MATCH(Q90+T90+W90,ráták!$C$9:$AX$9,1)+2,FALSE),"") ->  | AL90: =IFERROR(VLOOKUP(AJ90,ráták!$A$10:$AX$13,MATCH(#REF!+#REF!+#REF!,ráták!$C$9:$AX$9,1)+2,FALSE),"") -> 
AI91: =IFERROR( IF(VLOOKUP($M91,Partnerek!$A$9:$K$106,11,FALSE)="","",VLOOKUP($M91,Partnerek!$A$9:$K$106,11,FALSE)),"") ->  | AJ91: =IFERROR( IF(RIGHT($A91,2)="BE","HU", IF(VLOOKUP($N91,Partnerek!$A$9:$K$106,11,FALSE)="","",VLOOKUP($N91,Partnerek!$A$9:$K$106,11,FALSE))),"") ->  | AK91: =IFERROR(VLOOKUP(AJ91,ráták!$A$10:$AX$13,MATCH(Q91+T91+W91,ráták!$C$9:$AX$9,1)+2,FALSE),"") ->  | AL91: =IFERROR(VLOOKUP(AJ91,ráták!$A$10:$AX$13,MATCH(#REF!+#REF!+#REF!,ráták!$C$9:$AX$9,1)+2,FALSE),"") -> 
AI92: =IFERROR( IF(VLOOKUP($M92,Partnerek!$A$9:$K$106,11,FALSE)="","",VLOOKUP($M92,Partnerek!$A$9:$K$106,11,FALSE)),"") ->  | AJ92: =IFERROR( IF(RIGHT($A92,2)="BE","HU", IF(VLOOKUP($N92,Partnerek!$A$9:$K$106,11,FALSE)="","",VLOOKUP($N92,Partnerek!$A$9:$K$106,11,FALSE))),"") ->  | AK92: =IFERROR(VLOOKUP(AJ92,ráták!$A$10:$AX$13,MATCH(Q92+T92+W92,ráták!$C$9:$AX$9,1)+2,FALSE),"") ->  | AL92: =IFERROR(VLOOKUP(AJ92,ráták!$A$10:$AX$13,MATCH(#REF!+#REF!+#REF!,ráták!$C$9:$AX$9,1)+2,FALSE),"") -> 
AI93: =IFERROR( IF(VLOOKUP($M93,Partnerek!$A$9:$K$106,11,FALSE)="","",VLOOKUP($M93,Partnerek!$A$9:$K$106,11,FALSE)),"") ->  | AJ93: =IFERROR( IF(RIGHT($A93,2)="BE","HU", IF(VLOOKUP($N93,Partnerek!$A$9:$K$106,11,FALSE)="","",VLOOKUP($N93,Partnerek!$A$9:$K$106,11,FALSE))),"") ->  | AK93: =IFERROR(VLOOKUP(AJ93,ráták!$A$10:$AX$13,MATCH(Q93+T93+W93,ráták!$C$9:$AX$9,1)+2,FALSE),"") ->  | AL93: =IFERROR(VLOOKUP(AJ93,ráták!$A$10:$AX$13,MATCH(#REF!+#REF!+#REF!,ráták!$C$9:$AX$9,1)+2,FALSE),"") -> 
AI94: =IFERROR( IF(VLOOKUP($M94,Partnerek!$A$9:$K$106,11,FALSE)="","",VLOOKUP($M94,Partnerek!$A$9:$K$106,11,FALSE)),"") ->  | AJ94: =IFERROR( IF(RIGHT($A94,2)="BE","HU", IF(VLOOKUP($N94,Partnerek!$A$9:$K$106,11,FALSE)="","",VLOOKUP($N94,Partnerek!$A$9:$K$106,11,FALSE))),"") ->  | AK94: =IFERROR(VLOOKUP(AJ94,ráták!$A$10:$AX$13,MATCH(Q94+T94+W94,ráták!$C$9:$AX$9,1)+2,FALSE),"") ->  | AL94: =IFERROR(VLOOKUP(AJ94,ráták!$A$10:$AX$13,MATCH(#REF!+#REF!+#REF!,ráták!$C$9:$AX$9,1)+2,FALSE),"") -> 
AI95: =IFERROR( IF(VLOOKUP($M95,Partnerek!$A$9:$K$106,11,FALSE)="","",VLOOKUP($M95,Partnerek!$A$9:$K$106,11,FALSE)),"") ->  | AJ95: =IFERROR( IF(RIGHT($A95,2)="BE","HU", IF(VLOOKUP($N95,Partnerek!$A$9:$K$106,11,FALSE)="","",VLOOKUP($N95,Partnerek!$A$9:$K$106,11,FALSE))),"") ->  | AK95: =IFERROR(VLOOKUP(AJ95,ráták!$A$10:$AX$13,MATCH(Q95+T95+W95,ráták!$C$9:$AX$9,1)+2,FALSE),"") ->  | AL95: =IFERROR(VLOOKUP(AJ95,ráták!$A$10:$AX$13,MATCH(#REF!+#REF!+#REF!,ráták!$C$9:$AX$9,1)+2,FALSE),"") -> 
AI96: =IFERROR( IF(VLOOKUP($M96,Partnerek!$A$9:$K$106,11,FALSE)="","",VLOOKUP($M96,Partnerek!$A$9:$K$106,11,FALSE)),"") ->  | AJ96: =IFERROR( IF(RIGHT($A96,2)="BE","HU", IF(VLOOKUP($N96,Partnerek!$A$9:$K$106,11,FALSE)="","",VLOOKUP($N96,Partnerek!$A$9:$K$106,11,FALSE))),"") ->  | AK96: =IFERROR(VLOOKUP(AJ96,ráták!$A$10:$AX$13,MATCH(Q96+T96+W96,ráták!$C$9:$AX$9,1)+2,FALSE),"") ->  | AL96: =IFERROR(VLOOKUP(AJ96,ráták!$A$10:$AX$13,MATCH(#REF!+#REF!+#REF!,ráták!$C$9:$AX$9,1)+2,FALSE),"") -> 
AI97: =IFERROR( IF(VLOOKUP($M97,Partnerek!$A$9:$K$106,11,FALSE)="","",VLOOKUP($M97,Partnerek!$A$9:$K$106,11,FALSE)),"") ->  | AJ97: =IFERROR( IF(RIGHT($A97,2)="BE","HU", IF(VLOOKUP($N97,Partnerek!$A$9:$K$106,11,FALSE)="","",VLOOKUP($N97,Partnerek!$A$9:$K$106,11,FALSE))),"") ->  | AK97: =IFERROR(VLOOKUP(AJ97,ráták!$A$10:$AX$13,MATCH(Q97+T97+W97,ráták!$C$9:$AX$9,1)+2,FALSE),"") ->  | AL97: =IFERROR(VLOOKUP(AJ97,ráták!$A$10:$AX$13,MATCH(#REF!+#REF!+#REF!,ráták!$C$9:$AX$9,1)+2,FALSE),"") -> 
AI98: =IFERROR( IF(VLOOKUP($M98,Partnerek!$A$9:$K$106,11,FALSE)="","",VLOOKUP($M98,Partnerek!$A$9:$K$106,11,FALSE)),"") ->  | AJ98: =IFERROR( IF(RIGHT($A98,2)="BE","HU", IF(VLOOKUP($N98,Partnerek!$A$9:$K$106,11,FALSE)="","",VLOOKUP($N98,Partnerek!$A$9:$K$106,11,FALSE))),"") ->  | AK98: =IFERROR(VLOOKUP(AJ98,ráták!$A$10:$AX$13,MATCH(Q98+T98+W98,ráták!$C$9:$AX$9,1)+2,FALSE),"") ->  | AL98: =IFERROR(VLOOKUP(AJ98,ráták!$A$10:$AX$13,MATCH(#REF!+#REF!+#REF!,ráták!$C$9:$AX$9,1)+2,FALSE),"") -> 
AI99: =IFERROR( IF(VLOOKUP($M99,Partnerek!$A$9:$K$106,11,FALSE)="","",VLOOKUP($M99,Partnerek!$A$9:$K$106,11,FALSE)),"") ->  | AJ99: =IFERROR( IF(RIGHT($A99,2)="BE","HU", IF(VLOOKUP($N99,Partnerek!$A$9:$K$106,11,FALSE)="","",VLOOKUP($N99,Partnerek!$A$9:$K$106,11,FALSE))),"") ->  | AK99: =IFERROR(VLOOKUP(AJ99,ráták!$A$10:$AX$13,MATCH(Q99+T99+W99,ráták!$C$9:$AX$9,1)+2,FALSE),"") ->  | AL99: =IFERROR(VLOOKUP(AJ99,ráták!$A$10:$AX$13,MATCH(#REF!+#REF!+#REF!,ráták!$C$9:$AX$9,1)+2,FALSE),"") -> 
AI100: =IFERROR( IF(VLOOKUP($M100,Partnerek!$A$9:$K$106,11,FALSE)="","",VLOOKUP($M100,Partnerek!$A$9:$K$106,11,FALSE)),"") ->  | AJ100: =IFERROR( IF(RIGHT($A100,2)="BE","HU", IF(VLOOKUP($N100,Partnerek!$A$9:$K$106,11,FALSE)="","",VLOOKUP($N100,Partnerek!$A$9:$K$106,11,FALSE))),"") ->  | AK100: =IFERROR(VLOOKUP(AJ100,ráták!$A$10:$AX$13,MATCH(Q100+T100+W100,ráták!$C$9:$AX$9,1)+2,FALSE),"") ->  | AL100: =IFERROR(VLOOKUP(AJ100,ráták!$A$10:$AX$13,MATCH(#REF!+#REF!+#REF!,ráták!$C$9:$AX$9,1)+2,FALSE),"") -> 
AI101: =IFERROR( IF(VLOOKUP($M101,Partnerek!$A$9:$K$106,11,FALSE)="","",VLOOKUP($M101,Partnerek!$A$9:$K$106,11,FALSE)),"") ->  | AJ101: =IFERROR( IF(RIGHT($A101,2)="BE","HU", IF(VLOOKUP($N101,Partnerek!$A$9:$K$106,11,FALSE)="","",VLOOKUP($N101,Partnerek!$A$9:$K$106,11,FALSE))),"") ->  | AK101: =IFERROR(VLOOKUP(AJ101,ráták!$A$10:$AX$13,MATCH(Q101+T101+W101,ráták!$C$9:$AX$9,1)+2,FALSE),"") ->  | AL101: =IFERROR(VLOOKUP(AJ101,ráták!$A$10:$AX$13,MATCH(#REF!+#REF!+#REF!,ráták!$C$9:$AX$9,1)+2,FALSE),"") -> 
AI102: =IFERROR( IF(VLOOKUP($M102,Partnerek!$A$9:$K$106,11,FALSE)="","",VLOOKUP($M102,Partnerek!$A$9:$K$106,11,FALSE)),"") ->  | AJ102: =IFERROR( IF(RIGHT($A102,2)="BE","HU", IF(VLOOKUP($N102,Partnerek!$A$9:$K$106,11,FALSE)="","",VLOOKUP($N102,Partnerek!$A$9:$K$106,11,FALSE))),"") ->  | AK102: =IFERROR(VLOOKUP(AJ102,ráták!$A$10:$AX$13,MATCH(Q102+T102+W102,ráták!$C$9:$AX$9,1)+2,FALSE),"") ->  | AL102: =IFERROR(VLOOKUP(AJ102,ráták!$A$10:$AX$13,MATCH(#REF!+#REF!+#REF!,ráták!$C$9:$AX$9,1)+2,FALSE),"") -> 
AI103: =IFERROR( IF(VLOOKUP($M103,Partnerek!$A$9:$K$106,11,FALSE)="","",VLOOKUP($M103,Partnerek!$A$9:$K$106,11,FALSE)),"") ->  | AJ103: =IFERROR( IF(RIGHT($A103,2)="BE","HU", IF(VLOOKUP($N103,Partnerek!$A$9:$K$106,11,FALSE)="","",VLOOKUP($N103,Partnerek!$A$9:$K$106,11,FALSE))),"") ->  | AK103: =IFERROR(VLOOKUP(AJ103,ráták!$A$10:$AX$13,MATCH(Q103+T103+W103,ráták!$C$9:$AX$9,1)+2,FALSE),"") ->  | AL103: =IFERROR(VLOOKUP(AJ103,ráták!$A$10:$AX$13,MATCH(#REF!+#REF!+#REF!,ráták!$C$9:$AX$9,1)+2,FALSE),"") -> 
AI104: =IFERROR( IF(VLOOKUP($M104,Partnerek!$A$9:$K$106,11,FALSE)="","",VLOOKUP($M104,Partnerek!$A$9:$K$106,11,FALSE)),"") ->  | AJ104: =IFERROR( IF(RIGHT($A104,2)="BE","HU", IF(VLOOKUP($N104,Partnerek!$A$9:$K$106,11,FALSE)="","",VLOOKUP($N104,Partnerek!$A$9:$K$106,11,FALSE))),"") ->  | AK104: =IFERROR(VLOOKUP(AJ104,ráták!$A$10:$AX$13,MATCH(Q104+T104+W104,ráták!$C$9:$AX$9,1)+2,FALSE),"") ->  | AL104: =IFERROR(VLOOKUP(AJ104,ráták!$A$10:$AX$13,MATCH(#REF!+#REF!+#REF!,ráták!$C$9:$AX$9,1)+2,FALSE),"") -> 
AI105: =IFERROR( IF(VLOOKUP($M105,Partnerek!$A$9:$K$106,11,FALSE)="","",VLOOKUP($M105,Partnerek!$A$9:$K$106,11,FALSE)),"") ->  | AJ105: =IFERROR( IF(RIGHT($A105,2)="BE","HU", IF(VLOOKUP($N105,Partnerek!$A$9:$K$106,11,FALSE)="","",VLOOKUP($N105,Partnerek!$A$9:$K$106,11,FALSE))),"") ->  | AK105: =IFERROR(VLOOKUP(AJ105,ráták!$A$10:$AX$13,MATCH(Q105+T105+W105,ráták!$C$9:$AX$9,1)+2,FALSE),"") ->  | AL105: =IFERROR(VLOOKUP(AJ105,ráták!$A$10:$AX$13,MATCH(#REF!+#REF!+#REF!,ráták!$C$9:$AX$9,1)+2,FALSE),"") -> 
AI106: =IFERROR( IF(VLOOKUP($M106,Partnerek!$A$9:$K$106,11,FALSE)="","",VLOOKUP($M106,Partnerek!$A$9:$K$106,11,FALSE)),"") ->  | AJ106: =IFERROR( IF(RIGHT($A106,2)="BE","HU", IF(VLOOKUP($N106,Partnerek!$A$9:$K$106,11,FALSE)="","",VLOOKUP($N106,Partnerek!$A$9:$K$106,11,FALSE))),"") ->  | AK106: =IFERROR(VLOOKUP(AJ106,ráták!$A$10:$AX$13,MATCH(Q106+T106+W106,ráták!$C$9:$AX$9,1)+2,FALSE),"") ->  | AL106: =IFERROR(VLOOKUP(AJ106,ráták!$A$10:$AX$13,MATCH(#REF!+#REF!+#REF!,ráták!$C$9:$AX$9,1)+2,FALSE),"") -> 
AI107: =IFERROR( IF(VLOOKUP($M107,Partnerek!$A$9:$K$106,11,FALSE)="","",VLOOKUP($M107,Partnerek!$A$9:$K$106,11,FALSE)),"") ->  | AJ107: =IFERROR( IF(RIGHT($A107,2)="BE","HU", IF(VLOOKUP($N107,Partnerek!$A$9:$K$106,11,FALSE)="","",VLOOKUP($N107,Partnerek!$A$9:$K$106,11,FALSE))),"") ->  | AK107: =IFERROR(VLOOKUP(AJ107,ráták!$A$10:$AX$13,MATCH(Q107+T107+W107,ráták!$C$9:$AX$9,1)+2,FALSE),"") ->  | AL107: =IFERROR(VLOOKUP(AJ107,ráták!$A$10:$AX$13,MATCH(#REF!+#REF!+#REF!,ráták!$C$9:$AX$9,1)+2,FALSE),"") -> 
AI108: =IFERROR( IF(VLOOKUP($M108,Partnerek!$A$9:$K$106,11,FALSE)="","",VLOOKUP($M108,Partnerek!$A$9:$K$106,11,FALSE)),"") ->  | AJ108: =IFERROR( IF(RIGHT($A108,2)="BE","HU", IF(VLOOKUP($N108,Partnerek!$A$9:$K$106,11,FALSE)="","",VLOOKUP($N108,Partnerek!$A$9:$K$106,11,FALSE))),"") ->  | AK108: =IFERROR(VLOOKUP(AJ108,ráták!$A$10:$AX$13,MATCH(Q108+T108+W108,ráták!$C$9:$AX$9,1)+2,FALSE),"") ->  | AL108: =IFERROR(VLOOKUP(AJ108,ráták!$A$10:$AX$13,MATCH(#REF!+#REF!+#REF!,ráták!$C$9:$AX$9,1)+2,FALSE),"") -> 

Sheet Ki- és beutazó okt, személyzet
A1: =IF(Azonosítás!A3="","",Azonosítás!A3) -> 
A2: Oktatói mobilitás - ki- és beutazó oktatók, személyzet
A4: Intézmény neve: | C4: =IF(Azonosítás!A9="","",Azonosítás!A9) ->  | H4: EGT koordinátor aláírása
A5: Szerződésszám: | C5: =Azonosítás!A6 -> 0 | K5: =TODAY() -> 2016-10-13
A8: Mobilitás jellege | B8: Tevékenység jellege | C8: Résztvétel jellege | D8: Tevékenység besorolása | E8: Egyéni támogatási szerződésszám | F8: Családnév | G8: Keresztnév | H8: Születés időpontja (ÉÉÉÉ/HH/NN) | I8: Neme | J8: Állampolgárság | K8: Szakterület kódja | L8: Tapasztaltság (csak oktatás!) | M8: Küldő partner azonosítója | N8: Fogadó partner azonosítója | O8: Mobilitás kezdete (ÉÉÉÉ/HH/NN) | P8: Mobilitás vége (ÉÉÉÉ/HH/NN) | Q8: Mobilitás időtartama napokban (utazással együtt) | R8: Oktatott órák száma összesen | S8: Kétoldalú megállapodás | T8: Oktatás vagy munka nyelve | U8: EGT támogatás összesen (euró) | V8: Intézményi forrás (HUF), ha volt | W8: Résztvevő e-mail címe | X8: Megjegyzés | Y8: Küldő ország | Z8: Fogadó ország | AA8: TÁMOGATÁS
M9: =IF((IFERROR(RIGHT($A9,2),"")="KI"),Erasmus_kod,"") ->  | Q9: =IFERROR(IF((ISBLANK(O9)*ISBLANK(P9)),"",IF(P9<O9,"",IF( (P9-O9+1)>42,"",P9-O9+1))),"") ->  | U9: =IFERROR( IF( ((RIGHT(A9,2)="KI")*(Y9="HU")*(Z9<>"HU"))+((RIGHT(A9,2)="BE")*(Y9<>"HU")*(Z9="HU")), IF(A9<>"",AA9,""),""),"") ->  | Y9: =IFERROR( IF(VLOOKUP($M9,Partnerek!$A$9:$K$106,11,FALSE)="","",VLOOKUP($M9,Partnerek!$A$9:$K$106,11,FALSE)),"") ->  | Z9: =IFERROR( IF(VLOOKUP($N9,Partnerek!$A$9:$K$106,11,FALSE)="","",VLOOKUP($N9,Partnerek!$A$9:$K$106,11,FALSE)),"") ->  | AA9: =IFERROR(VLOOKUP(Z9,ráták!$A$3:$AR$6,MATCH($Q9,ráták!$C$2:$AR$2,1)+2,FALSE),"") -> 
Q10: =IFERROR(IF((ISBLANK(O10)*ISBLANK(P10)),"", IF(P10<O10,"",IF( (P10-O10+1)>42,"",P10-O10+1))),"") ->  | Y10: =IFERROR( IF(VLOOKUP($M10,Partnerek!$A$9:$K$106,11,FALSE)="","",VLOOKUP($M10,Partnerek!$A$9:$K$106,11,FALSE)),"") ->  | Z10: =IFERROR( IF(VLOOKUP($N10,Partnerek!$A$9:$K$106,11,FALSE)="","",VLOOKUP($N10,Partnerek!$A$9:$K$106,11,FALSE)),"") ->  | AA10: =IFERROR(VLOOKUP(Z10,ráták!$A$3:$AR$6,MATCH($Q10,ráták!$C$2:$AR$2,1)+2,FALSE),"") -> 
Y11: =IFERROR( IF(VLOOKUP($M11,Partnerek!$A$9:$K$106,11,FALSE)="","",VLOOKUP($M11,Partnerek!$A$9:$K$106,11,FALSE)),"") ->  | Z11: =IFERROR( IF(VLOOKUP($N11,Partnerek!$A$9:$K$106,11,FALSE)="","",VLOOKUP($N11,Partnerek!$A$9:$K$106,11,FALSE)),"") ->  | AA11: =IFERROR(VLOOKUP(Z11,ráták!$A$3:$AR$6,MATCH($Q11,ráták!$C$2:$AR$2,1)+2,FALSE),"") -> 
Y12: =IFERROR( IF(VLOOKUP($M12,Partnerek!$A$9:$K$106,11,FALSE)="","",VLOOKUP($M12,Partnerek!$A$9:$K$106,11,FALSE)),"") ->  | Z12: =IFERROR( IF(VLOOKUP($N12,Partnerek!$A$9:$K$106,11,FALSE)="","",VLOOKUP($N12,Partnerek!$A$9:$K$106,11,FALSE)),"") ->  | AA12: =IFERROR(VLOOKUP(Z12,ráták!$A$3:$AR$6,MATCH($Q12,ráták!$C$2:$AR$2,1)+2,FALSE),"") -> 
Y13: =IFERROR( IF(VLOOKUP($M13,Partnerek!$A$9:$K$106,11,FALSE)="","",VLOOKUP($M13,Partnerek!$A$9:$K$106,11,FALSE)),"") ->  | Z13: =IFERROR( IF(VLOOKUP($N13,Partnerek!$A$9:$K$106,11,FALSE)="","",VLOOKUP($N13,Partnerek!$A$9:$K$106,11,FALSE)),"") ->  | AA13: =IFERROR(VLOOKUP(Z13,ráták!$A$3:$AR$6,MATCH($Q13,ráták!$C$2:$AR$2,1)+2,FALSE),"") -> 
Y14: =IFERROR( IF(VLOOKUP($M14,Partnerek!$A$9:$K$106,11,FALSE)="","",VLOOKUP($M14,Partnerek!$A$9:$K$106,11,FALSE)),"") ->  | Z14: =IFERROR( IF(VLOOKUP($N14,Partnerek!$A$9:$K$106,11,FALSE)="","",VLOOKUP($N14,Partnerek!$A$9:$K$106,11,FALSE)),"") ->  | AA14: =IFERROR(VLOOKUP(Z14,ráták!$A$3:$AR$6,MATCH($Q14,ráták!$C$2:$AR$2,1)+2,FALSE),"") -> 
Y15: =IFERROR( IF(VLOOKUP($M15,Partnerek!$A$9:$K$106,11,FALSE)="","",VLOOKUP($M15,Partnerek!$A$9:$K$106,11,FALSE)),"") ->  | Z15: =IFERROR( IF(VLOOKUP($N15,Partnerek!$A$9:$K$106,11,FALSE)="","",VLOOKUP($N15,Partnerek!$A$9:$K$106,11,FALSE)),"") ->  | AA15: =IFERROR(VLOOKUP(Z15,ráták!$A$3:$AR$6,MATCH($Q15,ráták!$C$2:$AR$2,1)+2,FALSE),"") -> 
Y16: =IFERROR( IF(VLOOKUP($M16,Partnerek!$A$9:$K$106,11,FALSE)="","",VLOOKUP($M16,Partnerek!$A$9:$K$106,11,FALSE)),"") ->  | Z16: =IFERROR( IF(VLOOKUP($N16,Partnerek!$A$9:$K$106,11,FALSE)="","",VLOOKUP($N16,Partnerek!$A$9:$K$106,11,FALSE)),"") ->  | AA16: =IFERROR(VLOOKUP(Z16,ráták!$A$3:$AR$6,MATCH($Q16,ráták!$C$2:$AR$2,1)+2,FALSE),"") -> 
Y17: =IFERROR( IF(VLOOKUP($M17,Partnerek!$A$9:$K$106,11,FALSE)="","",VLOOKUP($M17,Partnerek!$A$9:$K$106,11,FALSE)),"") ->  | Z17: =IFERROR( IF(VLOOKUP($N17,Partnerek!$A$9:$K$106,11,FALSE)="","",VLOOKUP($N17,Partnerek!$A$9:$K$106,11,FALSE)),"") ->  | AA17: =IFERROR(VLOOKUP(Z17,ráták!$A$3:$AR$6,MATCH($Q17,ráták!$C$2:$AR$2,1)+2,FALSE),"") -> 
Y18: =IFERROR( IF(VLOOKUP($M18,Partnerek!$A$9:$K$106,11,FALSE)="","",VLOOKUP($M18,Partnerek!$A$9:$K$106,11,FALSE)),"") ->  | Z18: =IFERROR( IF(VLOOKUP($N18,Partnerek!$A$9:$K$106,11,FALSE)="","",VLOOKUP($N18,Partnerek!$A$9:$K$106,11,FALSE)),"") ->  | AA18: =IFERROR(VLOOKUP(Z18,ráták!$A$3:$AR$6,MATCH($Q18,ráták!$C$2:$AR$2,1)+2,FALSE),"") -> 
Y19: =IFERROR( IF(VLOOKUP($M19,Partnerek!$A$9:$K$106,11,FALSE)="","",VLOOKUP($M19,Partnerek!$A$9:$K$106,11,FALSE)),"") ->  | Z19: =IFERROR( IF(VLOOKUP($N19,Partnerek!$A$9:$K$106,11,FALSE)="","",VLOOKUP($N19,Partnerek!$A$9:$K$106,11,FALSE)),"") ->  | AA19: =IFERROR(VLOOKUP(Z19,ráták!$A$3:$AR$6,MATCH($Q19,ráták!$C$2:$AR$2,1)+2,FALSE),"") -> 
Y20: =IFERROR( IF(VLOOKUP($M20,Partnerek!$A$9:$K$106,11,FALSE)="","",VLOOKUP($M20,Partnerek!$A$9:$K$106,11,FALSE)),"") ->  | Z20: =IFERROR( IF(VLOOKUP($N20,Partnerek!$A$9:$K$106,11,FALSE)="","",VLOOKUP($N20,Partnerek!$A$9:$K$106,11,FALSE)),"") ->  | AA20: =IFERROR(VLOOKUP(Z20,ráták!$A$3:$AR$6,MATCH($Q20,ráták!$C$2:$AR$2,1)+2,FALSE),"") -> 
Y21: =IFERROR( IF(VLOOKUP($M21,Partnerek!$A$9:$K$106,11,FALSE)="","",VLOOKUP($M21,Partnerek!$A$9:$K$106,11,FALSE)),"") ->  | Z21: =IFERROR( IF(VLOOKUP($N21,Partnerek!$A$9:$K$106,11,FALSE)="","",VLOOKUP($N21,Partnerek!$A$9:$K$106,11,FALSE)),"") ->  | AA21: =IFERROR(VLOOKUP(Z21,ráták!$A$3:$AR$6,MATCH($Q21,ráták!$C$2:$AR$2,1)+2,FALSE),"") -> 
Y22: =IFERROR( IF(VLOOKUP($M22,Partnerek!$A$9:$K$106,11,FALSE)="","",VLOOKUP($M22,Partnerek!$A$9:$K$106,11,FALSE)),"") ->  | Z22: =IFERROR( IF(VLOOKUP($N22,Partnerek!$A$9:$K$106,11,FALSE)="","",VLOOKUP($N22,Partnerek!$A$9:$K$106,11,FALSE)),"") ->  | AA22: =IFERROR(VLOOKUP(Z22,ráták!$A$3:$AR$6,MATCH($Q22,ráták!$C$2:$AR$2,1)+2,FALSE),"") -> 
Y23: =IFERROR( IF(VLOOKUP($M23,Partnerek!$A$9:$K$106,11,FALSE)="","",VLOOKUP($M23,Partnerek!$A$9:$K$106,11,FALSE)),"") ->  | Z23: =IFERROR( IF(VLOOKUP($N23,Partnerek!$A$9:$K$106,11,FALSE)="","",VLOOKUP($N23,Partnerek!$A$9:$K$106,11,FALSE)),"") ->  | AA23: =IFERROR(VLOOKUP(Z23,ráták!$A$3:$AR$6,MATCH($Q23,ráták!$C$2:$AR$2,1)+2,FALSE),"") -> 
Y24: =IFERROR( IF(VLOOKUP($M24,Partnerek!$A$9:$K$106,11,FALSE)="","",VLOOKUP($M24,Partnerek!$A$9:$K$106,11,FALSE)),"") ->  | Z24: =IFERROR( IF(VLOOKUP($N24,Partnerek!$A$9:$K$106,11,FALSE)="","",VLOOKUP($N24,Partnerek!$A$9:$K$106,11,FALSE)),"") ->  | AA24: =IFERROR(VLOOKUP(Z24,ráták!$A$3:$AR$6,MATCH($Q24,ráták!$C$2:$AR$2,1)+2,FALSE),"") -> 
Y25: =IFERROR( IF(VLOOKUP($M25,Partnerek!$A$9:$K$106,11,FALSE)="","",VLOOKUP($M25,Partnerek!$A$9:$K$106,11,FALSE)),"") ->  | Z25: =IFERROR( IF(VLOOKUP($N25,Partnerek!$A$9:$K$106,11,FALSE)="","",VLOOKUP($N25,Partnerek!$A$9:$K$106,11,FALSE)),"") ->  | AA25: =IFERROR(VLOOKUP(Z25,ráták!$A$3:$AR$6,MATCH($Q25,ráták!$C$2:$AR$2,1)+2,FALSE),"") -> 
Y26: =IFERROR( IF(VLOOKUP($M26,Partnerek!$A$9:$K$106,11,FALSE)="","",VLOOKUP($M26,Partnerek!$A$9:$K$106,11,FALSE)),"") ->  | Z26: =IFERROR( IF(VLOOKUP($N26,Partnerek!$A$9:$K$106,11,FALSE)="","",VLOOKUP($N26,Partnerek!$A$9:$K$106,11,FALSE)),"") ->  | AA26: =IFERROR(VLOOKUP(Z26,ráták!$A$3:$AR$6,MATCH($Q26,ráták!$C$2:$AR$2,1)+2,FALSE),"") -> 
Y27: =IFERROR( IF(VLOOKUP($M27,Partnerek!$A$9:$K$106,11,FALSE)="","",VLOOKUP($M27,Partnerek!$A$9:$K$106,11,FALSE)),"") ->  | Z27: =IFERROR( IF(VLOOKUP($N27,Partnerek!$A$9:$K$106,11,FALSE)="","",VLOOKUP($N27,Partnerek!$A$9:$K$106,11,FALSE)),"") ->  | AA27: =IFERROR(VLOOKUP(Z27,ráták!$A$3:$AR$6,MATCH($Q27,ráták!$C$2:$AR$2,1)+2,FALSE),"") -> 
Y28: =IFERROR( IF(VLOOKUP($M28,Partnerek!$A$9:$K$106,11,FALSE)="","",VLOOKUP($M28,Partnerek!$A$9:$K$106,11,FALSE)),"") ->  | Z28: =IFERROR( IF(VLOOKUP($N28,Partnerek!$A$9:$K$106,11,FALSE)="","",VLOOKUP($N28,Partnerek!$A$9:$K$106,11,FALSE)),"") ->  | AA28: =IFERROR(VLOOKUP(Z28,ráták!$A$3:$AR$6,MATCH($Q28,ráták!$C$2:$AR$2,1)+2,FALSE),"") -> 
Y29: =IFERROR( IF(VLOOKUP($M29,Partnerek!$A$9:$K$106,11,FALSE)="","",VLOOKUP($M29,Partnerek!$A$9:$K$106,11,FALSE)),"") ->  | Z29: =IFERROR( IF(VLOOKUP($N29,Partnerek!$A$9:$K$106,11,FALSE)="","",VLOOKUP($N29,Partnerek!$A$9:$K$106,11,FALSE)),"") ->  | AA29: =IFERROR(VLOOKUP(Z29,ráták!$A$3:$AR$6,MATCH($Q29,ráták!$C$2:$AR$2,1)+2,FALSE),"") -> 
Y30: =IFERROR( IF(VLOOKUP($M30,Partnerek!$A$9:$K$106,11,FALSE)="","",VLOOKUP($M30,Partnerek!$A$9:$K$106,11,FALSE)),"") ->  | Z30: =IFERROR( IF(VLOOKUP($N30,Partnerek!$A$9:$K$106,11,FALSE)="","",VLOOKUP($N30,Partnerek!$A$9:$K$106,11,FALSE)),"") ->  | AA30: =IFERROR(VLOOKUP(Z30,ráták!$A$3:$AR$6,MATCH($Q30,ráták!$C$2:$AR$2,1)+2,FALSE),"") -> 
Y31: =IFERROR( IF(VLOOKUP($M31,Partnerek!$A$9:$K$106,11,FALSE)="","",VLOOKUP($M31,Partnerek!$A$9:$K$106,11,FALSE)),"") ->  | Z31: =IFERROR( IF(VLOOKUP($N31,Partnerek!$A$9:$K$106,11,FALSE)="","",VLOOKUP($N31,Partnerek!$A$9:$K$106,11,FALSE)),"") ->  | AA31: =IFERROR(VLOOKUP(Z31,ráták!$A$3:$AR$6,MATCH($Q31,ráták!$C$2:$AR$2,1)+2,FALSE),"") -> 
Y32: =IFERROR( IF(VLOOKUP($M32,Partnerek!$A$9:$K$106,11,FALSE)="","",VLOOKUP($M32,Partnerek!$A$9:$K$106,11,FALSE)),"") ->  | Z32: =IFERROR( IF(VLOOKUP($N32,Partnerek!$A$9:$K$106,11,FALSE)="","",VLOOKUP($N32,Partnerek!$A$9:$K$106,11,FALSE)),"") ->  | AA32: =IFERROR(VLOOKUP(Z32,ráták!$A$3:$AR$6,MATCH($Q32,ráták!$C$2:$AR$2,1)+2,FALSE),"") -> 
Y33: =IFERROR( IF(VLOOKUP($M33,Partnerek!$A$9:$K$106,11,FALSE)="","",VLOOKUP($M33,Partnerek!$A$9:$K$106,11,FALSE)),"") ->  | Z33: =IFERROR( IF(VLOOKUP($N33,Partnerek!$A$9:$K$106,11,FALSE)="","",VLOOKUP($N33,Partnerek!$A$9:$K$106,11,FALSE)),"") ->  | AA33: =IFERROR(VLOOKUP(Z33,ráták!$A$3:$AR$6,MATCH($Q33,ráták!$C$2:$AR$2,1)+2,FALSE),"") -> 
Y34: =IFERROR( IF(VLOOKUP($M34,Partnerek!$A$9:$K$106,11,FALSE)="","",VLOOKUP($M34,Partnerek!$A$9:$K$106,11,FALSE)),"") ->  | Z34: =IFERROR( IF(VLOOKUP($N34,Partnerek!$A$9:$K$106,11,FALSE)="","",VLOOKUP($N34,Partnerek!$A$9:$K$106,11,FALSE)),"") ->  | AA34: =IFERROR(VLOOKUP(Z34,ráták!$A$3:$AR$6,MATCH($Q34,ráták!$C$2:$AR$2,1)+2,FALSE),"") -> 
Y35: =IFERROR( IF(VLOOKUP($M35,Partnerek!$A$9:$K$106,11,FALSE)="","",VLOOKUP($M35,Partnerek!$A$9:$K$106,11,FALSE)),"") ->  | Z35: =IFERROR( IF(VLOOKUP($N35,Partnerek!$A$9:$K$106,11,FALSE)="","",VLOOKUP($N35,Partnerek!$A$9:$K$106,11,FALSE)),"") ->  | AA35: =IFERROR(VLOOKUP(Z35,ráták!$A$3:$AR$6,MATCH($Q35,ráták!$C$2:$AR$2,1)+2,FALSE),"") -> 
Y36: =IFERROR( IF(VLOOKUP($M36,Partnerek!$A$9:$K$106,11,FALSE)="","",VLOOKUP($M36,Partnerek!$A$9:$K$106,11,FALSE)),"") ->  | Z36: =IFERROR( IF(VLOOKUP($N36,Partnerek!$A$9:$K$106,11,FALSE)="","",VLOOKUP($N36,Partnerek!$A$9:$K$106,11,FALSE)),"") ->  | AA36: =IFERROR(VLOOKUP(Z36,ráták!$A$3:$AR$6,MATCH($Q36,ráták!$C$2:$AR$2,1)+2,FALSE),"") -> 
Y37: =IFERROR( IF(VLOOKUP($M37,Partnerek!$A$9:$K$106,11,FALSE)="","",VLOOKUP($M37,Partnerek!$A$9:$K$106,11,FALSE)),"") ->  | Z37: =IFERROR( IF(VLOOKUP($N37,Partnerek!$A$9:$K$106,11,FALSE)="","",VLOOKUP($N37,Partnerek!$A$9:$K$106,11,FALSE)),"") ->  | AA37: =IFERROR(VLOOKUP(Z37,ráták!$A$3:$AR$6,MATCH($Q37,ráták!$C$2:$AR$2,1)+2,FALSE),"") -> 
Y38: =IFERROR( IF(VLOOKUP($M38,Partnerek!$A$9:$K$106,11,FALSE)="","",VLOOKUP($M38,Partnerek!$A$9:$K$106,11,FALSE)),"") ->  | Z38: =IFERROR( IF(VLOOKUP($N38,Partnerek!$A$9:$K$106,11,FALSE)="","",VLOOKUP($N38,Partnerek!$A$9:$K$106,11,FALSE)),"") ->  | AA38: =IFERROR(VLOOKUP(Z38,ráták!$A$3:$AR$6,MATCH($Q38,ráták!$C$2:$AR$2,1)+2,FALSE),"") -> 
Y39: =IFERROR( IF(VLOOKUP($M39,Partnerek!$A$9:$K$106,11,FALSE)="","",VLOOKUP($M39,Partnerek!$A$9:$K$106,11,FALSE)),"") ->  | Z39: =IFERROR( IF(VLOOKUP($N39,Partnerek!$A$9:$K$106,11,FALSE)="","",VLOOKUP($N39,Partnerek!$A$9:$K$106,11,FALSE)),"") ->  | AA39: =IFERROR(VLOOKUP(Z39,ráták!$A$3:$AR$6,MATCH($Q39,ráták!$C$2:$AR$2,1)+2,FALSE),"") -> 
Y40: =IFERROR( IF(VLOOKUP($M40,Partnerek!$A$9:$K$106,11,FALSE)="","",VLOOKUP($M40,Partnerek!$A$9:$K$106,11,FALSE)),"") ->  | Z40: =IFERROR( IF(VLOOKUP($N40,Partnerek!$A$9:$K$106,11,FALSE)="","",VLOOKUP($N40,Partnerek!$A$9:$K$106,11,FALSE)),"") ->  | AA40: =IFERROR(VLOOKUP(Z40,ráták!$A$3:$AR$6,MATCH($Q40,ráták!$C$2:$AR$2,1)+2,FALSE),"") -> 
M41: =IF((IFERROR(RIGHT($A41,2),"")="KI"),Erasmus_kod,"") ->  | U41: =IFERROR( IF( ((RIGHT(A41,2)="KI")*(Y41="HU")*(Z41<>"HU"))+((RIGHT(A41,2)="BE")*(Y41<>"HU")*(Z41="HU")), IF(A41<>"",AA41,""),""),"") ->  | Y41: =IFERROR( IF(VLOOKUP($M41,Partnerek!$A$9:$K$106,11,FALSE)="","",VLOOKUP($M41,Partnerek!$A$9:$K$106,11,FALSE)),"") ->  | Z41: =IFERROR( IF(VLOOKUP($N41,Partnerek!$A$9:$K$106,11,FALSE)="","",VLOOKUP($N41,Partnerek!$A$9:$K$106,11,FALSE)),"") ->  | AA41: =IFERROR(VLOOKUP(Z41,ráták!$A$3:$AR$6,MATCH($Q41,ráták!$C$2:$AR$2,1)+2,FALSE),"") -> 
Y42: =IFERROR( IF(VLOOKUP($M42,Partnerek!$A$9:$K$106,11,FALSE)="","",VLOOKUP($M42,Partnerek!$A$9:$K$106,11,FALSE)),"") ->  | Z42: =IFERROR( IF(VLOOKUP($N42,Partnerek!$A$9:$K$106,11,FALSE)="","",VLOOKUP($N42,Partnerek!$A$9:$K$106,11,FALSE)),"") ->  | AA42: =IFERROR(VLOOKUP(Z42,ráták!$A$3:$AR$6,MATCH($Q42,ráták!$C$2:$AR$2,1)+2,FALSE),"") -> 
Y43: =IFERROR( IF(VLOOKUP($M43,Partnerek!$A$9:$K$106,11,FALSE)="","",VLOOKUP($M43,Partnerek!$A$9:$K$106,11,FALSE)),"") ->  | Z43: =IFERROR( IF(VLOOKUP($N43,Partnerek!$A$9:$K$106,11,FALSE)="","",VLOOKUP($N43,Partnerek!$A$9:$K$106,11,FALSE)),"") ->  | AA43: =IFERROR(VLOOKUP(Z43,ráták!$A$3:$AR$6,MATCH($Q43,ráták!$C$2:$AR$2,1)+2,FALSE),"") -> 
Y44: =IFERROR( IF(VLOOKUP($M44,Partnerek!$A$9:$K$106,11,FALSE)="","",VLOOKUP($M44,Partnerek!$A$9:$K$106,11,FALSE)),"") ->  | Z44: =IFERROR( IF(VLOOKUP($N44,Partnerek!$A$9:$K$106,11,FALSE)="","",VLOOKUP($N44,Partnerek!$A$9:$K$106,11,FALSE)),"") ->  | AA44: =IFERROR(VLOOKUP(Z44,ráták!$A$3:$AR$6,MATCH($Q44,ráták!$C$2:$AR$2,1)+2,FALSE),"") -> 
Y45: =IFERROR( IF(VLOOKUP($M45,Partnerek!$A$9:$K$106,11,FALSE)="","",VLOOKUP($M45,Partnerek!$A$9:$K$106,11,FALSE)),"") ->  | Z45: =IFERROR( IF(VLOOKUP($N45,Partnerek!$A$9:$K$106,11,FALSE)="","",VLOOKUP($N45,Partnerek!$A$9:$K$106,11,FALSE)),"") ->  | AA45: =IFERROR(VLOOKUP(Z45,ráták!$A$3:$AR$6,MATCH($Q45,ráták!$C$2:$AR$2,1)+2,FALSE),"") -> 
Y46: =IFERROR( IF(VLOOKUP($M46,Partnerek!$A$9:$K$106,11,FALSE)="","",VLOOKUP($M46,Partnerek!$A$9:$K$106,11,FALSE)),"") ->  | Z46: =IFERROR( IF(VLOOKUP($N46,Partnerek!$A$9:$K$106,11,FALSE)="","",VLOOKUP($N46,Partnerek!$A$9:$K$106,11,FALSE)),"") ->  | AA46: =IFERROR(VLOOKUP(Z46,ráták!$A$3:$AR$6,MATCH($Q46,ráták!$C$2:$AR$2,1)+2,FALSE),"") -> 
Y47: =IFERROR( IF(VLOOKUP($M47,Partnerek!$A$9:$K$106,11,FALSE)="","",VLOOKUP($M47,Partnerek!$A$9:$K$106,11,FALSE)),"") ->  | Z47: =IFERROR( IF(VLOOKUP($N47,Partnerek!$A$9:$K$106,11,FALSE)="","",VLOOKUP($N47,Partnerek!$A$9:$K$106,11,FALSE)),"") ->  | AA47: =IFERROR(VLOOKUP(Z47,ráták!$A$3:$AR$6,MATCH($Q47,ráták!$C$2:$AR$2,1)+2,FALSE),"") -> 
Y48: =IFERROR( IF(VLOOKUP($M48,Partnerek!$A$9:$K$106,11,FALSE)="","",VLOOKUP($M48,Partnerek!$A$9:$K$106,11,FALSE)),"") ->  | Z48: =IFERROR( IF(VLOOKUP($N48,Partnerek!$A$9:$K$106,11,FALSE)="","",VLOOKUP($N48,Partnerek!$A$9:$K$106,11,FALSE)),"") ->  | AA48: =IFERROR(VLOOKUP(Z48,ráták!$A$3:$AR$6,MATCH($Q48,ráták!$C$2:$AR$2,1)+2,FALSE),"") -> 
Y49: =IFERROR( IF(VLOOKUP($M49,Partnerek!$A$9:$K$106,11,FALSE)="","",VLOOKUP($M49,Partnerek!$A$9:$K$106,11,FALSE)),"") ->  | Z49: =IFERROR( IF(VLOOKUP($N49,Partnerek!$A$9:$K$106,11,FALSE)="","",VLOOKUP($N49,Partnerek!$A$9:$K$106,11,FALSE)),"") ->  | AA49: =IFERROR(VLOOKUP(Z49,ráták!$A$3:$AR$6,MATCH($Q49,ráták!$C$2:$AR$2,1)+2,FALSE),"") -> 
Y50: =IFERROR( IF(VLOOKUP($M50,Partnerek!$A$9:$K$106,11,FALSE)="","",VLOOKUP($M50,Partnerek!$A$9:$K$106,11,FALSE)),"") ->  | Z50: =IFERROR( IF(VLOOKUP($N50,Partnerek!$A$9:$K$106,11,FALSE)="","",VLOOKUP($N50,Partnerek!$A$9:$K$106,11,FALSE)),"") ->  | AA50: =IFERROR(VLOOKUP(Z50,ráták!$A$3:$AR$6,MATCH($Q50,ráták!$C$2:$AR$2,1)+2,FALSE),"") -> 
Y51: =IFERROR( IF(VLOOKUP($M51,Partnerek!$A$9:$K$106,11,FALSE)="","",VLOOKUP($M51,Partnerek!$A$9:$K$106,11,FALSE)),"") ->  | Z51: =IFERROR( IF(VLOOKUP($N51,Partnerek!$A$9:$K$106,11,FALSE)="","",VLOOKUP($N51,Partnerek!$A$9:$K$106,11,FALSE)),"") ->  | AA51: =IFERROR(VLOOKUP(Z51,ráták!$A$3:$AR$6,MATCH($Q51,ráták!$C$2:$AR$2,1)+2,FALSE),"") -> 
Y52: =IFERROR( IF(VLOOKUP($M52,Partnerek!$A$9:$K$106,11,FALSE)="","",VLOOKUP($M52,Partnerek!$A$9:$K$106,11,FALSE)),"") ->  | Z52: =IFERROR( IF(VLOOKUP($N52,Partnerek!$A$9:$K$106,11,FALSE)="","",VLOOKUP($N52,Partnerek!$A$9:$K$106,11,FALSE)),"") ->  | AA52: =IFERROR(VLOOKUP(Z52,ráták!$A$3:$AR$6,MATCH($Q52,ráták!$C$2:$AR$2,1)+2,FALSE),"") -> 
Y53: =IFERROR( IF(VLOOKUP($M53,Partnerek!$A$9:$K$106,11,FALSE)="","",VLOOKUP($M53,Partnerek!$A$9:$K$106,11,FALSE)),"") ->  | Z53: =IFERROR( IF(VLOOKUP($N53,Partnerek!$A$9:$K$106,11,FALSE)="","",VLOOKUP($N53,Partnerek!$A$9:$K$106,11,FALSE)),"") ->  | AA53: =IFERROR(VLOOKUP(Z53,ráták!$A$3:$AR$6,MATCH($Q53,ráták!$C$2:$AR$2,1)+2,FALSE),"") -> 
Y54: =IFERROR( IF(VLOOKUP($M54,Partnerek!$A$9:$K$106,11,FALSE)="","",VLOOKUP($M54,Partnerek!$A$9:$K$106,11,FALSE)),"") ->  | Z54: =IFERROR( IF(VLOOKUP($N54,Partnerek!$A$9:$K$106,11,FALSE)="","",VLOOKUP($N54,Partnerek!$A$9:$K$106,11,FALSE)),"") ->  | AA54: =IFERROR(VLOOKUP(Z54,ráták!$A$3:$AR$6,MATCH($Q54,ráták!$C$2:$AR$2,1)+2,FALSE),"") -> 
Y55: =IFERROR( IF(VLOOKUP($M55,Partnerek!$A$9:$K$106,11,FALSE)="","",VLOOKUP($M55,Partnerek!$A$9:$K$106,11,FALSE)),"") ->  | Z55: =IFERROR( IF(VLOOKUP($N55,Partnerek!$A$9:$K$106,11,FALSE)="","",VLOOKUP($N55,Partnerek!$A$9:$K$106,11,FALSE)),"") ->  | AA55: =IFERROR(VLOOKUP(Z55,ráták!$A$3:$AR$6,MATCH($Q55,ráták!$C$2:$AR$2,1)+2,FALSE),"") -> 
Y56: =IFERROR( IF(VLOOKUP($M56,Partnerek!$A$9:$K$106,11,FALSE)="","",VLOOKUP($M56,Partnerek!$A$9:$K$106,11,FALSE)),"") ->  | Z56: =IFERROR( IF(VLOOKUP($N56,Partnerek!$A$9:$K$106,11,FALSE)="","",VLOOKUP($N56,Partnerek!$A$9:$K$106,11,FALSE)),"") ->  | AA56: =IFERROR(VLOOKUP(Z56,ráták!$A$3:$AR$6,MATCH($Q56,ráták!$C$2:$AR$2,1)+2,FALSE),"") -> 
Y57: =IFERROR( IF(VLOOKUP($M57,Partnerek!$A$9:$K$106,11,FALSE)="","",VLOOKUP($M57,Partnerek!$A$9:$K$106,11,FALSE)),"") ->  | Z57: =IFERROR( IF(VLOOKUP($N57,Partnerek!$A$9:$K$106,11,FALSE)="","",VLOOKUP($N57,Partnerek!$A$9:$K$106,11,FALSE)),"") ->  | AA57: =IFERROR(VLOOKUP(Z57,ráták!$A$3:$AR$6,MATCH($Q57,ráták!$C$2:$AR$2,1)+2,FALSE),"") -> 
Y58: =IFERROR( IF(VLOOKUP($M58,Partnerek!$A$9:$K$106,11,FALSE)="","",VLOOKUP($M58,Partnerek!$A$9:$K$106,11,FALSE)),"") ->  | Z58: =IFERROR( IF(VLOOKUP($N58,Partnerek!$A$9:$K$106,11,FALSE)="","",VLOOKUP($N58,Partnerek!$A$9:$K$106,11,FALSE)),"") ->  | AA58: =IFERROR(VLOOKUP(Z58,ráták!$A$3:$AR$6,MATCH($Q58,ráták!$C$2:$AR$2,1)+2,FALSE),"") -> 
Y59: =IFERROR( IF(VLOOKUP($M59,Partnerek!$A$9:$K$106,11,FALSE)="","",VLOOKUP($M59,Partnerek!$A$9:$K$106,11,FALSE)),"") ->  | Z59: =IFERROR( IF(VLOOKUP($N59,Partnerek!$A$9:$K$106,11,FALSE)="","",VLOOKUP($N59,Partnerek!$A$9:$K$106,11,FALSE)),"") ->  | AA59: =IFERROR(VLOOKUP(Z59,ráták!$A$3:$AR$6,MATCH($Q59,ráták!$C$2:$AR$2,1)+2,FALSE),"") -> 
Y60: =IFERROR( IF(VLOOKUP($M60,Partnerek!$A$9:$K$106,11,FALSE)="","",VLOOKUP($M60,Partnerek!$A$9:$K$106,11,FALSE)),"") ->  | Z60: =IFERROR( IF(VLOOKUP($N60,Partnerek!$A$9:$K$106,11,FALSE)="","",VLOOKUP($N60,Partnerek!$A$9:$K$106,11,FALSE)),"") ->  | AA60: =IFERROR(VLOOKUP(Z60,ráták!$A$3:$AR$6,MATCH($Q60,ráták!$C$2:$AR$2,1)+2,FALSE),"") -> 
Y61: =IFERROR( IF(VLOOKUP($M61,Partnerek!$A$9:$K$106,11,FALSE)="","",VLOOKUP($M61,Partnerek!$A$9:$K$106,11,FALSE)),"") ->  | Z61: =IFERROR( IF(VLOOKUP($N61,Partnerek!$A$9:$K$106,11,FALSE)="","",VLOOKUP($N61,Partnerek!$A$9:$K$106,11,FALSE)),"") ->  | AA61: =IFERROR(VLOOKUP(Z61,ráták!$A$3:$AR$6,MATCH($Q61,ráták!$C$2:$AR$2,1)+2,FALSE),"") -> 
Y62: =IFERROR( IF(VLOOKUP($M62,Partnerek!$A$9:$K$106,11,FALSE)="","",VLOOKUP($M62,Partnerek!$A$9:$K$106,11,FALSE)),"") ->  | Z62: =IFERROR( IF(VLOOKUP($N62,Partnerek!$A$9:$K$106,11,FALSE)="","",VLOOKUP($N62,Partnerek!$A$9:$K$106,11,FALSE)),"") ->  | AA62: =IFERROR(VLOOKUP(Z62,ráták!$A$3:$AR$6,MATCH($Q62,ráták!$C$2:$AR$2,1)+2,FALSE),"") -> 
Y63: =IFERROR( IF(VLOOKUP($M63,Partnerek!$A$9:$K$106,11,FALSE)="","",VLOOKUP($M63,Partnerek!$A$9:$K$106,11,FALSE)),"") ->  | Z63: =IFERROR( IF(VLOOKUP($N63,Partnerek!$A$9:$K$106,11,FALSE)="","",VLOOKUP($N63,Partnerek!$A$9:$K$106,11,FALSE)),"") ->  | AA63: =IFERROR(VLOOKUP(Z63,ráták!$A$3:$AR$6,MATCH($Q63,ráták!$C$2:$AR$2,1)+2,FALSE),"") -> 
Y64: =IFERROR( IF(VLOOKUP($M64,Partnerek!$A$9:$K$106,11,FALSE)="","",VLOOKUP($M64,Partnerek!$A$9:$K$106,11,FALSE)),"") ->  | Z64: =IFERROR( IF(VLOOKUP($N64,Partnerek!$A$9:$K$106,11,FALSE)="","",VLOOKUP($N64,Partnerek!$A$9:$K$106,11,FALSE)),"") ->  | AA64: =IFERROR(VLOOKUP(Z64,ráták!$A$3:$AR$6,MATCH($Q64,ráták!$C$2:$AR$2,1)+2,FALSE),"") -> 
Y65: =IFERROR( IF(VLOOKUP($M65,Partnerek!$A$9:$K$106,11,FALSE)="","",VLOOKUP($M65,Partnerek!$A$9:$K$106,11,FALSE)),"") ->  | Z65: =IFERROR( IF(VLOOKUP($N65,Partnerek!$A$9:$K$106,11,FALSE)="","",VLOOKUP($N65,Partnerek!$A$9:$K$106,11,FALSE)),"") ->  | AA65: =IFERROR(VLOOKUP(Z65,ráták!$A$3:$AR$6,MATCH($Q65,ráták!$C$2:$AR$2,1)+2,FALSE),"") -> 
Y66: =IFERROR( IF(VLOOKUP($M66,Partnerek!$A$9:$K$106,11,FALSE)="","",VLOOKUP($M66,Partnerek!$A$9:$K$106,11,FALSE)),"") ->  | Z66: =IFERROR( IF(VLOOKUP($N66,Partnerek!$A$9:$K$106,11,FALSE)="","",VLOOKUP($N66,Partnerek!$A$9:$K$106,11,FALSE)),"") ->  | AA66: =IFERROR(VLOOKUP(Z66,ráták!$A$3:$AR$6,MATCH($Q66,ráták!$C$2:$AR$2,1)+2,FALSE),"") -> 
Y67: =IFERROR( IF(VLOOKUP($M67,Partnerek!$A$9:$K$106,11,FALSE)="","",VLOOKUP($M67,Partnerek!$A$9:$K$106,11,FALSE)),"") ->  | Z67: =IFERROR( IF(VLOOKUP($N67,Partnerek!$A$9:$K$106,11,FALSE)="","",VLOOKUP($N67,Partnerek!$A$9:$K$106,11,FALSE)),"") ->  | AA67: =IFERROR(VLOOKUP(Z67,ráták!$A$3:$AR$6,MATCH($Q67,ráták!$C$2:$AR$2,1)+2,FALSE),"") -> 
Y68: =IFERROR( IF(VLOOKUP($M68,Partnerek!$A$9:$K$106,11,FALSE)="","",VLOOKUP($M68,Partnerek!$A$9:$K$106,11,FALSE)),"") ->  | Z68: =IFERROR( IF(VLOOKUP($N68,Partnerek!$A$9:$K$106,11,FALSE)="","",VLOOKUP($N68,Partnerek!$A$9:$K$106,11,FALSE)),"") ->  | AA68: =IFERROR(VLOOKUP(Z68,ráták!$A$3:$AR$6,MATCH($Q68,ráták!$C$2:$AR$2,1)+2,FALSE),"") -> 
Y69: =IFERROR( IF(VLOOKUP($M69,Partnerek!$A$9:$K$106,11,FALSE)="","",VLOOKUP($M69,Partnerek!$A$9:$K$106,11,FALSE)),"") ->  | Z69: =IFERROR( IF(VLOOKUP($N69,Partnerek!$A$9:$K$106,11,FALSE)="","",VLOOKUP($N69,Partnerek!$A$9:$K$106,11,FALSE)),"") ->  | AA69: =IFERROR(VLOOKUP(Z69,ráták!$A$3:$AR$6,MATCH($Q69,ráták!$C$2:$AR$2,1)+2,FALSE),"") -> 
Y70: =IFERROR( IF(VLOOKUP($M70,Partnerek!$A$9:$K$106,11,FALSE)="","",VLOOKUP($M70,Partnerek!$A$9:$K$106,11,FALSE)),"") ->  | Z70: =IFERROR( IF(VLOOKUP($N70,Partnerek!$A$9:$K$106,11,FALSE)="","",VLOOKUP($N70,Partnerek!$A$9:$K$106,11,FALSE)),"") ->  | AA70: =IFERROR(VLOOKUP(Z70,ráták!$A$3:$AR$6,MATCH($Q70,ráták!$C$2:$AR$2,1)+2,FALSE),"") -> 
Y71: =IFERROR( IF(VLOOKUP($M71,Partnerek!$A$9:$K$106,11,FALSE)="","",VLOOKUP($M71,Partnerek!$A$9:$K$106,11,FALSE)),"") ->  | Z71: =IFERROR( IF(VLOOKUP($N71,Partnerek!$A$9:$K$106,11,FALSE)="","",VLOOKUP($N71,Partnerek!$A$9:$K$106,11,FALSE)),"") ->  | AA71: =IFERROR(VLOOKUP(Z71,ráták!$A$3:$AR$6,MATCH($Q71,ráták!$C$2:$AR$2,1)+2,FALSE),"") -> 
Y72: =IFERROR( IF(VLOOKUP($M72,Partnerek!$A$9:$K$106,11,FALSE)="","",VLOOKUP($M72,Partnerek!$A$9:$K$106,11,FALSE)),"") ->  | Z72: =IFERROR( IF(VLOOKUP($N72,Partnerek!$A$9:$K$106,11,FALSE)="","",VLOOKUP($N72,Partnerek!$A$9:$K$106,11,FALSE)),"") ->  | AA72: =IFERROR(VLOOKUP(Z72,ráták!$A$3:$AR$6,MATCH($Q72,ráták!$C$2:$AR$2,1)+2,FALSE),"") -> 
M73: =IF((IFERROR(RIGHT($A73,2),"")="KI"),Erasmus_kod,"") ->  | U73: =IFERROR( IF( ((RIGHT(A73,2)="KI")*(Y73="HU")*(Z73<>"HU"))+((RIGHT(A73,2)="BE")*(Y73<>"HU")*(Z73="HU")), IF(A73<>"",AA73,""),""),"") ->  | Y73: =IFERROR( IF(VLOOKUP($M73,Partnerek!$A$9:$K$106,11,FALSE)="","",VLOOKUP($M73,Partnerek!$A$9:$K$106,11,FALSE)),"") ->  | Z73: =IFERROR( IF(VLOOKUP($N73,Partnerek!$A$9:$K$106,11,FALSE)="","",VLOOKUP($N73,Partnerek!$A$9:$K$106,11,FALSE)),"") ->  | AA73: =IFERROR(VLOOKUP(Z73,ráták!$A$3:$AR$6,MATCH($Q73,ráták!$C$2:$AR$2,1)+2,FALSE),"") -> 
Q74: =IFERROR(IF((ISBLANK(O74)*ISBLANK(P74)),"", IF(P74<O74,"",IF( (P74-O74+1)>42,"",P74-O74+1))),"") ->  | Y74: =IFERROR( IF(VLOOKUP($M74,Partnerek!$A$9:$K$106,11,FALSE)="","",VLOOKUP($M74,Partnerek!$A$9:$K$106,11,FALSE)),"") ->  | Z74: =IFERROR( IF(VLOOKUP($N74,Partnerek!$A$9:$K$106,11,FALSE)="","",VLOOKUP($N74,Partnerek!$A$9:$K$106,11,FALSE)),"") ->  | AA74: =IFERROR(VLOOKUP(Z74,ráták!$A$3:$AR$6,MATCH($Q74,ráták!$C$2:$AR$2,1)+2,FALSE),"") -> 
Y75: =IFERROR( IF(VLOOKUP($M75,Partnerek!$A$9:$K$106,11,FALSE)="","",VLOOKUP($M75,Partnerek!$A$9:$K$106,11,FALSE)),"") ->  | Z75: =IFERROR( IF(VLOOKUP($N75,Partnerek!$A$9:$K$106,11,FALSE)="","",VLOOKUP($N75,Partnerek!$A$9:$K$106,11,FALSE)),"") ->  | AA75: =IFERROR(VLOOKUP(Z75,ráták!$A$3:$AR$6,MATCH($Q75,ráták!$C$2:$AR$2,1)+2,FALSE),"") -> 
Y76: =IFERROR( IF(VLOOKUP($M76,Partnerek!$A$9:$K$106,11,FALSE)="","",VLOOKUP($M76,Partnerek!$A$9:$K$106,11,FALSE)),"") ->  | Z76: =IFERROR( IF(VLOOKUP($N76,Partnerek!$A$9:$K$106,11,FALSE)="","",VLOOKUP($N76,Partnerek!$A$9:$K$106,11,FALSE)),"") ->  | AA76: =IFERROR(VLOOKUP(Z76,ráták!$A$3:$AR$6,MATCH($Q76,ráták!$C$2:$AR$2,1)+2,FALSE),"") -> 
Y77: =IFERROR( IF(VLOOKUP($M77,Partnerek!$A$9:$K$106,11,FALSE)="","",VLOOKUP($M77,Partnerek!$A$9:$K$106,11,FALSE)),"") ->  | Z77: =IFERROR( IF(VLOOKUP($N77,Partnerek!$A$9:$K$106,11,FALSE)="","",VLOOKUP($N77,Partnerek!$A$9:$K$106,11,FALSE)),"") ->  | AA77: =IFERROR(VLOOKUP(Z77,ráták!$A$3:$AR$6,MATCH($Q77,ráták!$C$2:$AR$2,1)+2,FALSE),"") -> 
Y78: =IFERROR( IF(VLOOKUP($M78,Partnerek!$A$9:$K$106,11,FALSE)="","",VLOOKUP($M78,Partnerek!$A$9:$K$106,11,FALSE)),"") ->  | Z78: =IFERROR( IF(VLOOKUP($N78,Partnerek!$A$9:$K$106,11,FALSE)="","",VLOOKUP($N78,Partnerek!$A$9:$K$106,11,FALSE)),"") ->  | AA78: =IFERROR(VLOOKUP(Z78,ráták!$A$3:$AR$6,MATCH($Q78,ráták!$C$2:$AR$2,1)+2,FALSE),"") -> 
Y79: =IFERROR( IF(VLOOKUP($M79,Partnerek!$A$9:$K$106,11,FALSE)="","",VLOOKUP($M79,Partnerek!$A$9:$K$106,11,FALSE)),"") ->  | Z79: =IFERROR( IF(VLOOKUP($N79,Partnerek!$A$9:$K$106,11,FALSE)="","",VLOOKUP($N79,Partnerek!$A$9:$K$106,11,FALSE)),"") ->  | AA79: =IFERROR(VLOOKUP(Z79,ráták!$A$3:$AR$6,MATCH($Q79,ráták!$C$2:$AR$2,1)+2,FALSE),"") -> 
Y80: =IFERROR( IF(VLOOKUP($M80,Partnerek!$A$9:$K$106,11,FALSE)="","",VLOOKUP($M80,Partnerek!$A$9:$K$106,11,FALSE)),"") ->  | Z80: =IFERROR( IF(VLOOKUP($N80,Partnerek!$A$9:$K$106,11,FALSE)="","",VLOOKUP($N80,Partnerek!$A$9:$K$106,11,FALSE)),"") ->  | AA80: =IFERROR(VLOOKUP(Z80,ráták!$A$3:$AR$6,MATCH($Q80,ráták!$C$2:$AR$2,1)+2,FALSE),"") -> 
Y81: =IFERROR( IF(VLOOKUP($M81,Partnerek!$A$9:$K$106,11,FALSE)="","",VLOOKUP($M81,Partnerek!$A$9:$K$106,11,FALSE)),"") ->  | Z81: =IFERROR( IF(VLOOKUP($N81,Partnerek!$A$9:$K$106,11,FALSE)="","",VLOOKUP($N81,Partnerek!$A$9:$K$106,11,FALSE)),"") ->  | AA81: =IFERROR(VLOOKUP(Z81,ráták!$A$3:$AR$6,MATCH($Q81,ráták!$C$2:$AR$2,1)+2,FALSE),"") -> 
Y82: =IFERROR( IF(VLOOKUP($M82,Partnerek!$A$9:$K$106,11,FALSE)="","",VLOOKUP($M82,Partnerek!$A$9:$K$106,11,FALSE)),"") ->  | Z82: =IFERROR( IF(VLOOKUP($N82,Partnerek!$A$9:$K$106,11,FALSE)="","",VLOOKUP($N82,Partnerek!$A$9:$K$106,11,FALSE)),"") ->  | AA82: =IFERROR(VLOOKUP(Z82,ráták!$A$3:$AR$6,MATCH($Q82,ráták!$C$2:$AR$2,1)+2,FALSE),"") -> 
Y83: =IFERROR( IF(VLOOKUP($M83,Partnerek!$A$9:$K$106,11,FALSE)="","",VLOOKUP($M83,Partnerek!$A$9:$K$106,11,FALSE)),"") ->  | Z83: =IFERROR( IF(VLOOKUP($N83,Partnerek!$A$9:$K$106,11,FALSE)="","",VLOOKUP($N83,Partnerek!$A$9:$K$106,11,FALSE)),"") ->  | AA83: =IFERROR(VLOOKUP(Z83,ráták!$A$3:$AR$6,MATCH($Q83,ráták!$C$2:$AR$2,1)+2,FALSE),"") -> 
Y84: =IFERROR( IF(VLOOKUP($M84,Partnerek!$A$9:$K$106,11,FALSE)="","",VLOOKUP($M84,Partnerek!$A$9:$K$106,11,FALSE)),"") ->  | Z84: =IFERROR( IF(VLOOKUP($N84,Partnerek!$A$9:$K$106,11,FALSE)="","",VLOOKUP($N84,Partnerek!$A$9:$K$106,11,FALSE)),"") ->  | AA84: =IFERROR(VLOOKUP(Z84,ráták!$A$3:$AR$6,MATCH($Q84,ráták!$C$2:$AR$2,1)+2,FALSE),"") -> 
Y85: =IFERROR( IF(VLOOKUP($M85,Partnerek!$A$9:$K$106,11,FALSE)="","",VLOOKUP($M85,Partnerek!$A$9:$K$106,11,FALSE)),"") ->  | Z85: =IFERROR( IF(VLOOKUP($N85,Partnerek!$A$9:$K$106,11,FALSE)="","",VLOOKUP($N85,Partnerek!$A$9:$K$106,11,FALSE)),"") ->  | AA85: =IFERROR(VLOOKUP(Z85,ráták!$A$3:$AR$6,MATCH($Q85,ráták!$C$2:$AR$2,1)+2,FALSE),"") -> 
Y86: =IFERROR( IF(VLOOKUP($M86,Partnerek!$A$9:$K$106,11,FALSE)="","",VLOOKUP($M86,Partnerek!$A$9:$K$106,11,FALSE)),"") ->  | Z86: =IFERROR( IF(VLOOKUP($N86,Partnerek!$A$9:$K$106,11,FALSE)="","",VLOOKUP($N86,Partnerek!$A$9:$K$106,11,FALSE)),"") ->  | AA86: =IFERROR(VLOOKUP(Z86,ráták!$A$3:$AR$6,MATCH($Q86,ráták!$C$2:$AR$2,1)+2,FALSE),"") -> 
Y87: =IFERROR( IF(VLOOKUP($M87,Partnerek!$A$9:$K$106,11,FALSE)="","",VLOOKUP($M87,Partnerek!$A$9:$K$106,11,FALSE)),"") ->  | Z87: =IFERROR( IF(VLOOKUP($N87,Partnerek!$A$9:$K$106,11,FALSE)="","",VLOOKUP($N87,Partnerek!$A$9:$K$106,11,FALSE)),"") ->  | AA87: =IFERROR(VLOOKUP(Z87,ráták!$A$3:$AR$6,MATCH($Q87,ráták!$C$2:$AR$2,1)+2,FALSE),"") -> 
Y88: =IFERROR( IF(VLOOKUP($M88,Partnerek!$A$9:$K$106,11,FALSE)="","",VLOOKUP($M88,Partnerek!$A$9:$K$106,11,FALSE)),"") ->  | Z88: =IFERROR( IF(VLOOKUP($N88,Partnerek!$A$9:$K$106,11,FALSE)="","",VLOOKUP($N88,Partnerek!$A$9:$K$106,11,FALSE)),"") ->  | AA88: =IFERROR(VLOOKUP(Z88,ráták!$A$3:$AR$6,MATCH($Q88,ráták!$C$2:$AR$2,1)+2,FALSE),"") -> 
Y89: =IFERROR( IF(VLOOKUP($M89,Partnerek!$A$9:$K$106,11,FALSE)="","",VLOOKUP($M89,Partnerek!$A$9:$K$106,11,FALSE)),"") ->  | Z89: =IFERROR( IF(VLOOKUP($N89,Partnerek!$A$9:$K$106,11,FALSE)="","",VLOOKUP($N89,Partnerek!$A$9:$K$106,11,FALSE)),"") ->  | AA89: =IFERROR(VLOOKUP(Z89,ráták!$A$3:$AR$6,MATCH($Q89,ráták!$C$2:$AR$2,1)+2,FALSE),"") -> 
Y90: =IFERROR( IF(VLOOKUP($M90,Partnerek!$A$9:$K$106,11,FALSE)="","",VLOOKUP($M90,Partnerek!$A$9:$K$106,11,FALSE)),"") ->  | Z90: =IFERROR( IF(VLOOKUP($N90,Partnerek!$A$9:$K$106,11,FALSE)="","",VLOOKUP($N90,Partnerek!$A$9:$K$106,11,FALSE)),"") ->  | AA90: =IFERROR(VLOOKUP(Z90,ráták!$A$3:$AR$6,MATCH($Q90,ráták!$C$2:$AR$2,1)+2,FALSE),"") -> 
Y91: =IFERROR( IF(VLOOKUP($M91,Partnerek!$A$9:$K$106,11,FALSE)="","",VLOOKUP($M91,Partnerek!$A$9:$K$106,11,FALSE)),"") ->  | Z91: =IFERROR( IF(VLOOKUP($N91,Partnerek!$A$9:$K$106,11,FALSE)="","",VLOOKUP($N91,Partnerek!$A$9:$K$106,11,FALSE)),"") ->  | AA91: =IFERROR(VLOOKUP(Z91,ráták!$A$3:$AR$6,MATCH($Q91,ráták!$C$2:$AR$2,1)+2,FALSE),"") -> 
Y92: =IFERROR( IF(VLOOKUP($M92,Partnerek!$A$9:$K$106,11,FALSE)="","",VLOOKUP($M92,Partnerek!$A$9:$K$106,11,FALSE)),"") ->  | Z92: =IFERROR( IF(VLOOKUP($N92,Partnerek!$A$9:$K$106,11,FALSE)="","",VLOOKUP($N92,Partnerek!$A$9:$K$106,11,FALSE)),"") ->  | AA92: =IFERROR(VLOOKUP(Z92,ráták!$A$3:$AR$6,MATCH($Q92,ráták!$C$2:$AR$2,1)+2,FALSE),"") -> 
Y93: =IFERROR( IF(VLOOKUP($M93,Partnerek!$A$9:$K$106,11,FALSE)="","",VLOOKUP($M93,Partnerek!$A$9:$K$106,11,FALSE)),"") ->  | Z93: =IFERROR( IF(VLOOKUP($N93,Partnerek!$A$9:$K$106,11,FALSE)="","",VLOOKUP($N93,Partnerek!$A$9:$K$106,11,FALSE)),"") ->  | AA93: =IFERROR(VLOOKUP(Z93,ráták!$A$3:$AR$6,MATCH($Q93,ráták!$C$2:$AR$2,1)+2,FALSE),"") -> 
Y94: =IFERROR( IF(VLOOKUP($M94,Partnerek!$A$9:$K$106,11,FALSE)="","",VLOOKUP($M94,Partnerek!$A$9:$K$106,11,FALSE)),"") ->  | Z94: =IFERROR( IF(VLOOKUP($N94,Partnerek!$A$9:$K$106,11,FALSE)="","",VLOOKUP($N94,Partnerek!$A$9:$K$106,11,FALSE)),"") ->  | AA94: =IFERROR(VLOOKUP(Z94,ráták!$A$3:$AR$6,MATCH($Q94,ráták!$C$2:$AR$2,1)+2,FALSE),"") -> 
Y95: =IFERROR( IF(VLOOKUP($M95,Partnerek!$A$9:$K$106,11,FALSE)="","",VLOOKUP($M95,Partnerek!$A$9:$K$106,11,FALSE)),"") ->  | Z95: =IFERROR( IF(VLOOKUP($N95,Partnerek!$A$9:$K$106,11,FALSE)="","",VLOOKUP($N95,Partnerek!$A$9:$K$106,11,FALSE)),"") ->  | AA95: =IFERROR(VLOOKUP(Z95,ráták!$A$3:$AR$6,MATCH($Q95,ráták!$C$2:$AR$2,1)+2,FALSE),"") -> 
Y96: =IFERROR( IF(VLOOKUP($M96,Partnerek!$A$9:$K$106,11,FALSE)="","",VLOOKUP($M96,Partnerek!$A$9:$K$106,11,FALSE)),"") ->  | Z96: =IFERROR( IF(VLOOKUP($N96,Partnerek!$A$9:$K$106,11,FALSE)="","",VLOOKUP($N96,Partnerek!$A$9:$K$106,11,FALSE)),"") ->  | AA96: =IFERROR(VLOOKUP(Z96,ráták!$A$3:$AR$6,MATCH($Q96,ráták!$C$2:$AR$2,1)+2,FALSE),"") -> 
Y97: =IFERROR( IF(VLOOKUP($M97,Partnerek!$A$9:$K$106,11,FALSE)="","",VLOOKUP($M97,Partnerek!$A$9:$K$106,11,FALSE)),"") ->  | Z97: =IFERROR( IF(VLOOKUP($N97,Partnerek!$A$9:$K$106,11,FALSE)="","",VLOOKUP($N97,Partnerek!$A$9:$K$106,11,FALSE)),"") ->  | AA97: =IFERROR(VLOOKUP(Z97,ráták!$A$3:$AR$6,MATCH($Q97,ráták!$C$2:$AR$2,1)+2,FALSE),"") -> 
Y98: =IFERROR( IF(VLOOKUP($M98,Partnerek!$A$9:$K$106,11,FALSE)="","",VLOOKUP($M98,Partnerek!$A$9:$K$106,11,FALSE)),"") ->  | Z98: =IFERROR( IF(VLOOKUP($N98,Partnerek!$A$9:$K$106,11,FALSE)="","",VLOOKUP($N98,Partnerek!$A$9:$K$106,11,FALSE)),"") ->  | AA98: =IFERROR(VLOOKUP(Z98,ráták!$A$3:$AR$6,MATCH($Q98,ráták!$C$2:$AR$2,1)+2,FALSE),"") -> 
Y99: =IFERROR( IF(VLOOKUP($M99,Partnerek!$A$9:$K$106,11,FALSE)="","",VLOOKUP($M99,Partnerek!$A$9:$K$106,11,FALSE)),"") ->  | Z99: =IFERROR( IF(VLOOKUP($N99,Partnerek!$A$9:$K$106,11,FALSE)="","",VLOOKUP($N99,Partnerek!$A$9:$K$106,11,FALSE)),"") ->  | AA99: =IFERROR(VLOOKUP(Z99,ráták!$A$3:$AR$6,MATCH($Q99,ráták!$C$2:$AR$2,1)+2,FALSE),"") -> 
Y100: =IFERROR( IF(VLOOKUP($M100,Partnerek!$A$9:$K$106,11,FALSE)="","",VLOOKUP($M100,Partnerek!$A$9:$K$106,11,FALSE)),"") ->  | Z100: =IFERROR( IF(VLOOKUP($N100,Partnerek!$A$9:$K$106,11,FALSE)="","",VLOOKUP($N100,Partnerek!$A$9:$K$106,11,FALSE)),"") ->  | AA100: =IFERROR(VLOOKUP(Z100,ráták!$A$3:$AR$6,MATCH($Q100,ráták!$C$2:$AR$2,1)+2,FALSE),"") -> 
Y101: =IFERROR( IF(VLOOKUP($M101,Partnerek!$A$9:$K$106,11,FALSE)="","",VLOOKUP($M101,Partnerek!$A$9:$K$106,11,FALSE)),"") ->  | Z101: =IFERROR( IF(VLOOKUP($N101,Partnerek!$A$9:$K$106,11,FALSE)="","",VLOOKUP($N101,Partnerek!$A$9:$K$106,11,FALSE)),"") ->  | AA101: =IFERROR(VLOOKUP(Z101,ráták!$A$3:$AR$6,MATCH($Q101,ráták!$C$2:$AR$2,1)+2,FALSE),"") -> 
Y102: =IFERROR( IF(VLOOKUP($M102,Partnerek!$A$9:$K$106,11,FALSE)="","",VLOOKUP($M102,Partnerek!$A$9:$K$106,11,FALSE)),"") ->  | Z102: =IFERROR( IF(VLOOKUP($N102,Partnerek!$A$9:$K$106,11,FALSE)="","",VLOOKUP($N102,Partnerek!$A$9:$K$106,11,FALSE)),"") ->  | AA102: =IFERROR(VLOOKUP(Z102,ráták!$A$3:$AR$6,MATCH($Q102,ráták!$C$2:$AR$2,1)+2,FALSE),"") -> 
Y103: =IFERROR( IF(VLOOKUP($M103,Partnerek!$A$9:$K$106,11,FALSE)="","",VLOOKUP($M103,Partnerek!$A$9:$K$106,11,FALSE)),"") ->  | Z103: =IFERROR( IF(VLOOKUP($N103,Partnerek!$A$9:$K$106,11,FALSE)="","",VLOOKUP($N103,Partnerek!$A$9:$K$106,11,FALSE)),"") ->  | AA103: =IFERROR(VLOOKUP(Z103,ráták!$A$3:$AR$6,MATCH($Q103,ráták!$C$2:$AR$2,1)+2,FALSE),"") -> 
Y104: =IFERROR( IF(VLOOKUP($M104,Partnerek!$A$9:$K$106,11,FALSE)="","",VLOOKUP($M104,Partnerek!$A$9:$K$106,11,FALSE)),"") ->  | Z104: =IFERROR( IF(VLOOKUP($N104,Partnerek!$A$9:$K$106,11,FALSE)="","",VLOOKUP($N104,Partnerek!$A$9:$K$106,11,FALSE)),"") ->  | AA104: =IFERROR(VLOOKUP(Z104,ráták!$A$3:$AR$6,MATCH($Q104,ráták!$C$2:$AR$2,1)+2,FALSE),"") -> 
Y105: =IFERROR( IF(VLOOKUP($M105,Partnerek!$A$9:$K$106,11,FALSE)="","",VLOOKUP($M105,Partnerek!$A$9:$K$106,11,FALSE)),"") ->  | Z105: =IFERROR( IF(VLOOKUP($N105,Partnerek!$A$9:$K$106,11,FALSE)="","",VLOOKUP($N105,Partnerek!$A$9:$K$106,11,FALSE)),"") ->  | AA105: =IFERROR(VLOOKUP(Z105,ráták!$A$3:$AR$6,MATCH($Q105,ráták!$C$2:$AR$2,1)+2,FALSE),"") -> 
Y106: =IFERROR( IF(VLOOKUP($M106,Partnerek!$A$9:$K$106,11,FALSE)="","",VLOOKUP($M106,Partnerek!$A$9:$K$106,11,FALSE)),"") ->  | Z106: =IFERROR( IF(VLOOKUP($N106,Partnerek!$A$9:$K$106,11,FALSE)="","",VLOOKUP($N106,Partnerek!$A$9:$K$106,11,FALSE)),"") ->  | AA106: =IFERROR(VLOOKUP(Z106,ráták!$A$3:$AR$6,MATCH($Q106,ráták!$C$2:$AR$2,1)+2,FALSE),"") -> 
Y107: =IFERROR( IF(VLOOKUP($M107,Partnerek!$A$9:$K$106,11,FALSE)="","",VLOOKUP($M107,Partnerek!$A$9:$K$106,11,FALSE)),"") ->  | Z107: =IFERROR( IF(VLOOKUP($N107,Partnerek!$A$9:$K$106,11,FALSE)="","",VLOOKUP($N107,Partnerek!$A$9:$K$106,11,FALSE)),"") ->  | AA107: =IFERROR(VLOOKUP(Z107,ráták!$A$3:$AR$6,MATCH($Q107,ráták!$C$2:$AR$2,1)+2,FALSE),"") -> 
Y108: =IFERROR( IF(VLOOKUP($M108,Partnerek!$A$9:$K$106,11,FALSE)="","",VLOOKUP($M108,Partnerek!$A$9:$K$106,11,FALSE)),"") ->  | Z108: =IFERROR( IF(VLOOKUP($N108,Partnerek!$A$9:$K$106,11,FALSE)="","",VLOOKUP($N108,Partnerek!$A$9:$K$106,11,FALSE)),"") ->  | AA108: =IFERROR(VLOOKUP(Z108,ráták!$A$3:$AR$6,MATCH($Q108,ráták!$C$2:$AR$2,1)+2,FALSE),"") -> 

Sheet Pénzügyi elszámolás
B1: =IF(Azonosítás!A3="","",Azonosítás!A3) -> 
D2: =Erasmus_kod -> 
B3: Intézmény neve: | D3: =IF(Azonosítás!A9="","",Azonosítás!A9) -> 
B4: Szerződésszám: | D4: =Azonosítás!A6 -> 0
E5: Hallgatók | H5: Oktatói, személyzeti mobilitás | K5: Felkészítés | L5: Mobilitás szervezése | M5: Összesen
B6: Szerződéses adatok | E6: Tanulmányok | F6: Gyakorlat | G6: Nyári egyetem | H6: Oktatás | I6: Konferencia, tréning | J6: Intézménylátogatás
B7: Megítélt támogatás összege | E7: =VLOOKUP($D$4,Alapadatok,6,FALSE) ->  | F7: =VLOOKUP($D$4,Alapadatok,7,FALSE) ->  | G7: =VLOOKUP($D$4,Alapadatok,8,FALSE) ->  | H7: =VLOOKUP($D$4,Alapadatok,9,FALSE) ->  | I7: =VLOOKUP($D$4,Alapadatok,10,FALSE) ->  | J7: =VLOOKUP($D$4,Alapadatok,11,FALSE) ->  | K7: =VLOOKUP($D$4,Alapadatok,12,FALSE) ->  | L7: =VLOOKUP($D$4,Alapadatok,13,FALSE) ->  | M7: =VLOOKUP($D$4,Alapadatok,14,FALSE) -> 
B8: Évközi módosítás összege (+/-) | E8: 0 | F8: 0 | G8: 0 | H8: 0 | I8: 0 | J8: 0 | K8: 0 | L8: 0 | M8: =SUM(E8:L8) -> 0
B9: Megítélt összesen | E9: =E7+E8 -> 
B10: Megkötött szerződés(ek) összege (FOI - TKA) | M10: =SUM(E10:L10) -> 0
C11: ="-ig a Miniszterelnökségtől átutalt összesen" -> -ig a Miniszterelnökségtől átutalt összesen
B13: Jóváhagyott be- és kiutazói létszám | E13: =VLOOKUP($D$4,Alapadatok,18,FALSE)+VLOOKUP($D$4,Alapadatok,20,FALSE) ->  | F13: =VLOOKUP($D$4,Alapadatok,22,FALSE)+VLOOKUP($D$4,Alapadatok,24,FALSE) ->  | G13: =VLOOKUP($D$4,Alapadatok,26,FALSE)+VLOOKUP($D$4,Alapadatok,28,FALSE) ->  | H13: =VLOOKUP($D$4,Alapadatok,30,FALSE)+VLOOKUP($D$4,Alapadatok,32,FALSE) ->  | I13: =VLOOKUP($D$4,Alapadatok,34,FALSE)+VLOOKUP($D$4,Alapadatok,36,FALSE) ->  | J13: =VLOOKUP($D$4,Alapadatok,38,FALSE)+VLOOKUP($D$4,Alapadatok,40,FALSE) ->  | K13: =VLOOKUP($D$4,Alapadatok,59,FALSE) ->  | M13: =SUM(E13:J13) -> 
B14: Megkötött szerződések szerinti be- és kiutazói létszám | E14: =SUM(IF((('Ki- és beutazó hallgatók'!$A$9:$A$108="SMS_KI")+('Ki- és beutazó hallgatók'!$A$9:$A$108="SMS_BE"))*('Ki- és beutazó hallgatók'!$B$9:$B$108<>""),1,0)) -> 0 | F14: =SUM(IF((('Ki- és beutazó hallgatók'!$A$9:$A$108="SMP_KI")+('Ki- és beutazó hallgatók'!$A$9:$A$108="SMP_BE"))*('Ki- és beutazó hallgatók'!$B$9:$B$108<>""),1,0)) -> 0 | G14: =SUM(IF((('Ki- és beutazó hallgatók'!$A$9:$A$108="SMS_SU_KI")+('Ki- és beutazó hallgatók'!$A$9:$A$108="SMS_SU_BE"))*('Ki- és beutazó hallgatók'!$B$9:$B$108<>""),1,0)) -> 0 | H14: =SUM(IF((('Ki- és beutazó okt, személyzet'!$A$9:$A$108="STA_KI")+('Ki- és beutazó okt, személyzet'!$A$9:$A$108="STA_BE"))*('Ki- és beutazó okt, személyzet'!$B$9:$B$108="Oktatás")*('Ki- és beutazó okt, személyzet'!$E$9:$E$108<>""),1,0)) -> 0 | I14: =SUM(IF(('Ki- és beutazó okt, személyzet'!$A$9:$A$108<>"")*('Ki- és beutazó okt, személyzet'!$B$9:$B$108="Konferencia/Szeminárium/Tréning")*('Ki- és beutazó okt, személyzet'!$E$9:$E$108<>""),1,0)) -> 0 | J14: =SUM(IF(('Ki- és beutazó okt, személyzet'!$A$9:$A$108<>"")*('Ki- és beutazó okt, személyzet'!$B$9:$B$108="Intézménylátogatás")*('Ki- és beutazó okt, személyzet'!$E$9:$E$108<>""),1,0)) -> 0 | K14: =SUM(IF(('Ki- és beutazó hallgatók'!$AB$9:$AB$108="Yes")*('Ki- és beutazó hallgatók'!$B$9:$B$108<>""),1,0)) -> 0 | M14: =SUM(E14:J14) -> 0
B15: További tervezett be- és kiutazói létszám | E15: =SUM(IF((('Ki- és beutazó hallgatók'!$A$9:$A$108="SMS_KI")+('Ki- és beutazó hallgatók'!$A$9:$A$108="SMS_BE")),1,0)) -> 0 | F15: =SUM(IF((('Ki- és beutazó hallgatók'!$A$9:$A$108="SMP_KI")+('Ki- és beutazó hallgatók'!$A$9:$A$108="SMP_BE")),1,0)) -> 0 | G15: =SUM(IF((('Ki- és beutazó hallgatók'!$A$9:$A$108="SMS_SU_KI")+('Ki- és beutazó hallgatók'!$A$9:$A$108="SMS_SU_BE")),1,0)) -> 0 | H15: =SUM(IF((('Ki- és beutazó okt, személyzet'!$A$9:$A$108="STA_KI")+('Ki- és beutazó okt, személyzet'!$A$9:$A$108="STA_BE"))*('Ki- és beutazó okt, személyzet'!$B$9:$B$108="Oktatás"),1,0)) -> 0 | I15: =SUM(IF(('Ki- és beutazó okt, személyzet'!$A$9:$A$108<>"")*('Ki- és beutazó okt, személyzet'!$B$9:$B$108="Konferencia,Szeminárium,Tréning"),1,0)) -> 0 | J15: =SUM(IF(('Ki- és beutazó okt, személyzet'!$A$9:$A$108<>"")*('Ki- és beutazó okt, személyzet'!$B$9:$B$108="Intézménylátogatás"),1,0)) -> 0 | K15: =SUM(IF(('Ki- és beutazó hallgatók'!$AB$9:$AB$108="Y"),1,0)) -> 0 | M15: =SUM(E15:J15) -> 0
B16: Továbbiakban tervezett be- és kiutazók száma | M16: =SUM($E$16:$J$16) -> 0
B18: Felhasználható támogatás | E18: =E9 -> 
B20: Elszámolás | L20: =IF(((M14+M16)*100)>L18,"Támogatási szerződésen túli mobilitás-szervezési igény:","Nem jogosult mobilitásszervezési költség:") ->  | M20: =IF(((M14+M16)*100)>L18,(M16+M14-M13)*100,(M13-M14-M16)*100) -> 
B21: Elszámolható támogatás | E21: =E18 ->  | K21: =K18 ->  | L21: =IF((M14+M16)>M13,L18,L18-M20) ->  | M21: =SUM(E21:L21) -> 
B22: Megkötött szerződésben elszámolt támogatás | E22: =SUM(IF((('Ki- és beutazó hallgatók'!$A$9:$A$108="SMS_KI")+('Ki- és beutazó hallgatók'!$A$9:$A$108="SMS_BE"))*('Ki- és beutazó hallgatók'!$B$9:$B$108<>""),'Ki- és beutazó hallgatók'!$AC$9:$AC$108,0)) -> 0 | F22: =SUM(IF((('Ki- és beutazó hallgatók'!$A$9:$A$108="SMP_KI")+('Ki- és beutazó hallgatók'!$A$9:$A$108="SMP_BE"))*('Ki- és beutazó hallgatók'!$B$9:$B$108<>""),'Ki- és beutazó hallgatók'!$AC$9:$AC$108,0)) -> 0 | G22: =SUM(IF((('Ki- és beutazó hallgatók'!$A$9:$A$108="SMS_SU_KI")+('Ki- és beutazó hallgatók'!$A$9:$A$108="SMS_SU_BE"))*('Ki- és beutazó hallgatók'!$B$9:$B$108<>""),'Ki- és beutazó hallgatók'!$AC$9:$AC$108,0)) -> 0 | H22: =SUM(IF((('Ki- és beutazó okt, személyzet'!$A$9:$A$108="STA_KI")+('Ki- és beutazó okt, személyzet'!$A$9:$A$108="STA_BE"))*('Ki- és beutazó okt, személyzet'!$B$9:$B$108="Oktatás")*('Ki- és beutazó okt, személyzet'!$E$9:$E$108<>""),'Ki- és beutazó okt, személyzet'!$U$9:$U$108,0)) -> 0 | I22: =SUM(IF(('Ki- és beutazó okt, személyzet'!$A$9:$A$108<>"")*('Ki- és beutazó okt, személyzet'!$B$9:$B$108="Konferencia/Szeminárium/Tréning")*('Ki- és beutazó okt, személyzet'!$E$9:$E$108<>""),'Ki- és beutazó okt, személyzet'!$U$9:$U$108,0)) -> 0 | J22: =SUM(IF(('Ki- és beutazó okt, személyzet'!$A$9:$A$108<>"")*('Ki- és beutazó okt, személyzet'!$B$9:$B$108="Intézménylátogatás")*('Ki- és beutazó okt, személyzet'!$E$9:$E$108<>""),'Ki- és beutazó okt, személyzet'!$U$9:$U$108,0)) -> 0 | K22: =SUM(IF(('Ki- és beutazó hallgatók'!$AB$9:$AB$108="Yes")*('Ki- és beutazó hallgatók'!$B$9:$B$108<>""),100,0)) -> 0 | L22: =M14*100 -> 0 | M22: =SUM(E22:L22) -> 0
B23: További felhasználni tervezett összeg | M23: =SUM(E23:L23) -> 0
B24: =IF(B1="Erasmus éves beszámoló 2013/2014","Felhasznált összeg","Elszámolt + felhasználni tervezett összege") -> Elszámolt + felhasználni tervezett összege | E24: =E22+E23 -> 0 | F24: 0 | G24: 0 | H24: 0 | I24: 0 | J24: 0 | K24: 0 | L24: 0 | M24: =SUM(E24:L24) -> 0
C25: ="-ig ténylegesen kifizetett" -> -ig ténylegesen kifizetett | M25: =SUM(E25:L25) -> 0
B26: Átutalási kérelem összege | M26: =IF(AND(M25>(M11*0.7),M11<M9),M7*0.1,0) -> 
B27: =IF(OR(B1="Erasmus évközi beszámoló 2013/2014", B1="Erasmus módosított évközi beszámoló 2013/2014"), "Várható maradvány","Maradvány") -> Maradvány | E27: =(E21-E22)-E23 ->  | L27: =(L21-L22)-L23 ->  | M27: =SUM(E27:L27) -> 
B29: Megjegyzés:
F32: Hivatalos képviselő:
C33: =IF(COUNTBLANK(B39:B49)<11,"HIBÁS BESZÁMOLÓ NEM KÜLDHETŐ BE!","") -> HIBÁS BESZÁMOLÓ NEM KÜLDHETŐ BE! | F33: Beosztása:
F34: Kelt:
J35: P.H.
B38: =IF(COUNTBLANK(B39:B49)<11,"HIBALISTA","") -> HIBALISTA
B39: =IF('Pénzügyi elszámolás'!B11="","Dátum hiányzik a B11-es cellában","") -> Dátum hiányzik a B11-es cellában
B40: =IF('Pénzügyi elszámolás'!M11="","Miniszterelnökségtől átutalt összeg hiányzik a M11-es cellában", "") -> Miniszterelnökségtől átutalt összeg hiányzik a M11-es cellában
B41: =IF('Pénzügyi elszámolás'!B25="","Dátum hiányzik a B25-ös cellában", "") -> Dátum hiányzik a B25-ös cellában
B42: =IF('Pénzügyi elszámolás'!E25="","A ténylegesen kifizetett összeg hiányzik az E25-ös cellában", "") -> A ténylegesen kifizetett összeg hiányzik az E25-ös cellában
B43: =IF('Pénzügyi elszámolás'!F25="","A ténylegesen kifizetett összeg hiányzik az F25-ös cellában", "") -> A ténylegesen kifizetett összeg hiányzik az F25-ös cellában
B44: =IF('Pénzügyi elszámolás'!G25="","A ténylegesen kifizetett összeg hiányzik az G25-ös cellában", "") -> A ténylegesen kifizetett összeg hiányzik az G25-ös cellában
B45: =IF('Pénzügyi elszámolás'!H25="","A ténylegesen kifizetett összeg hiányzik az H25-ös cellában", "") -> A ténylegesen kifizetett összeg hiányzik az H25-ös cellában
B46: =IF('Pénzügyi elszámolás'!I25="","A ténylegesen kifizetett összeg hiányzik az I25-ös cellában", "") -> A ténylegesen kifizetett összeg hiányzik az I25-ös cellában
B47: =IF('Pénzügyi elszámolás'!J25="","A ténylegesen kifizetett összeg hiányzik az J25-ös cellában", "") -> A ténylegesen kifizetett összeg hiányzik az J25-ös cellában
B48: =IF('Pénzügyi elszámolás'!K25="","A ténylegesen kifizetett összeg hiányzik az K25-ös cellában", "") -> A ténylegesen kifizetett összeg hiányzik az K25-ös cellában
B49: =IF('Pénzügyi elszámolás'!L25="","A ténylegesen kifizetett összeg hiányzik az L25-ös cellában", "") -> A ténylegesen kifizetett összeg hiányzik az L25-ös cellában

Sheet Pályázói adatok (hidden)
A1: Szerzodesszam | B1: Erasmus_ID | C1: Intezmeny | D1: Város | E1: EUC_szam | F1: SMS | G1: SMP | H1: SMS SU | I1: Oktatás | J1: Konferencia, szeminárium, tréning | K1: Intézmény-látogatás | L1: Felkészítési ktg | M1: Mobilitás-szervezés | N1: Összes elnyert | O1: 80% | P1: 0.1 | Q1: Utolsó részlet | R1: Jóváhagyott fő (SMS_KI) | S1: Elvárt hó (SMS_KI) | T1: Jóváhagyott fő (SMS_BE) | U1: Elvárt hó (SMS_BE) | V1: Jóváhagyott fő (SMP_KI) | W1: Elvárt hó (SMP_KI) | X1: Jóváhagyott fő (SMP_BE) | Y1: Elvárt hó (SMP_BE) | Z1: Jóváhagyott fő (SMS_SU_KI) | AA1: Elvárt hó (SMS_SU_ki) | AB1: Jóváhagyott fő (SMS_SU_BE) | AC1: Elvárt hó (SMS_SU_BE) | AD1: Jóváhagyott fő (oktatás_ki) | AE1: Elvárt nap (oktatás_ki) | AF1: Jóváhagyott fő (oktatás_be) | AG1: Elvárt nap (oktatás_be) | AH1: Jóváhagyott fő (konf_ki) | AI1: Elvárt nap (konf_ki) | AJ1: Jóváhagyott fő (konf_be) | AK1: Elvárt nap (konf_be) | AL1: Jóváhagyott fő (int.lát_ki) | AM1: Elvárt nap (int.lát_ki) | AN1: Jóváhagyott fő (int.lát_be) | AO1: Elvárt nap (int.lát_be) | AP1: Jóváhagyott fő ÖSSZES | AQ1: Mobilitas Azonosito | AR1: Eloiranyzat Azonosito | AS1: Appid | AT1: Intézmény- típus | AU1: Működési forma | AV1: Jogi státusz | AW1: Gazdasági szektor | AX1: Méret (dolgozók) | AY1: Méret (tanulók) | AZ1: Kapcsolattartó telefon | BA1: Kapcsolattartó E-mail | BB1: Irányítószám | BC1: Város | BD1: Ország | BE1: Régió | BF1: Projektkód | BG1: Felkészítés | BH1: NUTS_kod | BI1: Partner kontaktszemély neve | BJ1: Partner kontaktszemély telefonszáma | BK1: Partner kontaktszemély e-mailcíme
A2: EGT/156/M2-0011 | B2: HU BUDAPES02 | C2: Budapesti Műszaki és Gazdaságtudományi Egyetem | D2: Budapest | F2: 61800 | G2: 0 | H2: 0 | I2: 13458 | J2: 9600 | K2: 7472 | L2: 1600 | M2: 4100 | N2: 98030 | O2: 78424 | P2: 9803 | Q2: 9803 | R2: 12 | S2: 48 | T2: 6 | U2: 24 | V2: 0 | W2: 0 | X2: 0 | Y2: 0 | Z2: 0 | AA2: 0 | AB2: 0 | AC2: 0 | AD2: 6 | AE2: 60 | AF2: 4 | AG2: 28 | AH2: 6 | AI2: 42 | AJ2: 2 | AK2: 14 | AL2: 4 | AM2: 40 | AN2: 1 | AO2: 7 | AP2: 41 | AT2: EDU-UNIV | AU2: NP | AV2: PB | AW2: P | AZ2: 06-30-461-4603 | BA2: ebaku@epitesz.bme.hu | BB2: 1111 | BC2: Budapest | BD2: HU | BE2: HU10 | BG2: 16 | BH2: HU101 | BI2: Baku Eszter | BJ2: 36304614603 | BK2: ebaku@epitesz.bme.hu
A3: EGT/156/M2-0012 | B3: HU BUDAPES25 | C3: Liszt Ferenc Zeneművészeti Egyetem | D3: Budapest | F3: 0 | G3: 0 | H3: 11500 | I3: 0 | J3: 5086 | K3: 0 | L3: 0 | M3: 1400 | N3: 17986 | O3: 14388.8 | P3: 1798.6 | Q3: 1798.6 | R3: 0 | S3: 0 | T3: 0 | U3: 0 | V3: 0 | W3: 0 | X3: 0 | Y3: 0 | Z3: 5 | AA3: 5 | AB3: 5 | AC3: 5 | AD3: 0 | AE3: 0 | AF3: 0 | AG3: 0 | AH3: 2 | AI3: 16 | AJ3: 2 | AK3: 22 | AL3: 0 | AM3: 0 | AN3: 0 | AO3: 0 | AP3: 14 | AT3: EDU-UNIV | AU3: NP | AV3: PB | AW3: P | AZ3: 06-30-409-6731 | BA3: kirkosa.adam@lisztakademia.hu | BB3: 1061 | BC3: Budapest | BD3: HU | BE3: HU10 | BG3: 0 | BH3: HU101 | BI3: Kirkósa Ádám | BJ3: 36304096731 | BK3: kirkosa.adam@lisztakademia.hu
A4: EGT/156/M2-0013 | B4: HU BUDAPES03 | C4: Budapesti Corvinus Egyetem | D4: Budapest | F4: 71000 | G4: 12400 | H4: 5900 | I4: 2029 | J4: 2029 | K4: 2029 | L4: 0 | M4: 4000 | N4: 99387 | O4: 79509.6 | P4: 9938.7 | Q4: 9938.7 | R4: 14 | S4: 56 | T4: 8 | U4: 24 | V4: 5 | W4: 2 | X4: 1 | Y4: 1 | Z4: 1 | AA4: 1 | AB4: 5 | AC4: 5 | AD4: 1 | AE4: 6 | AF4: 1 | AG4: 6 | AH4: 1 | AI4: 6 | AJ4: 1 | AK4: 6 | AL4: 1 | AM4: 6 | AN4: 1 | AO4: 6 | AP4: 40 | AT4: EDU-UNIV | AU4: NP | AV4: PB | AW4: P | AZ4: 06-1-482-5189 | BA4: gabor.szalai@uni-corvinus.hu | BB4: 1093 | BC4: Budapest | BD4: HU | BE4: HU10 | BG4: 0 | BH4: HU101 | BI4: Szalai Gábor | BJ4: 3614825189 | BK4: gabor.szalai@uni-corvinus.hu
A5: EGT/156/M2-0014 | B5: HU SOPRON01 | C5: Nyugat-magyarországi Egyetem | D5: Sopron | F5: 0 | G5: 0 | H5: 0 | I5: 0 | J5: 0 | K5: 7645 | L5: 0 | M5: 500 | N5: 8145 | O5: 6516 | P5: 814.5 | Q5: 814.5 | R5: 0 | S5: 0 | T5: 0 | U5: 0 | V5: 0 | W5: 0 | X5: 0 | Y5: 0 | Z5: 0 | AA5: 0 | AB5: 0 | AC5: 0 | AD5: 0 | AE5: 0 | AF5: 0 | AG5: 0 | AH5: 0 | AI5: 0 | AJ5: 0 | AK5: 0 | AL5: 5 | AM5: 45 | AN5: 0 | AO5: 0 | AP5: 5 | AT5: EDU-UNIV | AU5: NP | AV5: PB | AW5: P | AZ5: 06-30-316-0653 | BA5: Kitzinger.Arianna@bpk.nyme.hu | BB5: 9400 | BC5: Sopron | BD5: HU | BE5: HU22 | BG5: 0 | BH5: HU221 | BI5: Kitzinger Arianna | BJ5: 36303160653 | BK5: Kitzinger.Arianna@bpk.nyme.hu
A6: EGT/156/M2-0015 | B6: HU SZEGED01 | C6: Szegedi Tudományegyetem | D6: Szeged | F6: 33000 | G6: 0 | H6: 8400 | I6: 22432 | J6: 20712 | K6: 6927 | L6: 1000 | M6: 6700 | N6: 99771 | O6: 79816.8 | P6: 9977.1 | Q6: 9977.1 | R6: 6 | S6: 24 | T6: 4 | U6: 16 | V6: 0 | W6: 0 | X6: 0 | Y6: 0 | Z6: 6 | AA6: 6 | AB6: 0 | AC6: 0 | AD6: 10 | AE6: 70 | AF6: 12 | AG6: 60 | AH6: 12 | AI6: 60 | AJ6: 10 | AK6: 50 | AL6: 5 | AM6: 25 | AN6: 2 | AO6: 10 | AP6: 67 | AT6: EDU-UNIV | AU6: NP | AV6: PB | AW6: P | AZ6: 06-62-420-895 | BA6: gabriella.balog.molnar@rekt.szte.hu | BB6: 6720 | BC6: Szeged | BD6: HU | BE6: HU33 | BG6: 10 | BH6: HU333 | BI6: Balogné Molnár Gabriella | BJ6: 3662420895 | BK6: gabriella.balog.molnar@rekt.szte.hu
A7: EGT/156/M2-0016 | B7: HU BUDAPES20 | C7: Budapesti Gazdasági Egyetem | D7: Budapest | F7: 0 | G7: 0 | H7: 0 | I7: 0 | J7: 0 | K7: 7900 | L7: 0 | M7: 700 | N7: 8600 | O7: 6880 | P7: 860 | Q7: 860 | R7: 0 | S7: 0 | T7: 0 | U7: 0 | V7: 0 | W7: 0 | X7: 0 | Y7: 0 | Z7: 0 | AA7: 0 | AB7: 0 | AC7: 0 | AD7: 0 | AE7: 0 | AF7: 0 | AG7: 0 | AH7: 0 | AI7: 0 | AJ7: 0 | AK7: 0 | AL7: 4 | AM7: 28 | AN7: 3 | AO7: 21 | AP7: 7 | AT7: EDU-UNIV | AU7: NP | AV7: PB | AW7: P | AZ7: 06-30-525-0691 | BA7: kovatsneloch.agnes@uni-bge.hu | BB7: 1149 | BC7: Budapest | BD7: HU | BE7: HU10 | BG7: 0 | BH7: HU101 | BI7: Kovátsné dr. Loch Ágnes | BJ7: 36305250691 | BK7: kovatsneloch.agnes@uni-bge.hu
A8: EGT/156/M2-0017 | B8: HU BUDAPES16 | C8: Óbudai Egyetem | D8: Budapest | F8: 41200 | G8: 16400 | H8: 3200 | I8: 11712 | J8: 6471 | K8: 3213 | L8: 1200 | M8: 4100 | N8: 88096 | O8: 70476.8 | P8: 8809.6 | Q8: 8809.6 | R8: 8 | S8: 32 | T8: 4 | U8: 16 | V8: 4 | W8: 4 | X8: 0 | Y8: 0 | Z8: 1 | AA8: 1 | AB8: 2 | AC8: 2 | AD8: 8 | AE8: 40 | AF8: 4 | AG8: 20 | AH8: 4 | AI8: 20 | AJ8: 3 | AK8: 12 | AL8: 3 | AM8: 15 | AN8: 0 | AO8: 0 | AP8: 41 | AT8: EDU-UNIV | AU8: NP | AV8: PB | AW8: P | AZ8: 06-30-650-2368 | BA8: marosi.ildiko@kgk.uni-obuda.hu | BB8: 1034 | BC8: Budapest | BD8: HU | BE8: HU10 | BG8: 12 | BH8: HU101 | BI8: Marosi Ildikó | BJ8: 36306502368 | BK8: marosi.ildiko@kgk.uni-obuda.hu
A9: EGT/156/M2-0018 | B9: HU BUDAPES01 | C9: Eötvös Loránd Tudományegyetem | D9: Budapest | F9: 45000 | G9: 0 | H9: 2300 | I9: 0 | J9: 0 | K9: 3500 | L9: 1000 | M9: 1500 | N9: 53500 | O9: 42800 | P9: 5350 | Q9: 5350 | R9: 8 | S9: 40 | T9: 2 | U9: 10 | V9: 0 | W9: 0 | X9: 0 | Y9: 0 | Z9: 1 | AA9: 1 | AB9: 1 | AC9: 1 | AD9: 0 | AE9: 0 | AF9: 0 | AG9: 0 | AH9: 0 | AI9: 0 | AJ9: 0 | AK9: 0 | AL9: 2 | AM9: 14 | AN9: 1 | AO9: 7 | AP9: 15 | AT9: EDU-UNIV | AU9: NP | AV9: PB | AW9: P | AZ9: 06-30-961-1311 | BA9: aniko.szontagh@rk.elte.hu | BB9: 1053 | BC9: Budapest | BD9: HU | BE9: HU10 | BG9: 10 | BH9: HU101 | BI9: Szontágh Anikó | BJ9: 36309611311 | BK9: aniko.szontagh@rk.elte.hu
A10: EGT/156/M2-0019 | B10: HU BUDAPES27 | C10: Moholy-Nagy Művészeti Egyetem | D10: Budapest | F10: 0 | G10: 0 | H10: 0 | I10: 0 | J10: 0 | K10: 36600 | L10: 0 | M10: 1400 | N10: 38000 | O10: 30400 | P10: 3800 | Q10: 3800 | R10: 0 | S10: 0 | T10: 0 | U10: 0 | V10: 0 | W10: 0 | X10: 0 | Y10: 0 | Z10: 0 | AA10: 0 | AB10: 0 | AC10: 0 | AD10: 0 | AE10: 0 | AF10: 0 | AG10: 0 | AH10: 0 | AI10: 0 | AJ10: 0 | AK10: 0 | AL10: 12 | AM10: 252 | AN10: 2 | AO10: 14 | AP10: 14 | AT10: EDU-UNIV | AU10: NP | AV10: PB | AW10: P | AZ10: 06-20-247-1669 | BA10: feher.bori@mome.hu | BB10: 1121 | BC10: Budapest | BD10: HU | BE10: HU10 | BG10: 0 | BH10: HU101 | BI10: Fehér Borbála | BJ10: 36202471669 | BK10: feher.bori@mome.hu
A11: EGT/156/M2-0020 | B11: HU GODOLLO01 | C11: Szent István Egyetem | D11: Gödöllő | F11: 42900 | G11: 5900 | H11: 6900 | I11: 11501 | J11: 10400 | K11: 16001 | L11: 900 | M11: 4000 | N11: 98902 | O11: 79121.6 | P11: 9890.2 | Q11: 9890.2 | R11: 6 | S11: 36 | T11: 3 | U11: 15 | V11: 1 | W11: 6 | X11: 0 | Y11: 0 | Z11: 3 | AA11: 6 | AB11: 0 | AC11: 0 | AD11: 7 | AE11: 70 | AF11: 0 | AG11: 0 | AH11: 8 | AI11: 56 | AJ11: 0 | AK11: 0 | AL11: 7 | AM11: 70 | AN11: 5 | AO11: 35 | AP11: 40 | AT11: EDU-UNIV | AU11: NP | AV11: PB | AW11: P | AZ11: 06-70-219-9239 | BA11: tarr.zsuzsanna@fh.szie.hu | BB11: 2100 | BC11: Gödöllő | BD11: HU | BE11: HU10 | BG11: 9 | BH11: HU102 | BI11: dr. Tarr Zsuzsanna | BJ11: 36702199239 | BK11: tarr.zsuzsanna@fh.szie.hu

Sheet Kieg.tám.
A1: =Azonosítás!A9 -> 
A2: Szerződésszám: | C2: =Azonosítás!A6 -> 0 | L2: ________________________________
L3: intézményi koordinátor aláírása
E5: Bejövő | G5: Kimenő | I5: Támogatási összeg
A6: Eddigi támogatott mobilitások | E6: Fő | F6: Hónap | G6: Fő | H6: Hónap | L6: ________________________________
A7: HALLGATÓI | B7: tanulmányi | E7: =SUM(IF((('Ki- és beutazó hallgatók'!$A$9:$A$108="SMS_BE"))*('Ki- és beutazó hallgatók'!$B$9:$B$108<>""),1,0)) -> 0 | F7: =SUM(IF((('Ki- és beutazó hallgatók'!$A$9:$A$108="SMS_BE"))*('Ki- és beutazó hallgatók'!$B$9:$B$108<>""),'Ki- és beutazó hallgatók'!$Q$9:$Q$108,0)) -> 0 | G7: =SUM(IF(('Ki- és beutazó hallgatók'!$A$9:$A$108="SMS_KI")*('Ki- és beutazó hallgatók'!$B$9:$B$108<>""),1,0)) -> 0 | H7: =SUM(IF(('Ki- és beutazó hallgatók'!$A$9:$A$108="SMS_KI")*('Ki- és beutazó hallgatók'!$B$9:$B$108<>""),'Ki- és beutazó hallgatók'!$Q$9:$Q$108,0)) -> 0 | I7: =SUM(IF((IFERROR(LEN('Ki- és beutazó hallgatók'!$A$9:$A$108),0)<8)*(LEFT('Ki- és beutazó hallgatók'!$A$9:$A$108,3)="SMS")*('Ki- és beutazó hallgatók'!$B$9:$B$108<>""),'Ki- és beutazó hallgatók'!$AC$9:$AC$108,0)) -> 0 | L7: rektor aláírása
B8: szakmai gyakorlat | E8: =SUM(IF((('Ki- és beutazó hallgatók'!$A$9:$A$108="SMP_BE"))*('Ki- és beutazó hallgatók'!$B$9:$B$108<>""),1,0)) -> 0 | F8: =SUM(IF((('Ki- és beutazó hallgatók'!$A$9:$A$108="SMP_BE"))*('Ki- és beutazó hallgatók'!$B$9:$B$108<>""),'Ki- és beutazó hallgatók'!$T$9:$T$108,0)) -> 0 | G8: =SUM(IF(('Ki- és beutazó hallgatók'!$A$9:$A$108="SMP_KI")*('Ki- és beutazó hallgatók'!$B$9:$B$108<>""),1,0)) -> 0 | H8: =SUM(IF(('Ki- és beutazó hallgatók'!$A$9:$A$108="SMP_KI")*('Ki- és beutazó hallgatók'!$B$9:$B$108<>""),'Ki- és beutazó hallgatók'!$T$9:$T$108,0)) -> 0 | I8: =SUM(IF((LEFT('Ki- és beutazó hallgatók'!$A$9:$A$108,3)="SMP")*('Ki- és beutazó hallgatók'!$B$9:$B$108<>""),'Ki- és beutazó hallgatók'!$AC$9:$AC$108,0)) -> 0
B9: nyári egyetem | E9: =SUM(IF((('Ki- és beutazó hallgatók'!$A$9:$A$108="SMS_SU_BE"))*('Ki- és beutazó hallgatók'!$B$9:$B$108<>""),1,0)) -> 0 | F9: =SUM(IF((('Ki- és beutazó hallgatók'!$A$9:$A$108="SMS_SU_BE"))*('Ki- és beutazó hallgatók'!$B$9:$B$108<>""),'Ki- és beutazó hallgatók'!$W$9:$W$108,0)) -> 0 | G9: =SUM(IF(('Ki- és beutazó hallgatók'!$A$9:$A$108="SMS_SU_KI")*('Ki- és beutazó hallgatók'!$B$9:$B$108<>""),1,0)) -> 0 | H9: =SUM(IF(('Ki- és beutazó hallgatók'!$A$9:$A$108="SMS_SU_KI")*('Ki- és beutazó hallgatók'!$B$9:$B$108<>""),'Ki- és beutazó hallgatók'!$W$9:$W$108,0)) -> 0 | I9: =SUM(IF((IFERROR(LEN('Ki- és beutazó hallgatók'!$A$9:$A$108),0)>8)*('Ki- és beutazó hallgatók'!$B$9:$B$108<>""),'Ki- és beutazó hallgatók'!$AC$9:$AC$108,0)) -> 0
A10: OKTATÓI / SZEMÉLYZETI | E10: Fő | F10: Nap | G10: Fő | H10: Nap | I10: Támogatási összeg | L10: ________________________________
B11: oktatási célú | E11: =SUM(IF(('Ki- és beutazó okt, személyzet'!$A$9:$A$108="STA_BE")*('Ki- és beutazó okt, személyzet'!$E$9:$E$108<>""),1,0)) -> 0 | F11: =SUM(IF(('Ki- és beutazó okt, személyzet'!$A$9:$A$108="STA_BE")*('Ki- és beutazó okt, személyzet'!$E$9:$E$108<>""),'Ki- és beutazó okt, személyzet'!$Q$9:$Q$108,0)) -> 0 | G11: =SUM(IF(('Ki- és beutazó okt, személyzet'!$A$9:$A$108="STA_KI")*('Ki- és beutazó okt, személyzet'!$E$9:$E$108<>""),1,0)) -> 0 | H11: =SUM(IF(('Ki- és beutazó okt, személyzet'!$A$9:$A$108="STA_KI")*('Ki- és beutazó okt, személyzet'!$E$9:$E$108<>""),'Ki- és beutazó okt, személyzet'!$Q$9:$Q$108,0)) -> 0 | I11: =SUM(IF((LEFT('Ki- és beutazó okt, személyzet'!$A$9:$A$108,3)="STA")*('Ki- és beutazó okt, személyzet'!$E$9:$E$108<>""),'Ki- és beutazó okt, személyzet'!$U$9:$U$108,0)) -> 0
B12: konferencia/egyéb részvétel | E12: =SUM(IF(('Ki- és beutazó okt, személyzet'!$A$9:$A$108="STT_BE")*('Ki- és beutazó okt, személyzet'!$B$9:$B$108="Konferencia")*('Ki- és beutazó okt, személyzet'!$E$9:$E$108<>""),1,0)) -> 0 | F12: =SUM(IF(('Ki- és beutazó okt, személyzet'!$A$9:$A$108="STT_BE")*('Ki- és beutazó okt, személyzet'!$B$9:$B$108="Konferencia")*('Ki- és beutazó okt, személyzet'!$E$9:$E$108<>""),'Ki- és beutazó okt, személyzet'!$Q$9:$Q$108,0)) -> 0 | G12: =SUM(IF(('Ki- és beutazó okt, személyzet'!$A$9:$A$108="STT_KI")*('Ki- és beutazó okt, személyzet'!$B$9:$B$108="Konferencia")*('Ki- és beutazó okt, személyzet'!$E$9:$E$108<>""),1,0)) -> 0 | H12: =SUM(IF(('Ki- és beutazó okt, személyzet'!$A$9:$A$108="STT_KI")*('Ki- és beutazó okt, személyzet'!$B$9:$B$108="Konferencia")*('Ki- és beutazó okt, személyzet'!$E$9:$E$108<>""),'Ki- és beutazó okt, személyzet'!$Q$9:$Q$108,0)) -> 0 | I12: =SUM(IF((LEFT('Ki- és beutazó okt, személyzet'!$A$9:$A$108,3)="STT")*('Ki- és beutazó okt, személyzet'!$B$9:$B$108="Konferencia")*('Ki- és beutazó okt, személyzet'!$E$9:$E$108<>""),'Ki- és beutazó okt, személyzet'!$U$9:$U$108,0)) -> 0 | L12: szakmai ellenjegyző (ha szükséges)
B13: intézménylátogatás | E13: =SUM(IF(('Ki- és beutazó okt, személyzet'!$A$9:$A$108="STT_BE")*('Ki- és beutazó okt, személyzet'!$B$9:$B$108="Intézménylátogatás")*('Ki- és beutazó okt, személyzet'!$E$9:$E$108<>""),1,0)) -> 0 | F13: =SUM(IF(('Ki- és beutazó okt, személyzet'!$A$9:$A$108="STT_BE")*('Ki- és beutazó okt, személyzet'!$B$9:$B$108="Intézménylátogatás")*('Ki- és beutazó okt, személyzet'!$E$9:$E$108<>""),'Ki- és beutazó okt, személyzet'!$Q$9:$Q$108,0)) -> 0 | G13: =SUM(IF(('Ki- és beutazó okt, személyzet'!$A$9:$A$108="STT_KI")*('Ki- és beutazó okt, személyzet'!$B$9:$B$108="Intézménylátogatás")*('Ki- és beutazó okt, személyzet'!$E$9:$E$108<>""),1,0)) -> 0 | H13: =SUM(IF(('Ki- és beutazó okt, személyzet'!$A$9:$A$108="STT_KI")*('Ki- és beutazó okt, személyzet'!$B$9:$B$108="Intézménylátogatás")*('Ki- és beutazó okt, személyzet'!$E$9:$E$108<>""),'Ki- és beutazó okt, személyzet'!$Q$9:$Q$108,0)) -> 0 | I13: =SUM(IF((LEFT('Ki- és beutazó okt, személyzet'!$A$9:$A$108,3)="STT")*('Ki- és beutazó okt, személyzet'!$B$9:$B$108="Konferencia")*('Ki- és beutazó okt, személyzet'!$E$9:$E$108<>""),'Ki- és beutazó okt, személyzet'!$U$9:$U$108,0)) -> 0
A14: Eddigi támogatott mobilitások összesen: | E14: =SUM(E7:E9,E11:E13) -> 0 | G14: =SUM(G7:G9,G11:G13) -> 0 | I14: =SUM(I7:I9,I11:I13) -> 0
A15: eddigi igényelt mobilitás szervezés összesen | E15: =E14*100 -> 0 | G15: =G14*100 -> 0 | I15: =SUM(E15+G15) -> 0
A16: eddigi igényelt hallgatói felkészítés | I16: =IFERROR( INDEX('Pályázói adatok'!$L$2:$L$11, MATCH(Azonosítás!$A$6,'Pályázói adatok'!$A$2:$A$11,0)),0) -> 0
E18: Bejövő | G18: Kimenő | I18: Támogatási összeg
A19: Tervezett mobilitás-hosszabbítások | E19: Fő | F19: Hónap | G19: Fő | H19: Hónap
A20: HALLGATÓI | B20: tanulmányi | I20: =F20*400+E20*500+H20*900+G20*500 -> 0
B21: szakmai gyakorlat | I21: =F21*400+E21*500+H21*900+G21*500 -> 0
B22: nyári egyetem | I22: =F22*400+E22*500+H22*900+G22*500 -> 0
A23: OKTATÓI / SZEMÉLYZETI | E23: Fő | F23: Nap | G23: Fő | H23: Nap | I23: Támogatási összeg
B24: oktatási célú | I24: =IFERROR(INDEX(NORA!$L$2:$L$91,MATCH(F24,NORA!$A$2:$A$91,0)),0)+IFERROR(INDEX(NORA!$C$2:$C$91,MATCH(H24,NORA!$A$2:$A$91,0)),0)+E24*500+G24*500 -> 0
B25: konferencia/egyéb részvétel | I25: =IFERROR(INDEX(NORA!$L$2:$L$91,MATCH(F25,NORA!$A$2:$A$91,0)),0)+IFERROR(INDEX(NORA!$C$2:$C$91,MATCH(H25,NORA!$A$2:$A$91,0)),0)+E25*500+G25*500 -> 0
B26: intézménylátogatás | I26: =IFERROR(INDEX(NORA!$L$2:$L$91,MATCH(F26,NORA!$A$2:$A$91,0)),0)+IFERROR(INDEX(NORA!$C$2:$C$91,MATCH(H26,NORA!$A$2:$A$91,0)),0)+E26*500+G26*500 -> 0
A27: Tervezett mobilitás-hosszabbítások összesen: | E27: =SUM(E20,E21,E22,E24,E25,E26) -> 0 | G27: =SUM(G20,G21,G22,G24,G25,G26) -> 0 | I27: =SUM(I20,I21,I22,I24,I25,I26) -> 0
E29: Bejövő | G29: Kimenő | I29: Támogatási összeg
A30: Tervezett új mobilitások | E30: Fő | F30: Hónap | G30: Fő | H30: Hónap
A31: HALLGATÓI | B31: tanulmányi | I31: =F31*400+E31*500+H31*900+G31*500 -> 0
B32: szakmai gyakorlat | I32: =F32*400+E32*500+H32*900+G32*500 -> 0
B33: nyári egyetem | I33: =F33*400+E33*500+H33*900+G33*500 -> 0
A34: OKTATÓI / SZEMÉLYZETI | E34: Fő | F34: Nap | G34: Fő | H34: Nap | I34: Támogatási összeg
B35: oktatási célú | I35: =IFERROR(INDEX(NORA!$L$2:$L$91,MATCH(F35,NORA!$A$2:$A$91,0)),0)+IFERROR(INDEX(NORA!$C$2:$C$91,MATCH(H35,NORA!$A$2:$A$91,0)),0)+E35*500+G35*500 -> 0
B36: konferencia/egyéb részvétel | I36: =IFERROR(INDEX(NORA!$L$2:$L$91,MATCH(F36,NORA!$A$2:$A$91,0)),0)+IFERROR(INDEX(NORA!$C$2:$C$91,MATCH(H36,NORA!$A$2:$A$91,0)),0)+E36*500+G36*500 -> 0
B37: intézménylátogatás | I37: =IFERROR(INDEX(NORA!$L$2:$L$91,MATCH(F37,NORA!$A$2:$A$91,0)),0)+IFERROR(INDEX(NORA!$C$2:$C$91,MATCH(H37,NORA!$A$2:$A$91,0)),0)+E37*500+G37*500 -> 0
A38: Tervezett új mobilitások összesen: | E38: =SUM(E31,E32,E33,E35,E36,E37) -> 0 | G38: =SUM(G31,G32,G33,G35,G36,G37) -> 0 | I38: =SUM(I31,I32,I33,I35,I36,I37) -> 0
A39: igényelt mobilitás szervezés | E39: =E38 -> 0 | G39: =G38 -> 0 | I39: =SUM(E39,G39)*100 -> 0
A40: igényelt hallgatói felkészítés (fő) | I40: =(E40+G40)*100 -> 0
A42: Kiegészítő támogatási igény összesen: | E42: Bejövő | G42: Kimenő | I42: Támogatási összeg
A43: HALLGATÓI | E43: Fő | F43: Hónap | G43: Fő | H43: Hónap
E44: =SUM(E20:E22,E31:E33) -> 0 | F44: =SUM(F20:F22,F31:F33) -> 0 | G44: =SUM(G20:G22,G31:G33) -> 0 | H44: =SUM(H20:H22,H31:H33) -> 0 | I44: =SUM(I20:I22,I31:I33) -> 0
A45: OKTATÓI / SZEMÉLYZETI | E45: Fő | F45: Nap | G45: Fő | H45: Nap
E46: =SUM(E37,E36,E35,E24,E25,E26) -> 0 | F46: =SUM(F24:F26,F35:F37) -> 0 | G46: =SUM(G37,G36,G35,G26,G25,G24) -> 0 | H46: =SUM(H24:H26,H35:H37) -> 0 | I46: =SUM(I24:I26,I35:I37) -> 0
A47: igényelt mobilitás szervezés összesen | E47: =(E44+E46) -> 0 | G47: =(G44+G46) -> 0 | I47: =SUM(E47,G47)*100 -> 0
A48: igényelt hallgatói felkészítés összesen | E48: =E40 -> 0 | G48: =G40 -> 0 | I48: =(E48+G48)*100 -> 0

Sheet Segédadatok
C1: MOBILITY TYPE | D1: Description | F1: Erasmus országkód | G1: Országkód | H1: Ország | I1: Country | J1: Code | K1: Description | L1: Code | M1: Lang | N1: ISO_orszagkodok | O1: NACE1 | P1: Description | Q1: Napkezdes
C2: SMS | D2: ERASMUS Student Mobility for Studies | F2: HU | G2: HU | H2: Magyarország | I2: Hungary | J2: HU | K2: Hungary | L2: EN | M2: English | N2: AT | O2: A | P2: AGRICULTURE, FORESTRY AND FISHING | Q2: 2015-11-26
C3: SMP | D3: ERASMUS Student Mobility for Placements | F3: IS | G3: IS | H3: Izland | I3: Iceland | J3: IS | K3: Iceland | L3: DE | M3: German | N3: BE | O3: B | P3: MINING AND QUARRYING | Q3: 2015-11-27
C4: STA | D4: ERASMUS Staff Mobility | F4: LI | G4: LI | H4: Lichtenstein | I4: Liechtenstein | J4: LI | K4: Liechtenstein | L4: IS | M4: Icelandic | N4: BG | O4: C | P4: MANUFACTURING | Q4: 2015-11-28
C5: STT | D5: ERASMUS Staff Mobility | F5: NO | G5: NO | H5: Norvégia | I5: Norway | J5: NO | K5: Norway | L5: NO | M5: Norwegian | N5: CH | O5: D | P5: ELECTRICITY, GAS, STEAM AND AIR CONDITIONING SUPPLY | Q5: 2015-11-29
J6: XX | K6: other | L6: HU | M6: Hungarian | N6: CY | O6: E | P6: WATER SUPPLY; SEWERAGE, WASTE MANAGEMENT AND REMEDIATION ACTIVITIES | Q6: 2015-11-30
C7: GENDER | D7: Description | L7: AA | M7: Afar | N7: CZ | O7: F | P7: CONSTRUCTION | Q7: 2015-12-01
C8: F | D8: Female | F8: Type of Participant DoRIS | G8: Description | L8: AB | M8: Abkhazian | N8: DE | O8: G | P8: WHOLESALE AND RETAIL TRADE; REPAIR OF MOTOR VEHICLES AND MOTORCYCLES | Q8: 2015-12-02
C9: M | D9: Male | F9: TM - Teacher mobility | G9: Teacher mobility | L9: AE | M9: Avestan | N9: DK | O9: H | P9: TRANSPORTATION AND STORAGE | Q9: 2015-12-03
F10: AM - Administrative staff mobility | G10: Administrative staff mobility | L10: AF | M10: Afrikaans | N10: EE | O10: I | P10: ACCOMMODATION AND FOOD SERVICE ACTIVITIES | Q10: 2015-12-04
C11: TYPE OF PARTICIPANT | D11: Description | F11: RM - Researcher mobility | G11: Researcher mobility | L11: AK | M11: Akan | N11: ES | O11: J | P11: INFORMATION AND COMMUNICATION | Q11: 2015-12-05
C12: STA_KI | D12: Teaching staff out | F12: EM - Expert mobility | G12: Expert mobility | L12: AM | M12: Amharic | N12: FI | O12: K | P12: FINANCIAL AND INSURANCE ACTIVITIES | Q12: 2015-12-06
C13: STA_BE | D13: Teaching staff in | F13: GEM - Government employee mobility | G13: Government employee mobility | L13: AN | M13: Aragonese | N13: FL | O13: L | P13: REAL ESTATE ACTIVITIES | Q13: 2015-12-07
C14: STT_KI | D14: Non-teaching staff out | F14: Other | G14: Other (Please avoid using this category if not absolutely necessary) | L14: AR | M14: Arabic | N14: FR | O14: M | P14: PROFESSIONAL, SCIENTIFIC AND TECHNICAL ACTIVITIES | Q14: 2015-12-08
C15: STT_BE | D15: Non-teaching staff in | L15: AS | M15: Assamese | N15: GR | O15: N | P15: ADMINISTRATIVE AND SUPPORT SERVICE ACTIVITIES | Q15: 2015-12-09
L16: AV | M16: Avaric | N16: HR | O16: O | P16: PUBLIC ADMINISTRATION AND DEFENCE; COMPULSORY SOCIAL SECURITY | Q16: 2015-12-10
C17: Level of Study or Teaching | D17: Description | L17: AY | M17: Aymara | N17: HU | O17: P | P17: EDUCATION | Q17: 2015-12-11
C18: BA - Bachelor Level | D18: Bachelor Level | L18: AZ | M18: Azerbaijani | N18: IE | O18: Q | P18: HUMAN HEALTH AND SOCIAL WORK ACTIVITIES | Q18: 2015-12-12
C19: MA - Master Level | D19: Master Level | L19: BA | M19: Bashkir | N19: IS | O19: R | P19: ARTS, ENTERTAINMENT AND RECREATION | Q19: 2015-12-13
C20: Doc. - Doctoral level | D20: Doctoral level | L20: BE | M20: Belarusian | N20: IT | O20: S | P20: OTHER SERVICE ACTIVITIES | Q20: 2015-12-14
C21: Post. Doc. - Post doc. Level | D21: Post doc. Level | L21: BG | M21: Bulgarian | N21: LT | O21: T | P21: ACTIVITIES OF HOUSEHOLDS AS EMPLOYERS; UNDIFFERENTIATED GOODS- AND SERVICES-PRODUCING ACTIVITIES OF HOUSEHOLDS FOR OWN USE | Q21: 2015-12-15
C22: N/A - Non applicable | D22: Non applicable | L22: BH | M22: Bihari | N22: LU | O22: U | P22: ACTIVITIES OF EXTRATERRITORIAL ORGANIZATIONS AND BODIES | Q22: 2015-12-16
C23: R - Research | D23: Research | L23: BI | M23: Bislama | N23: LV | Q23: 2015-12-17
L24: BM | M24: Bambara | N24: MK | Q24: 2015-12-18
L25: BN | M25: Bengali | N25: MT | Q25: 2015-12-19
C26: Type of Activity | D26: Description | L26: BO | M26: Tibetan | N26: NL | Q26: 2015-12-20
C27: Oktatás | D27: Oktatás | L27: BR | M27: Breton | N27: NO | Q27: 2015-12-21
C28: Konferencia,Szeminárium,Tréning | D28: Konferencia,Szeminárium,Tréning | L28: BS | M28: Bosnian | N28: PL | Q28: 2015-12-22
C29: Intézménylátogatás | D29: Intézménylátogatás | L29: CA | M29: Catalan | N29: PT | Q29: 2015-12-23
C30: Category of Work | D30: Description | L30: CE | M30: Chechen | N30: RO | Q30: 2015-12-24
C31: Cont.Edu | D31: Continuing Education | L31: CH | M31: Chamorro | N31: SE | Q31: 2015-12-25
C32: Fin | D32: Finance | L32: CO | M32: Corsican | N32: SI | Q32: 2015-12-26
C33: Gen.Adm | D33: General Admin and Technical | L33: CR | M33: Cree | N33: SK | Q33: 2015-12-27
C34: Int.Off | D34: International Office | L34: CU | M34: Church Slavic | N34: TR | Q34: 2015-12-28
C35: Oth | D35: Other | L35: CV | M35: Chuvash | N35: UK | Q35: 2015-12-29
C36: Stud.Inf | D36: Student Information | L36: CY | M36: Welsh | N36: XX | Q36: 2015-12-30
C37: Man | D37: Manager | L37: CS | M37: Czech | Q37: 2015-12-31
C38: Res/Teach/Tr | D38: Researcher/Teacher/Trainer | L38: DA | M38: Danish | Q38: 2016-01-01
C39: Techn | D39: Technical | L39: DV | M39: Divehi | Q39: 2016-01-02
C40: Admin | D40: Administrative | L40: DZ | M40: Dzongkha | Q40: 2016-01-03
C41: Activities | D41: Description | L41: EE | M41: Ewe | Q41: 2016-01-04
C42: E | D42: Workshop | L42: EL | M42: Greek | Q42: 2016-01-05
C43: O | D43: Other | L43: EO | M43: Esperanto | Q43: 2016-01-06
C44: W | D44: Job shadowing or work placement | L44: ES | M44: Spanish | Q44: 2016-01-07
C45: T | D45: Training | L45: ET | M45: Estonian | Q45: 2016-01-08
C46: A | D46: Teaching | L46: EU | M46: Basque | Q46: 2016-01-09
L47: FA | M47: Persian | Q47: 2016-01-10
C48: Seniority | D48: Description | L48: FF | M48: Fulah | Q48: 2016-01-11
C49: J | D49: Junior (approx. < 10 years of experience) | L49: FI | M49: Finnish | Q49: 2016-01-12
C50: I | D50: Intermediate (approx. > 10 and < 20 years of experience) | L50: FJ | M50: Fijian | Q50: 2016-01-13
C51: S | D51: Senior (approx. > 20 years of experience) | L51: FO | M51: Faroese | Q51: 2016-01-14
L52: FR | M52: French | Q52: 2016-01-15
C53: Type of Organisation | D53: Description | L53: FY | M53: Frisian | Q53: 2016-01-16
C54: EDU.2 | D54: Primary school | L54: GA | M54: Irish | Q54: 2016-01-17
C55: EDU.3 | D55: Secondary school (including Vocational / technical) | L55: GD | M55: Gaelic (Scots) | Q55: 2016-01-18
C56: EDU.4 | D56: Higher education institution | L56: GL | M56: Gallegan | Q56: 2016-01-19
C57: EDU.5 | D57: Adult or continuing education provider | L57: GN | M57: Guarani | Q57: 2016-01-20
C58: ASS.1 | D58: Non-profit association (regional / national) | L58: GU | M58: Gujarati | Q58: 2016-01-21
C59: ASS.2 | D59: Non-profit association (European / international) | L59: HR | M59: Croatian | Q59: 2016-01-22
C60: ASS.3 | D60: Association of Universities | L60: IA | M60: Interlingua (International Auxiliary Language Association) | Q60: 2016-01-23
C61: RES | D61: Research institute | L61: II | M61: Sichuan Yi | Q61: 2016-01-24
C62: PUB.1 | D62: Public authority (local) | L62: IK | M62: Inupiaq | Q62: 2016-01-25
C63: PUB.2 | D63: Public authority (regional) | L63: IO | M63: Ido | Q63: 2016-01-26
C64: PUB.3 | D64: Public authority (national) | L64: IT | M64: Italian | Q64: 2016-01-27
C65: IND | D65: Private company (manufacturing) | L65: IU | M65: Inuktitut | Q65: 2016-01-28
C66: SER | D66: Private company (services) | L66: JA | M66: Japanese | Q66: 2016-01-29
C67: OTH | D67: Other type of organisation (Please avoid using this category if not absolutely necessary) | L67: JV | M67: Javanese | Q67: 2016-01-30
C68: EPLUS-SOCIAL | D68: Social partner or other representative of working life (chambers of commerce, trade union, trade association) | L68: KA | M68: Georgian | Q68: 2016-01-31
C69: EPLUS-RES | D69: Research Institute/Centre | L69: KG | M69: Kongo | Q69: 2016-02-01
C70: EPLUS-YOUTH-COUNCIL | D70: National Youth Council | L70: KI | M70: Kikuyu | Q70: 2016-02-02
C71: EPLUS-ENGO | D71: European NGO | L71: KJ | M71: Kuanyama | Q71: 2016-02-03
C72: EPLUS-NET-EU | D72: EU-wide network | L72: KK | M72: Kazakh | Q72: 2016-02-04
C73: EPLUS-YOUTH-GROUP | D73: Group of young people active in youth work | L73: KL | M73: Kalaallisut | Q73: 2016-02-05
C74: EPLUS-EURO-GROUP-COOP | D74: European grouping of territorial cooperation | L74: KM | M74: Khmer | Q74: 2016-02-06
C75: EPLUS-BODY-ACCRED | D75: Accreditation, certification or qualification body | L75: KN | M75: Kannada | Q75: 2016-02-07
C76: EPLUS-BODY-CONS | D76: Counselling body | L76: KO | M76: Korean | Q76: 2016-02-08
C77: EPLUS-INTER | D77: International organisation under public law | L77: KR | M77: Kanuri | Q77: 2016-02-09
C78: EPLUS-SPORT-PARTIAL | D78: Organisation or association representing (parts of) the sport sector | L78: KS | M78: Kashmiri | Q78: 2016-02-10
C79: EPLUS-SPORT-FED | D79: Sport federation | L79: KU | M79: Kurdish | Q79: 2016-02-11
C80: EPLUS-SPORT-LEAGUE | D80: Sport league | L80: KV | M80: Komi | Q80: 2016-02-12
C81: EPLUS-SPORT-CLUB | D81: Sport club | L81: KW | M81: Cornish | Q81: 2016-02-13
C82: OTH | D82: Other | L82: KY | M82: Kirghiz | Q82: 2016-02-14
L83: LA | M83: Latin | Q83: 2016-02-15
C84: Commercial Orientation | D84: Description | L84: LB | M84: Letzeburgesch | Q84: 2016-02-16
C85: P | D85: Profit | L85: LG | M85: Ganda | Q85: 2016-02-17
C86: NP | D86: Not for profit | L86: LI | M86: Limburgan; Limburger; Limburgish | Q86: 2016-02-18
L87: LN | M87: Lingala | Q87: 2016-02-19
C88: Legal Status | D88: Description | L88: LO | M88: Lao | Q88: 2016-02-20
C89: PR | D89: Private | L89: LT | M89: Lithuanian | Q89: 2016-02-21
C90: PB | D90: Public | L90: LU | M90: Luba-Katanga | Q90: 2016-02-22
L91: LV | M91: Latvian | Q91: 2016-02-23
C92: Type of work at Enterprise | D92: Description | L92: ME | M92: Montenegrin | Q92: 2016-02-24
C93: M | D93: Manager | L93: MG | M93: Malagasy | Q93: 2016-02-25
C94: R | D94: Researcher/Teacher/Trainer | L94: MH | M94: Marshall | Q94: 2016-02-26
C95: T | D95: Technical | L95: MI | M95: Maori | Q95: 2016-02-27
C96: A | D96: Administrativ | L96: MK | M96: Macedonian | Q96: 2016-02-28
L97: ML | M97: Malayalam | Q97: 2016-02-29
C98: Hallgatói mobilitás jellege | D98: Description | L98: MN | M98: Mongolian | Q98: 2016-03-01
C99: SMS_KI | D99: Kiutazó tanulmányi célú | L99: MO | M99: Moldavian | Q99: 2016-03-02
C100: SMS_BE | D100: Beutazó tanulmányi célú | L100: MR | M100: Marathi | Q100: 2016-03-03
C101: SMP_KI | D101: Kiutazó szakmai gyakorlat | L101: MS | M101: Malay | Q101: 2016-03-04
C102: SMP_BE | D102: Beutazó szakmai gyakorlat | L102: MT | M102: Maltese | Q102: 2016-03-05
C103: SMS_SU_KI | D103: Kiutazó nyári egyetem | L103: MY | M103: Burmese | Q103: 2016-03-06
C104: SMS_SU_BE | D104: Beutazó nyári egyetem | L104: NA | M104: Nauru | Q104: 2016-03-07
L105: NB | M105: Norwegian Bokmael | Q105: 2016-03-08
C106: NUTS code | D106: Description | E106: Description total | L106: ND | M106: Ndebele, North | Q106: 2016-03-09
C107: HU1 | D107: KÖZÉP-MAGYARORSZÁG | E107: HU1 - KÖZÉP-MAGYARORSZÁG | L107: NE | M107: Nepali | Q107: 2016-03-10
C108: HU10 | D108: Közép-Magyarország | E108: HU10 - Közép-Magyarország | L108: NG | M108: Ndonga | Q108: 2016-03-11
C109: HU101 | D109: Budapest | E109: HU101 - Budapest | L109: NL | M109: Dutch | Q109: 2016-03-12
C110: HU102 | D110: Pest | E110: HU102 - Pest | L110: NN | M110: Norwegian Nynorsk | Q110: 2016-03-13
C111: HU2 | D111: DUNÁNTÚL | E111: HU2 - DUNÁNTÚL | L111: NR | M111: Ndebele, South | Q111: 2016-03-14
C112: HU21 | D112: Közép-Dunántúl | E112: HU21 - Közép-Dunántúl | L112: NV | M112: Navajo | Q112: 2016-03-15
C113: HU211 | D113: Fejér | E113: HU211 - Fejér | L113: NY | M113: Chichewa | Q113: 2016-03-16
C114: HU212 | D114: Komárom-Esztergom | E114: HU212 - Komárom-Esztergom | L114: OC | M114: Occitan (post 1500) | Q114: 2016-03-17
C115: HU213 | D115: Veszprém | E115: HU213 - Veszprém | L115: OJ | M115: Ojibwa | Q115: 2016-03-18
C116: HU22 | D116: Nyugat-Dunántúl | E116: HU22 - Nyugat-Dunántúl | L116: OM | M116: Oromo | Q116: 2016-03-19
C117: HU221 | D117: Győr-Moson-Sopron | E117: HU221 - Győr-Moson-Sopron | L117: OR | M117: Oriya | Q117: 2016-03-20
C118: HU222 | D118: Vas | E118: HU222 - Vas | L118: OS | M118: Ossetian | Q118: 2016-03-21
C119: HU223 | D119: Zala | E119: HU223 - Zala | L119: PA | M119: Panjabi | Q119: 2016-03-22
C120: HU23 | D120: Dél-Dunántúl | E120: HU23 - Dél-Dunántúl | L120: PI | M120: Pali | Q120: 2016-03-23
C121: HU231 | D121: Baranya | E121: HU231 - Baranya | L121: PL | M121: Polish | Q121: 2016-03-24
C122: HU232 | D122: Somogy | E122: HU232 - Somogy | L122: PS | M122: Pushto | Q122: 2016-03-25
C123: HU233 | D123: Tolna | E123: HU233 - Tolna | L123: PT | M123: Portuguese | Q123: 2016-03-26
C124: HU3 | D124: ALFÖLD ÉS ÉSZAK | E124: HU3 - ALFÖLD ÉS ÉSZAK | L124: QU | M124: Quechua | Q124: 2016-03-27
C125: HU31 | D125: Észak-Magyarország | E125: HU31 - Észak-Magyarország | L125: RM | M125: Raeto-Romance | Q125: 2016-03-28
C126: HU311 | D126: Borsod-Abaúj-Zemplén | E126: HU311 - Borsod-Abaúj-Zemplén | L126: RN | M126: Rundi | Q126: 2016-03-29
C127: HU312 | D127: Heves | E127: HU312 - Heves | L127: RO | M127: Romanian | Q127: 2016-03-30
C128: HU313 | D128: Nógrád | E128: HU313 - Nógrád | L128: RU | M128: Russian | Q128: 2016-03-31
C129: HU32 | D129: Észak-Alföld | E129: HU32 - Észak-Alföld | L129: RW | M129: Kinyarwanda | Q129: 2016-04-01
C130: HU321 | D130: Hajdú-Bihar | E130: HU321 - Hajdú-Bihar | L130: SA | M130: Sanskrit | Q130: 2016-04-02
C131: HU322 | D131: Jász-Nagykun-Szolnok | E131: HU322 - Jász-Nagykun-Szolnok | L131: SC | M131: Sardinian | Q131: 2016-04-03
C132: HU323 | D132: Szabolcs-Szatmár-Bereg | E132: HU323 - Szabolcs-Szatmár-Bereg | L132: SD | M132: Sindhi | Q132: 2016-04-04
C133: HU33 | D133: Dél-Alföld | E133: HU33 - Dél-Alföld | L133: SE | M133: Northern Sami | Q133: 2016-04-05
C134: HU331 | D134: Bács-Kiskun | E134: HU331 - Bács-Kiskun | L134: SG | M134: Sango | Q134: 2016-04-06
C135: HU332 | D135: Békés | E135: HU332 - Békés | L135: SH | M135: Serbo-Croatian | Q135: 2016-04-07
C136: HU333 | D136: Csongrád | E136: HU333 - Csongrád | L136: SI | M136: Sinhalese | Q136: 2016-04-08
C137: HUZ | D137: EXTRA-REGIO NUTS 1 | E137: HUZ - EXTRA-REGIO NUTS 1 | L137: SK | M137: Slovak | Q137: 2016-04-09
C138: HUZZ | D138: Extra-Regio NUTS 2 | E138: HUZZ - Extra-Regio NUTS 2 | L138: SL | M138: Slovenian | Q138: 2016-04-10
C139: HUZZZ | D139: Extra-Regio | E139: HUZZZ - Extra-Regio | L139: SM | M139: Samoan | Q139: 2016-04-11
C140: IS | D140: Iceland | E140: IS - Iceland | L140: SN | M140: Shona | Q140: 2016-04-12
C141: IS0 | D141: ÍSLAND | E141: IS0 - ÍSLAND | L141: SO | M141: Somali | Q141: 2016-04-13
C142: IS00 | D142: Ísland | E142: IS00 - Ísland | L142: SQ | M142: Albanian | Q142: 2016-04-14
C143: IS001 | D143: Höfuðborgarsvæði | E143: IS001 - Höfuðborgarsvæði | L143: SS | M143: Swati | Q143: 2016-04-15
C144: IS002 | D144: Landsbyggð | E144: IS002 - Landsbyggð | L144: ST | M144: Sotho, Southern | Q144: 2016-04-16
C145: NO | D145: Norway | E145: NO - Norway | L145: SU | M145: Sundanese | Q145: 2016-04-17
C146: NO0 | D146: NORGE | E146: NO0 - NORGE | L146: SV | M146: Swedish | Q146: 2016-04-18
C147: NO01 | D147: Oslo og Akershus | E147: NO01 - Oslo og Akershus | L147: SW | M147: Swahili | Q147: 2016-04-19
C148: NO011 | D148: Oslo | E148: NO011 - Oslo | L148: TA | M148: Tamil | Q148: 2016-04-20
C149: NO012 | D149: Akershus | E149: NO012 - Akershus | L149: TE | M149: Telugu | Q149: 2016-04-21
C150: NO02 | D150: Hedmark og Oppland | E150: NO02 - Hedmark og Oppland | L150: TG | M150: Tajik | Q150: 2016-04-22
C151: NO021 | D151: Hedmark | E151: NO021 - Hedmark | L151: TH | M151: Thai | Q151: 2016-04-23
C152: NO022 | D152: Oppland | E152: NO022 - Oppland | L152: TK | M152: Turkmen | Q152: 2016-04-24
C153: NO03 | D153: Sør-Østlandet | E153: NO03 - Sør-Østlandet | L153: TL | M153: Tagalog | Q153: 2016-04-25
C154: NO031 | D154: Østfold | E154: NO031 - Østfold | L154: TN | M154: Tswana | Q154: 2016-04-26
C155: NO032 | D155: Buskerud | E155: NO032 - Buskerud | L155: TR | M155: Turkish | Q155: 2016-04-27
C156: NO033 | D156: Vestfold | E156: NO033 - Vestfold | L156: TS | M156: Tsonga | Q156: 2016-04-28
C157: NO034 | D157: Telemark | E157: NO034 - Telemark | L157: TT | M157: Tatar | Q157: 2016-04-29
C158: NO04 | D158: Agder og Rogaland | E158: NO04 - Agder og Rogaland | L158: TW | M158: Twi | Q158: 2016-04-30
C159: NO041 | D159: Aust-Agder | E159: NO041 - Aust-Agder | L159: TY | M159: Tahitian | Q159: 2016-05-01
C160: NO042 | D160: Vest-Agder | E160: NO042 - Vest-Agder | L160: UG | M160: Uighur | Q160: 2016-05-02
C161: NO043 | D161: Rogaland | E161: NO043 - Rogaland | L161: UK | M161: Ukrainian | Q161: 2016-05-03
C162: NO05 | D162: Vestlandet | E162: NO05 - Vestlandet | L162: UN | M162: Un-identified | Q162: 2016-05-04
C163: NO051 | D163: Hordaland | E163: NO051 - Hordaland | L163: UR | M163: Urdu | Q163: 2016-05-05
C164: NO052 | D164: Sogn og Fjordane | E164: NO052 - Sogn og Fjordane | L164: UZ | M164: Uzbek | Q164: 2016-05-06
C165: NO053 | D165: Møre og Romsdal | E165: NO053 - Møre og Romsdal | L165: VE | M165: Venda | Q165: 2016-05-07
C166: NO06 | D166: Trøndelag | E166: NO06 - Trøndelag | L166: VI | M166: Vietnamese | Q166: 2016-05-08
C167: NO061 | D167: Sør-Trøndelag | E167: NO061 - Sør-Trøndelag | L167: VO | M167: Volapok | Q167: 2016-05-09
C168: NO062 | D168: Nord-Trøndelag | E168: NO062 - Nord-Trøndelag | L168: WA | M168: Walloon | Q168: 2016-05-10
C169: NO07 | D169: Nord-Norge | E169: NO07 - Nord-Norge | L169: WO | M169: Wolof | Q169: 2016-05-11
C170: NO071 | D170: Nordland | E170: NO071 - Nordland | L170: XH | M170: Xhosa | Q170: 2016-05-12
C171: NO072 | D171: Troms | E171: NO072 - Troms | L171: YI | M171: Yiddish | Q171: 2016-05-13
C172: NO073 | D172: Finnmark | E172: NO073 - Finnmark | L172: ZA | M172: Zhuang | Q172: 2016-05-14
C173: LI | D173: Liechtenstein | E173: LI - Liechtenstein | L173: ZH | M173: Chinese | Q173: 2016-05-15
C174: LI0 | D174: LIECHTENSTEIN | E174: LI0 - LIECHTENSTEIN | L174: ZU | M174: Zulu | Q174: 2016-05-16
C175: LI00 | D175: Liechtenstein | E175: LI00 - Liechtenstein | Q175: 2016-05-17
C176: LI000 | D176: Liechtenstein | E176: LI000 - Liechtenstein | Q176: 2016-05-18
Q177: 2016-05-19
Q178: 2016-05-20
Q179: 2016-05-21
Q180: 2016-05-22
Q181: 2016-05-23
Q182: 2016-05-24
Q183: 2016-05-25
Q184: 2016-05-26
Q185: 2016-05-27
Q186: 2016-05-28
Q187: 2016-05-29
Q188: 2016-05-30
Q189: 2016-05-31
Q190: 2016-06-01
Q191: 2016-06-02
Q192: 2016-06-03
Q193: 2016-06-04
Q194: 2016-06-05
Q195: 2016-06-06
Q196: 2016-06-07
Q197: 2016-06-08
Q198: 2016-06-09
Q199: 2016-06-10
Q200: 2016-06-11
... 323 more rows

Sheet Segédadatok2
A1: Code | B1: Description | C1: Magyarul | D1: Former ERASMUS Codes | F1: ERASMUS Code | G1: Subject Area Description | H1: Magyarul | I1: EquivalentISCED97 | J1: ISCED
A2: 0 | B2: General Programmes | C2: Általános program | F2: 01.00 | G2: Agriculture | H2: Mezőgazdaságtan, Mezőgazdasági tudományok | I2: NO 001 | J2: 6, 62, 620, 621, 622, 623, 624, 629, 64, 640
A3: 1 | B3: Basic/broad, general programmes | C3: Alapozó, keretprogramok | F3: 01.10 | G3: Anthropology | H3: Antropológia | I3: NO 002 | J3: 31, 312
A4: 10 | B4: Basic/broad, general programmes | C4: Alapozó, keretprogramok | F4: 01.20 | G4: Archaeology | H4: Régészet | I4: NO 003 | J4: 225
A5: 9 | B5: Personal skills | C5: Személyiségfejlesztés | F5: 01.30 | G5: Architecture, design and applied arts | H5: Építészet, dizájn és alkalmazott művészetek | I5: NO 004 | J5: 58, 581, 214, 215, 219
A6: 90 | B6: Personal skills | C6: Személyiségfejlesztés | F6: 01.40 | G6: Area studies | H6: Regionális tanulmányok | I6: NO 005 | J6: 3, 310, 313, 319
A7: 1 | B7: Education | C7: Oktatás | F7: 01.50 | G7: Business | H7: Üzleti tudományok | I7: NO 006 | J7: 34, 340, 341, 342, 343, 344, 345, 346, 347, 349
A8: 14 | B8: Teacher training and education science | C8: Tanárképzés, oktatástudomány | F8: 01.60 | G8: Chemistry | H8: Kémia | I8: NO 007 | J8: 4, 442
A9: 140 | B9: Teacher training and education science (broad programmes) | C9: Tanárképzés, oktatástudomány | D9: 05.0; 05.1 | F9: 01.70 | G9: Computer sciences | H9: Informatika | I9: NO 008 | J9: 48, 481, 482, 489
A10: 141 | B10: Teaching and training | C10: Tanárképzés | F10: 01.80 | G10: Cultural studies and ethnic studies | H10: Kulturális és etnikai tanulmányok | I10: NO 009 | J10: 3, 312
A11: 142 | B11: Education science | C11: Oktatástudomány | D11: 05.7; 05.8 | F11: 01.90 | G11: Earth sciences | H11: Földtudományok | I11: NO 010 | J11: 4, 443
A12: 143 | B12: Training for pre-school teachers | C12: Óvodapedagógusok képzése | F12: 02.00 | G12: Economics | H12: Közgazdaságtan | I12: NO 011 | J12: 3, 314
A13: 144 | B13: Training for teachers at basic levels | C13: Alapfokú oktatásban tanító pedagógusok képzése | D13: 05.2; 05.5; 05.6 | F13: 02.10 | G13: Education (including teacher training/education) | H13: Oktatás (tanárképzés is) | I13: NO 012 | J13: 1, 14, 140,141, 142, 143, 144, 145, 146, 149
A14: 145 | B14: Training for teachers with subject specialisation | C14: Szakosodott oktatók (szaktanárok) képzése | D14: 05.3 | F14: 02.20 | G14: Engineering | H14: Mérnöktudományok | I14: NO 013 | J14: 5, 52, 520, 521, 522, 523, 524, 525, 529, 54, 540
A15: 146 | B15: Training for teachers of vocational subjects | C15: Szakoktató képzés | D15: 05.4 | F15: 02.30 | G15: Environmental studies and Forestry | H15: Környezetvédelem és erdészet | I15: NO 014 | J15: 422, 6, 62, 620, 623, 624, 629, 64, 640
A16: 149 | B16: Teacher training and education science (others) | C16: Tanárképzés, oktatástudomány (egyéb) | D16: 05.9 | F16: 02.40 | G16: Family and consumer science | H16: Család és háztartástan | I16: NO 015 | J16: 319, 729
A17: 2 | B17: Humanities and Arts | C17: Humán tudományok és művészetek | F17: 02.50 | G17: Gender and sexuality studies | H17: Gender studies | I17: NO 016 | J17: 312
A18: 21 | B18: Arts | C18: Művészetek | F18: 02.60 | G18: Geography | H18: Földrajz, földtan | I18: NO 017 | J18: 4, 443
A19: 210 | B19: Arts (broad programmes) | C19: Művészetek | D19: 03.0 | F19: 02.90 | G19: Health sciences (medicine, nursing, dentistry, etc.) | H19: Egészségtudományok | I19: NO 018 | J19: 7, 72, 720, 721, 723, 724, 725, 726, 727, 729
A20: 211 | B20: Fine arts | C20: Képzőművészet, szépművészet | D20: 03.1 | F20: 03.00 | G20: History | H20: Történelem | I20: NO 019 | J20: 2, 225
A21: 212 | B21: Music and performing arts | C21: Zene- és előadóművészetek | D21: 03.2; 03.3 | F21: 03.10 | G21: Journalism, media and communication | H21: Média és kommunikáció | I21: NO 020 | J21: 32, 321, 322, 329
A22: 213 | B22: Audio-visual techniques and media production | C22: Audiovizuális módszerek és szakismeretek, média | D22: 03.4 | F22: 03.20 | G22: Languages and linguistics | H22: Nyelvek és nyelvészet | I22: NO 021 | J22: 22, 222, 223, 229
A23: 214 | B23: Design | C23: Formatervezés | D23: 02.2; 03.5 | F23: 03.30 | G23: Law | H23: Jog | I23: NO 022 | J23: 3, 38, 380
A24: 215 | B24: Craft skills | C24: Kézművesség | F24: 03.40 | G24: Library and museum studies | H24: Könyvtári tudományok és muzeológia | I24: NO 023 | J24: 3, 322
A25: 219 | B25: Arts (others) | C25: Művészetek (egyéb) | D25: 03.9 | F25: 03.50 | G25: Life science (including biology) | H25: Természettudományok (biológia is) | I25: NO 024 | J25: 42, 421, 422, 429
A26: 22 | B26: Humanities | C26: Humán tudományok | F26: 03.60 | G26: Literature | H26: Irodalom | I26: NO 025 | J26: 220, 222, 223, 229
A27: 220 | B27: Humanities (broad programmes) | C27: Humán tudományok | D27: 08.0 | F27: 03.90 | G27: Mathematics | H27: Matematika | I27: NO 026 | J27: 4, 46, 461, 462, 469
A28: 221 | B28: Religion | C28: Vallási ismeretek | D28: 08.2 | F28: 04.00 | G28: Military sciences | H28: Honvédelem | I28: NO 027 | J28: 86, 860, 861, 862, 863, 869
A29: 222 | B29: Foreign languages | C29: Idegen nyelvek | D29: 09.0; 09.2; 09.5; 09.6; 09.9 | F29: 04.10 | G29: Performing arts | H29: Előadóművészet | I29: NO 028 | J29: 2, 210, 212
A30: 223 | B30: Mother tongue | C30: Anyanyelvi képzés | D30: 09.1; 09.3; 09.4; 09.7; 09.8 | F30: 04.20 | G30: Philosophy | H30: Filozófia | I30: NO 029 | J30: 2, 226
A31: 225 | B31: History and archaeology | C31: Történelem és régészet | D31: 03.6; 08.3; 08.4 | F31: 04.30 | G31: Physics | H31: Fizika | I31: NO 030 | J31: 44, 440, 441, 449
A32: 226 | B32: Philosophy and ethics | C32: Filozófia és etika | D32: 08.1 | F32: 04.40 | G32: Political science | H32: Politikatudomány | I32: NO 031 | J32: 313
A33: 3 | B33: Social sciences, Business and Law | C33: Társadalomtudományok, gazdaság, jog | F33: 04.50 | G33: Psychology | H33: Pszichológia | I33: NO 032 | J33: 31, 311
A34: 31 | B34: Social and behavioural science | C34: Társadalom- és viselkedéstudomány | F34: 04.60 | G34: Public affairs | H34: Közigazgatás | I34: NO 033 | J34: 38, 313
A35: 310 | B35: Social and behavioural science (broad programmes) | C35: Társadalom- és viselkedéstudomány | D35: 14.0 | F35: 04.70 | G35: Religion | H35: Vallás | I35: NO 034 | J35: 221
A36: 311 | B36: Psychology | C36: Pszichológia | D36: 14.4 | F36: 04.90 | G36: Social work | H36: Szociális munka | I36: NO 035 | J36: 76, 761, 762, 769
A37: 312 | B37: Sociology and cultural studies | C37: Szociológia és kulturális tanulmányok | D37: 14.2; 14.7; 14.8 | F37: 05.00 | G37: Sociology | H37: Szociológia | I37: NO 036 | J37: 312
A38: 313 | B38: Political science and civics | C38: Politikai és civil társadalmi tanulmányok | D38: 14.1; 14.6 | F38: 05.10 | G38: Space sciences | H38: Űrtudományok | I38: NO 037 | J38: 44
A39: 314 | B39: Economics | C39: Közgazdaságtan | D39: 14.3 | F39: 05.20 | G39: Systems science | H39: Rendszertanulmányok | I39: NO 038 | J39: 481
A40: 319 | B40: Social and behavioural science (others) | D40: 14.9 | F40: 05.30 | G40: Theology | H40: Teológia | I40: NO 039 | J40: 221
A41: 32 | B41: Journalism and information | C41: Újságírás és más információ szolgáltatás | F41: 05.40 | G41: Transportation | H41: Szállítás | I41: NO 040 | J41: 8, 84, 840
A42: 321 | B42: Journalism and reporting | C42: Újságírás és riporter- képzés | D42: 15.0; 15.1; 15.2 | F42: 05.50 | G42: Visual arts | H42: Képzőművészetek | I42: NO 041 | J42: 210, 211, 213, 214, 215
A43: 869 | B43: Security services (others)
A44: 99 | B44: Not known or unspecified | D44: 16.0; 16.9

Sheet Negyedhónapok
A1: Mob. kezdete | B1: Mob. vége | C1: Mob. időtartam negyedhónapokban | D1: Mob. időtartam napokban | F1: Hónap napjai
A2: 2015-12-11 | B2: 2015-12-22 | C2: =ROUNDDOWN((B2-A2)/30,0)+ROUNDDOWN((((B2-A2)-(ROUNDDOWN((B2-A2)/30,0))*30)+3)/7,0)*0.25 -> 0.5 | D2: =B2-A2 -> 11 | F2: 1 | G2: 2 | H2: 3 | I2: 4 | J2: 5 | K2: 6 | L2: 7
C3: 0 | D3: 0 | F3: =F2+7 -> 8 | G3: 9 | H3: 10 | I3: 11 | J3: 12 | K3: 13 | L3: 14
C4: 0 | D4: 0 | F4: 15 | G4: 16 | H4: 17 | I4: 18 | J4: 19 | K4: 20 | L4: 21
C5: 0 | D5: 0 | F5: 22 | G5: 23 | H5: 24 | I5: 25 | J5: 26 | K5: 27 | L5: 28
C6: 0 | D6: 0 | F6: =F5+7 -> 29 | G6: =G5+7 -> 30 | H6: =H5+7 -> 31
C7: 0 | D7: 0
C8: 0 | D8: 0 | F8: 0 | G8: 3 nap
C9: 0 | D9: 0 | F9: 0.25 | G9: 7 nap
C10: 0 | D10: 0 | F10: 0.5 | G10: 7 nap
C11: 0 | D11: 0 | F11: 0.75 | G11: 7 nap
C12: 0 | D12: 0 | F12: 1 | G12: 4-7 nap
C13: 0 | D13: 0
C14: 0 | D14: 0
C15: 0 | D15: 0
C16: 0 | D16: 0
C17: 0 | D17: 0
C18: 0 | D18: 0
C19: 0 | D19: 0
C20: 0 | D20: 0
C21: 0 | D21: 0
C22: 0 | D22: 0
C23: 0 | D23: 0
C24: 0 | D24: 0
C25: 0 | D25: 0
C26: 0 | D26: 0
C27: 0 | D27: 0
C28: 0 | D28: 0
C29: 0 | D29: 0
C30: 0 | D30: 0
C31: 0 | D31: 0
C32: 0 | D32: 0
C33: 0 | D33: 0
C34: =ROUNDDOWN((B34-A34)/30,0)+ROUNDDOWN((((B34-A34)-(ROUNDDOWN((B34-A34)/30,0))*30)+3)/7,0)*0.25 -> 0 | D34: =B34-A34 -> 0
C35: 0 | D35: 0
C36: 0 | D36: 0
C37: 0 | D37: 0
C38: 0 | D38: 0
C39: 0 | D39: 0
C40: 0 | D40: 0
C41: 0 | D41: 0
C42: 0 | D42: 0
C43: 0 | D43: 0
C44: 0 | D44: 0
C45: 0 | D45: 0
C46: 0 | D46: 0
C47: 0 | D47: 0
C48: 0 | D48: 0
C49: 0 | D49: 0
C50: 0 | D50: 0

Sheet ráták
A1: Személyzet
A2: Célország | B2: Heti ráta | C2: 1 | D2: 2 | E2: 3 | F2: 4 | G2: 5 | H2: 6 | I2: 7 | J2: 8 | K2: 9 | L2: 10 | M2: 11 | N2: 12 | O2: 13 | P2: 14 | Q2: 15 | R2: 16 | S2: 17 | T2: 18 | U2: 19 | V2: 20 | W2: 21 | X2: 22 | Y2: 23 | Z2: 24 | AA2: 25 | AB2: 26 | AC2: 27 | AD2: 28 | AE2: 29 | AF2: 30 | AG2: 31 | AH2: 32 | AI2: 33 | AJ2: 34 | AK2: 35 | AL2: 36 | AM2: 37 | AN2: 38 | AO2: 39 | AP2: 40 | AQ2: 41 | AR2: 42 | AS2: 43 | AT2: 44 | AU2: 45 | AV2: 46 | AW2: 47 | AX2: 48 | AY2: 49 | AZ2: 50 | BA2: 51 | BB2: 52 | BC2: 53 | BD2: 54 | BE2: 55 | BF2: 56 | BG2: 57 | BH2: 58 | BI2: 59 | BJ2: 60 | BK2: 61 | BL2: 62 | BM2: 63 | BN2: 64 | BO2: 65 | BP2: 66 | BQ2: 67 | BR2: 68 | BS2: 69 | BT2: 70 | BU2: 71 | BV2: 72 | BW2: 73 | BX2: 74 | BY2: 75 | BZ2: 76 | CA2: 77 | CB2: 78 | CC2: 79 | CD2: 80 | CE2: 81 | CF2: 82 | CG2: 83 | CH2: 84 | CI2: 85 | CJ2: 86 | CK2: 87 | CL2: 88 | CM2: 89 | CN2: 90
A3: IS | B3: 800 | C3: 614 | D3: 729 | E3: 843 | F3: 957 | G3: 1071 | H3: 1186 | I3: 1300 | J3: 1416 | K3: 1530 | L3: 1644 | M3: 1758 | N3: 1872 | O3: 1986 | P3: 2100 | Q3: 2216 | R3: 2330 | S3: 2444 | T3: 2558 | U3: 2672 | V3: 2786 | W3: 2900 | X3: 3016 | Y3: 3130 | Z3: 3244 | AA3: 3358 | AB3: 3472 | AC3: 3586 | AD3: 3700 | AE3: 3816 | AF3: 3930 | AG3: 4044 | AH3: 4158 | AI3: 4272 | AJ3: 4386 | AK3: 4500 | AL3: 4616 | AM3: 4730 | AN3: 4844 | AO3: 4958 | AP3: 5072 | AQ3: 5186 | AR3: 5300
A4: LI | B4: 800 | C4: 614 | D4: 729 | E4: 843 | F4: 957 | G4: 1071 | H4: 1186 | I4: 1300 | J4: 1416 | K4: 1530 | L4: 1644 | M4: 1758 | N4: 1872 | O4: 1986 | P4: 2100 | Q4: 2216 | R4: 2330 | S4: 2444 | T4: 2558 | U4: 2672 | V4: 2786 | W4: 2900 | X4: 3016 | Y4: 3130 | Z4: 3244 | AA4: 3358 | AB4: 3472 | AC4: 3586 | AD4: 3700 | AE4: 3816 | AF4: 3930 | AG4: 4044 | AH4: 4158 | AI4: 4272 | AJ4: 4386 | AK4: 4500 | AL4: 4616 | AM4: 4730 | AN4: 4844 | AO4: 4958 | AP4: 5072 | AQ4: 5186 | AR4: 5300
A5: NO | B5: 800 | C5: 614 | D5: 729 | E5: 843 | F5: 957 | G5: 1071 | H5: 1186 | I5: 1300 | J5: 1416 | K5: 1530 | L5: 1644 | M5: 1758 | N5: 1872 | O5: 1986 | P5: 2100 | Q5: 2216 | R5: 2330 | S5: 2444 | T5: 2558 | U5: 2672 | V5: 2786 | W5: 2900 | X5: 3016 | Y5: 3130 | Z5: 3244 | AA5: 3358 | AB5: 3472 | AC5: 3586 | AD5: 3700 | AE5: 3816 | AF5: 3930 | AG5: 4044 | AH5: 4158 | AI5: 4272 | AJ5: 4386 | AK5: 4500 | AL5: 4616 | AM5: 4730 | AN5: 4844 | AO5: 4958 | AP5: 5072 | AQ5: 5186 | AR5: 5300
A6: HU | B6: 400 | C6: 557 | D6: 614 | E6: 671 | F6: 729 | G6: 786 | H6: 843 | I6: 900 | J6: 957 | K6: 1014 | L6: 1071 | M6: 1128 | N6: 1185 | O6: 1242 | P6: 1300 | Q6: 1357 | R6: 1414 | S6: 1471 | T6: 1528 | U6: 1585 | V6: 1642 | W6: 1700 | X6: 1757 | Y6: 1814 | Z6: 1871 | AA6: 1928 | AB6: 1985 | AC6: 2042 | AD6: 2100 | AE6: 2157 | AF6: 2214 | AG6: 2271 | AH6: 2328 | AI6: 2385 | AJ6: 2442 | AK6: 2500 | AL6: 2557 | AM6: 2614 | AN6: 2671 | AO6: 2728 | AP6: 2785 | AQ6: 2842 | AR6: 2900
A8: Hallgatók
A9: Célország | B9: Havi ráta | C9: 0.25 | D9: 0.5 | E9: 0.75 | F9: 1 | G9: 1.25 | H9: 1.5 | I9: 1.75 | J9: 2 | K9: 2.25 | L9: 2.5 | M9: 2.75 | N9: 3 | O9: 3.25 | P9: 3.5 | Q9: 3.75 | R9: 4 | S9: 4.25 | T9: 4.5 | U9: 4.75 | V9: 5 | W9: 5.25 | X9: 5.5 | Y9: 5.75 | Z9: 6 | AA9: 6.25 | AB9: 6.5 | AC9: 6.75 | AD9: 7 | AE9: 7.25 | AF9: 7.5 | AG9: 7.75 | AH9: 8 | AI9: 8.25 | AJ9: 8.5 | AK9: 8.75 | AL9: 9 | AM9: 9.25 | AN9: 9.5 | AO9: 9.75 | AP9: 10 | AQ9: 10.25 | AR9: 10.5 | AS9: 10.75 | AT9: 11 | AU9: 11.25 | AV9: 11.5 | AW9: 11.75 | AX9: 12 | AY9: 12.25 | AZ9: 12.5 | BA9: 12.75 | BB9: 13 | BC9: 13.25 | BD9: 13.5 | BE9: 13.75 | BF9: 14 | BG9: 14.25 | BH9: 14.5 | BI9: 14.75 | BJ9: 15 | BK9: 15.25 | BL9: 15.5 | BM9: 15.75 | BN9: 16 | BO9: 16.25 | BP9: 16.5 | BQ9: 16.75 | BR9: 17 | BS9: 17.25 | BT9: 17.5 | BU9: 17.75 | BV9: 18 | BW9: 18.25 | BX9: 18.5 | BY9: 18.75 | BZ9: 19 | CA9: 19.25 | CB9: 19.5 | CC9: 19.75 | CD9: 20 | CE9: 20.25 | CF9: 20.5 | CG9: 20.75 | CH9: 21 | CI9: 21.25 | CJ9: 21.5 | CK9: 21.75 | CL9: 22 | CM9: 22.25 | CN9: 22.5 | CO9: 22.75 | CP9: 23 | CQ9: 23.25 | CR9: 23.5 | CS9: 23.75 | CT9: 24
A10: IS | B10: 900 | C10: 725 | D10: 950 | E10: 1175 | F10: 1400 | G10: =F10+C10-500 -> 1625 | H10: =F10+D10-500 -> 1850 | I10: =F10+E10-500 -> 2075 | J10: 2300 | K10: =J10+C10-500 -> 2525 | L10: =J10+D10-500 -> 2750 | M10: =J10+E10-500 -> 2975 | N10: 3200 | O10: =N10+C10-500 -> 3425 | P10: =N10+D10-500 -> 3650 | Q10: =N10+E10-500 -> 3875 | R10: 4100 | S10: =R10+C10-500 -> 4325 | T10: =R10+D10-500 -> 4550 | U10: =R10+E10-500 -> 4775 | V10: 5000 | W10: =V10+C10-500 -> 5225 | X10: =V10+D10-500 -> 5450 | Y10: =V10+E10-500 -> 5675 | Z10: 5900 | AA10: =Z10+C10-500 -> 6125 | AB10: =Z10+D10-500 -> 6350 | AC10: =Z10+E10-500 -> 6575 | AD10: 6800 | AE10: =AD10+C10-500 -> 7025 | AF10: =AD10+D10-500 -> 7250 | AG10: =AD10+E10-500 -> 7475 | AH10: 7700 | AI10: =AH10+C10-500 -> 7925 | AJ10: =AH10+D10-500 -> 8150 | AK10: =AH10+E10-500 -> 8375 | AL10: 8600 | AM10: =AL10+C10-500 -> 8825 | AN10: =AL10+D10-500 -> 9050 | AO10: =AL10+E10-500 -> 9275 | AP10: 9500 | AQ10: =AP10+C10-500 -> 9725 | AR10: =AP10+D10-500 -> 9950 | AS10: =AP10+E10-500 -> 10175 | AT10: 10400 | AU10: =AT10+C10-500 -> 10625 | AV10: =AT10+D10-500 -> 10850 | AW10: =AT10+E10-500 -> 11075 | AX10: 11300
A11: LI | B11: 900 | C11: 725 | D11: 950 | E11: 1175 | F11: 1400 | G11: =F11+C11-500 -> 1625 | H11: =F11+D11-500 -> 1850 | I11: =F11+E11-500 -> 2075 | J11: 2300 | K11: =J11+C11-500 -> 2525 | L11: =J11+D11-500 -> 2750 | M11: =J11+E11-500 -> 2975 | N11: 3200 | O11: =N11+C11-500 -> 3425 | P11: =N11+D11-500 -> 3650 | Q11: =N11+E11-500 -> 3875 | R11: 4100 | S11: =R11+C11-500 -> 4325 | T11: =R11+D11-500 -> 4550 | U11: =R11+E11-500 -> 4775 | V11: 5000 | W11: =V11+C11-500 -> 5225 | X11: =V11+D11-500 -> 5450 | Y11: =V11+E11-500 -> 5675 | Z11: 5900 | AA11: =Z11+C11-500 -> 6125 | AB11: =Z11+D11-500 -> 6350 | AC11: =Z11+E11-500 -> 6575 | AD11: 6800 | AE11: =AD11+C11-500 -> 7025 | AF11: =AD11+D11-500 -> 7250 | AG11: =AD11+E11-500 -> 7475 | AH11: 7700 | AI11: =AH11+C11-500 -> 7925 | AJ11: =AH11+D11-500 -> 8150 | AK11: =AH11+E11-500 -> 8375 | AL11: 8600 | AM11: =AL11+C11-500 -> 8825 | AN11: =AL11+D11-500 -> 9050 | AO11: =AL11+E11-500 -> 9275 | AP11: 9500 | AQ11: =AP11+C11-500 -> 9725 | AR11: =AP11+D11-500 -> 9950 | AS11: =AP11+E11-500 -> 10175 | AT11: 10400 | AU11: =AT11+C11-500 -> 10625 | AV11: =AT11+D11-500 -> 10850 | AW11: =AT11+E11-500 -> 11075 | AX11: 11300
A12: NO | B12: 900 | C12: 725 | D12: 950 | E12: 1175 | F12: 1400 | G12: =F12+C12-500 -> 1625 | H12: =F12+D12-500 -> 1850 | I12: =F12+E12-500 -> 2075 | J12: 2300 | K12: =J12+C12-500 -> 2525 | L12: =J12+D12-500 -> 2750 | M12: =J12+E12-500 -> 2975 | N12: 3200 | O12: =N12+C12-500 -> 3425 | P12: =N12+D12-500 -> 3650 | Q12: =N12+E12-500 -> 3875 | R12: 4100 | S12: =R12+C12-500 -> 4325 | T12: =R12+D12-500 -> 4550 | U12: =R12+E12-500 -> 4775 | V12: 5000 | W12: =V12+C12-500 -> 5225 | X12: =V12+D12-500 -> 5450 | Y12: =V12+E12-500 -> 5675 | Z12: 5900 | AA12: =Z12+C12-500 -> 6125 | AB12: =Z12+D12-500 -> 6350 | AC12: =Z12+E12-500 -> 6575 | AD12: 6800 | AE12: =AD12+C12-500 -> 7025 | AF12: =AD12+D12-500 -> 7250 | AG12: =AD12+E12-500 -> 7475 | AH12: 7700 | AI12: =AH12+C12-500 -> 7925 | AJ12: =AH12+D12-500 -> 8150 | AK12: =AH12+E12-500 -> 8375 | AL12: 8600 | AM12: =AL12+C12-500 -> 8825 | AN12: =AL12+D12-500 -> 9050 | AO12: =AL12+E12-500 -> 9275 | AP12: 9500 | AQ12: =AP12+C12-500 -> 9725 | AR12: =AP12+D12-500 -> 9950 | AS12: =AP12+E12-500 -> 10175 | AT12: 10400 | AU12: =AT12+C12-500 -> 10625 | AV12: =AT12+D12-500 -> 10850 | AW12: =AT12+E12-500 -> 11075 | AX12: 11300
A13: HU | B13: 400 | C13: 600 | D13: 700 | E13: 800 | F13: 900 | G13: =F13+C13-500 -> 1000 | H13: =F13+D13-500 -> 1100 | I13: =F13+E13-500 -> 1200 | J13: 1300 | K13: =J13+C13-500 -> 1400 | L13: =J13+D13-500 -> 1500 | M13: =J13+E13-500 -> 1600 | N13: 1700 | O13: =N13+C13-500 -> 1800 | P13: =N13+D13-500 -> 1900 | Q13: =N13+E13-500 -> 2000 | R13: 2100 | S13: =R13+C13-500 -> 2200 | T13: =R13+D13-500 -> 2300 | U13: =R13+E13-500 -> 2400 | V13: 2500 | W13: =V13+C13-500 -> 2600 | X13: =V13+D13-500 -> 2700 | Y13: =V13+E13-500 -> 2800 | Z13: 2900 | AA13: =Z13+C13-500 -> 3000 | AB13: =Z13+D13-500 -> 3100 | AC13: =Z13+E13-500 -> 3200 | AD13: 3300 | AE13: =AD13+C13-500 -> 3400 | AF13: =AD13+D13-500 -> 3500 | AG13: =AD13+E13-500 -> 3600 | AH13: 3700 | AI13: =AH13+C13-500 -> 3800 | AJ13: =AH13+D13-500 -> 3900 | AK13: =AH13+E13-500 -> 4000 | AL13: 4100 | AM13: =AL13+C13-500 -> 4200 | AN13: =AL13+D13-500 -> 4300 | AO13: =AL13+E13-500 -> 4400 | AP13: 4500 | AQ13: =AP13+C13-500 -> 4600 | AR13: =AP13+D13-500 -> 4700 | AS13: =AP13+E13-500 -> 4800 | AT13: 4900 | AU13: =AT13+C13-500 -> 5000 | AV13: =AT13+D13-500 -> 5100 | AW13: =AT13+E13-500 -> 5200 | AX13: 5300

Sheet Erasmus_kodok
A1: EUC Reference | B1: Organisation | C1: ID CODE | D1: PIC | E1: Country | F1: CITY CON | G1: ID CODE-orig
A2: 29904-EPP-1-2014-1-IS-EPPKA3-ECHE | B2: HASKOLINN A AKUREYRI | C2: IS AKUREYR01 | D2: 998776409 | E2: IS | F2: AKUREYRI | G2: IS AKUREYR01
A3: 28340-EPP-1-2014-1-IS-EPPKA3-ECHE | B3: HASKOLINN A BIFROST | C3: IS BORGARN01 | D3: 949615451 | E3: IS | F3: BORGARNES | G3: IS BORGARN01
A4: 219520-EPP-1-2014-1-IS-EPPKA3-ECHE | B4: LANDBUNADARHASKOLI ISLANDS | C4: IS BORGARN02 | D4: 988542036 | E4: IS | F4: BORGARNES | G4: IS BORGARN02
A5: 28332-EPP-1-2014-1-IS-EPPKA3-ECHE | B5: HASKOLI ISLANDS | C5: IS REYKJAV01 | D5: 999884246 | E5: IS | F5: REYKJAVIK | G5: IS REYKJAV01
A6: 210431-EPP-1-2014-1-IS-EPPKA3-ECHE | B6: HASKOLINN I REYKJAVIK EHF | C6: IS REYKJAV05 | D6: 966834406 | E6: IS | F6: REYKJAVIK | G6: IS REYKJAV05
A7: 28354-EPP-1-2014-1-IS-EPPKA3-ECHE | B7: LISTAHASKOLI ISLANDS | C7: IS REYKJAV06 | D7: 950429378 | E7: IS | F7: REYKJAVIK | G7: IS REYKJAV06
A8: 239835-EPP-1-2014-1-IS-EPPKA3-ECHE | B8: HOLAR UNIVERSITY COLLEGE | C8: IS SAUDARK01 | D8: 969226426 | E8: IS | F8: SAUDARKORKUR | G8: IS SAUDARK01
A9: 28700-EPP-1-2014-1-LI-EPPKA3-ECHE | B9: UNIVERSITAT LIECHTENSTEIN | C9: LI VADUZ01 | D9: 974688496 | E9: LI | F9: Liechtenstein | G9: LI VADUZ01
A10: 269986-EPP-1-2015-1-NO-EPPKA3-ECHE | B10: Norwegian University of Life sciences | C10: N AS03 | D10: 944678345 | E10: NO | F10: Aas | G10: N AS03
A11: 29643-EPP-1-2014-1-NO-EPPKA3-ECHE | B11: UNIVERSITETET I BERGEN | C11: N BERGEN01 | D11: 999974456 | E11: NO | F11: BERGEN | G11: N BERGEN01
A12: 29636-EPP-1-2014-1-NO-EPPKA3-ECHE | B12: NORGES HANDELSHØYSKOLE | C12: N BERGEN02 | D12: 949667443 | E12: NO | F12: BERGEN | G12: N BERGEN02
A13: 29669-EPP-1-2014-1-NO-EPPKA3-ECHE | B13: KUNST- OG DESIGNHOEGSKOLEN I BERGEN | C13: N BERGEN04 | D13: 949639216 | E13: NO | F13: BERGEN | G13: N BERGEN04
A14: 29630-EPP-1-2014-1-NO-EPPKA3-ECHE | B14: HOGSKOLEN I BERGEN | C14: N BERGEN05 | D14: 996081555 | E14: NO | F14: BERGEN | G14: N BERGEN05
A15: 46918-EPP-1-2014-1-NO-EPPKA3-ECHE | B15: NLA HØGSKOLEN | C15: N BERGEN12 | D15: 949671614 | E15: NO | F15: BERGEN | G15: N BERGEN12
A16: 210351-EPP-1-2014-1-NO-EPPKA3-ECHE | B16: BERGEN ARKITEKTHØGSKOLE | C16: N BERGEN13 | D16: 949634075 | E16: NO | F16: BERGEN | G16: N BERGEN13
A17: 29625-EPP-1-2014-1-NO-EPPKA3-ECHE | B17: NORD UNIVERSITET | C17: N BODO04 | D17: 998222927 | E17: NO | F17: BODO | G17: N BODO04
A18: 29682-EPP-1-2014-1-NO-EPPKA3-ECHE | B18: HOGSKOLEN I HEDMARK (HIHM) | C18: N ELVERUM01 | D18: 998027860 | E18: NO | F18: ELVERUM | G18: N ELVERUM01
A19: 29655-EPP-1-2014-1-NO-EPPKA3-ECHE | B19: HOGSKOLEN I OSTFOLD | C19: N HALDEN02 | D19: 975398439 | E19: NO | F19: HALDEN | G19: N HALDEN02
A20: 269728-EPP-1-2015-1-NO-EPPKA3-ECHE | B20: HOGSKOLEN I SOROST NORGE | C20: N KONGSBE02 | D20: 921767430 | E20: NO | F20: PORSGRUNN | G20: N KONGSBE02
A21: 29646-EPP-1-2014-1-NO-EPPKA3-ECHE | B21: UNIVERSITETET I AGDER | C21: N KRISTIA01 | D21: 949671711 | E21: NO | F21: KRISTIANSAND | G21: N KRISTIA01
A22: 228041-EPP-1-2014-1-NO-EPPKA3-ECHE | B22: ANSGAR TEOLOGISKE HØGSKOLE | C22: N KRISTIA04 | D22: 944123505 | E22: NO | F22: KRISTIANSAND | G22: N KRISTIA04
A23: 29627-EPP-1-2014-1-NO-EPPKA3-ECHE | B23: HOGSKOLEN I LILLEHAMMER | C23: N LILLEHA01 | D23: 997519386 | E23: NO | F23: LILLEHAMMER | G23: N LILLEHA01
A24: 29726-EPP-1-2014-1-NO-EPPKA3-ECHE | B24: HØGSKOLEN I MOLDE - VITENSKAPELIG HØGSKOLE I LOGISTIKK | C24: N MOLDE01 | D24: 949671420 | E24: NO | F24: MOLDE | G24: N MOLDE01
A25: 29714-EPP-1-2014-1-NO-EPPKA3-ECHE | B25: UNIVERSITETET I OSLO | C25: N OSLO01 | D25: 999975814 | E25: NO | F25: OSLO | G25: N OSLO01
A26: 29708-EPP-1-2014-1-NO-EPPKA3-ECHE | B26: ARKITEKTUR- OG DESIGNHØGSKOLEN I OSLO | C26: N OSLO02 | D26: 968780226 | E26: NO | F26: OSLO | G26: N OSLO02
A27: 29670-EPP-1-2014-1-NO-EPPKA3-ECHE | B27: NORGES MUSIKKHØGSKOLE | C27: N OSLO03 | D27: 949344336 | E27: NO | F27: OSLO | G27: N OSLO03
A28: 29663-EPP-1-2014-1-NO-EPPKA3-ECHE | B28: NORGES IDRETTSHOGSKOLE | C28: N OSLO04 | D28: 998301303 | E28: NO | F28: OSLO | G28: N OSLO04
A29: 29659-EPP-1-2014-1-NO-EPPKA3-ECHE | B29: KUNSTHØGSKOLEN I OSLO (KHIO) | C29: N OSLO07 | D29: 949598961 | E29: NO | F29: OSLO | G29: N OSLO07
A30: 29689-EPP-1-2014-1-NO-EPPKA3-ECHE | B30: DET TEOLOGISKE MENIGHETSFAKULTET | C30: N OSLO40 | D30: 960072245 | E30: NO | F30: OSLO | G30: N OSLO40
A31: 252954-EPP-1-2014-1-NO-EPPKA3-ECHE | B31: NORGES DANSEHØYSKOLE | C31: N OSLO42 | D31: 949089808 | E31: NO | F31: OSLO | G31: N OSLO42
A32: 252079-EPP-1-2014-1-NO-EPPKA3-ECHE | B32: LOVISENBERG DEACONAL UNIVERSITY COLLEGE | C32: N OSLO53 | D32: 949293314 | E32: NO | F32: OSLO | G32: N OSLO53
A33: 222731-EPP-1-2014-1-NO-EPPKA3-ECHE | B33: WESTERDALS HØYSKOLE - OSLO SCHOOL OF ARTS, COMMUNICATION AND TECHNOLOGY AS | C33: N OSLO56 | D33: 949450163 | E33: NO | F33: OSLO | G33: N OSLO56
A34: 253194-EPP-1-2014-1-NO-EPPKA3-ECHE | B34: DIAKONOVA UNIVERSITY COLLEGE | C34: N OSLO57 | D34: 946106767 | E34: NO | F34: OSLO | G34: N OSLO57
A35: 257489-EPP-1-2014-1-NO-EPPKA3-ECHE | B35: HØYSKOLEN KRISTIANIA | C35: N OSLO58 | D35: 949422324 | E35: NO | F35: OSLO | G35: N OSLO58
A36: 262768-EPP-1-2014-1-NO-EPPKA3-ECHE | B36: HOGSKOLEN I OSLO OG AKERSHUS | C36: N OSLO60 | D36: 954982461 | E36: NO | F36: OSLO | G36: N OSLO60
A37: 267345-EPP-1-2014-1-NO-EPPKA3-ECHE | B37: HOYSKOLEN FOR LEDELSE OG TEOLOGI | C37: N OSLO61 | D37: 949546775 | E37: NO | F37: STABEKK | G37: N OSLO61
A38: 269997-EPP-1-2015-1-NO-EPPKA3-ECHE | B38: MUSIKKTEATERHØYSKOLEN | C38: N OSLO63 | D38: 938958643 | E38: NO | F38: Oslo | G38: N OSLO63
A39: 270282-EPP-1-2015-1-NO-EPPKA3-ECHE | B39: POLITIHØGSKOLEN (NORWEGIAN POLICE UNIVERSITY COLLEGE) | C39: N OSLO64 | D39: 940703673 | E39: NO | F39: OSLO | G39: N OSLO64
A40: 270986-EPP-1-2016-1-NO-EPPKA3-ECHE | B40: FJELLHAUG INTERNASJONALE HØGSKOLE AS | C40: N OSLO65 | D40: 929121582 | E40: NO | F40: OSLO | G40: N OSLO65
A41: 271303-EPP-1-2016-1-NO-EPPKA3-ECHE | B41: Barratt Due musikkinstitutt | C41: N OSLO66 | D41: 929407829 | E41: NO | F41: OSLO | G41: N OSLO66
A42: 399317-EPP-1-2016-1-NO-EPPKA3-ECHE | B42: VID vitenskapelige høgskole | C42: N OSLO67 | D42: 923477928 | E42: NO | F42: OSLO | G42: N OSLO67
A43: 29667-EPP-1-2014-1-NO-EPPKA3-ECHE | B43: HØGSKOLEN STORD/HAUGESUND | C43: N ROMMETV01 | D43: 997757036 | E43: NO | F43: STORD | G43: N ROMMETV01
A44: 29717-EPP-1-2014-1-NO-EPPKA3-ECHE | B44: STIFTELSEN HANDELSHOYSKOLEN BI | C44: N SANDVIK02 | D44: 986269617 | E44: NO | F44: OSLO | G44: N SANDVIK02
A45: 29626-EPP-1-2014-1-NO-EPPKA3-ECHE | B45: HOGSKULEN I SOGN OG FJORDANE | C45: N SOGNDAL01 | D45: 950046325 | E45: NO | F45: SOGNDAL | G45: N SOGNDAL01
A46: 29666-EPP-1-2014-1-NO-EPPKA3-ECHE | B46: UNIVERSITETET I STAVANGER | C46: N STAVANG01 | D46: 998023689 | E46: NO | F46: STAVANGER | G46: N STAVANG01
A47: 270165-EPP-1-2015-1-NO-EPPKA3-ECHE | B47: HOGSKULEN FOR LANDBRUK OG BYGDENAERINGAR BA SELSKAP MED BEGRENSET ANSVAR | C47: N STAVANG09 | D47: 968668288 | E47: NO | F47: Klepp Stasjon | G47: N STAVANG09
A48: 29652-EPP-1-2014-1-NO-EPPKA3-ECHE | B48: HOGSKOLEN I NORD TRONDELAG | C48: N STEINKJ01 | D48: 997461283 | E48: NO | F48: STEINKJER | G48: N STEINKJ01
A49: 29724-EPP-1-2014-1-NO-EPPKA3-ECHE | B49: UNIVERSITETET I TROMSOE | C49: N TROMSO01 | D49: 999874643 | E49: NO | F49: TROMSO | G49: N TROMSO01
A50: 29704-EPP-1-2014-1-NO-EPPKA3-ECHE | B50: NORGES TEKNISK-NATURVITENSKAPELIGE UNIVERSITET NTNU | C50: N TRONDHE01 | D50: 999977851 | E50: NO | F50: TRONDHEIM | G50: N TRONDHE01
A51: 29676-EPP-1-2014-1-NO-EPPKA3-ECHE | B51: DRONNING MAUDS MINNE HØGSKOLE FOR BARNEHAGELÆRERUTDANNING | C51: N TRONDHE06 | D51: 952744380 | E51: NO | F51: TRONDHEIM | G51: N TRONDHE06
A52: 66311-EPP-1-2014-1-NO-EPPKA3-ECHE | B52: HØGSKULEN I VOLDA | C52: N VOLDA01 | D52: 949661235 | E52: NO | F52: VOLDA | G52: N VOLDA01

Sheet NORA (hidden)
A1: Nap | B1: Kiutazó/beutazó | C1: NORA1 | D1: Felhívás1 | E1: Felhívás kerekített1 | F1: Eltérés1 | G1: NORA2 | H1: Eltérés2 | J1: Nap | K1: Kiutazó/beutazó | L1: NORA | M1: Felhívás | N1: Felhívás kerekített | O1: Eltérés | P1: NORA2
A2: 1 | B2: ki | C2: 114 | D2: 114 | E2: =EVEN(D2) -> 114 | F2: =C2-E2 -> 0 | G2: 114 | H2: =G2-E2 -> 0 | J2: 1 | K2: be | L2: 57 | M2: 57 | N2: =ROUND(M2,0) -> 57 | O2: =L2-N2 -> 0 | P2: 57 | Q2: =P2-N2 -> 0
A3: 2 | B3: ki | C3: 229 | D3: 229 | E3: =ROUND(D3,0) -> 229 | F3: 0 | G3: 229 | H3: =G3-E3 -> 0 | J3: 2 | K3: be | L3: 114 | M3: 114 | N3: =ROUND(M3,0) -> 114 | O3: =L3-N3 -> 0 | P3: 114 | Q3: =P3-N3 -> 0
A4: 3 | B4: ki | C4: 343 | D4: 343 | E4: 343 | F4: 0 | G4: 343 | H4: 0 | J4: 3 | K4: be | L4: 171 | M4: 171 | N4: 171 | O4: 0 | P4: 171 | Q4: 0
A5: 4 | B5: ki | C5: 457 | D5: 457 | E5: 457 | F5: 0 | G5: 457 | H5: 0 | J5: 4 | K5: be | L5: 229 | M5: 229 | N5: 229 | O5: 0 | P5: 229 | Q5: 0
A6: 5 | B6: ki | C6: 571 | D6: 571 | E6: 571 | F6: 0 | G6: 571 | H6: 0 | J6: 5 | K6: be | L6: 286 | M6: 286 | N6: 286 | O6: 0 | P6: 286 | Q6: 0
A7: 6 | B7: ki | C7: 686 | D7: 686 | E7: =EVEN(D7) -> 686 | F7: 0 | G7: 686 | H7: 0 | J7: 6 | K7: be | L7: 343 | M7: 343 | N7: 343 | O7: 0 | P7: 343 | Q7: 0
A8: 7 | B8: ki | C8: 800 | D8: 800 | E8: 800 | F8: 0 | G8: 800 | H8: 0 | J8: 7 | K8: be | L8: 400 | M8: 400 | N8: 400 | O8: 0 | P8: 400 | Q8: 0
A9: 8 | B9: ki | C9: 916 | D9: =800+800/7 -> 914.2857143 | E9: =EVEN(D9) -> 916 | F9: 0 | G9: 914 | H9: -2 | J9: 8 | K9: be | L9: 457 | M9: =400+400/7 -> 457.1428571 | N9: 457 | O9: 0 | P9: 457 | Q9: 0
A10: 9 | B10: ki | C10: 1030 | D10: =800+800/7*2 -> 1028.571429 | E10: =EVEN(D10) -> 1030 | F10: 0 | G10: 1029 | H10: -1 | J10: 9 | K10: be | L10: 514 | M10: =400+400/7*2 -> 514.2857143 | N10: 514 | O10: 0 | P10: 514 | Q10: 0
A11: 10 | B11: ki | C11: 1144 | D11: =800+800/7*3 -> 1142.857143 | E11: 1144 | F11: 0 | G11: 1143 | H11: -1 | J11: 10 | K11: be | L11: 571 | M11: =400+400/7*3 -> 571.4285714 | N11: 571 | O11: 0 | P11: 571 | Q11: 0
A12: 11 | B12: ki | C12: 1258 | D12: =800+800/7*4 -> 1257.142857 | E12: 1258 | F12: 0 | G12: 1257 | H12: -1 | J12: 11 | K12: be | L12: 628 | M12: =400+400/7*4 -> 628.5714286 | N12: =ROUNDDOWN(M12,0) -> 628 | O12: 0 | P12: 629 | Q12: 1
A13: 12 | B13: ki | C13: 1372 | D13: =800+800/7*5 -> 1371.428571 | E13: 1372 | F13: 0 | G13: 1371 | H13: -1 | J13: 12 | K13: be | L13: 685 | M13: =400+400/7*5 -> 685.7142857 | N13: =ROUNDDOWN(M13,0) -> 685 | O13: 0 | P13: 686 | Q13: 1
A14: 13 | B14: ki | C14: 1486 | D14: =800+800/7*6 -> 1485.714286 | E14: 1486 | F14: 0 | G14: 1486 | H14: 0 | J14: 13 | K14: be | L14: 742 | M14: =400+400/7*6 -> 742.8571429 | N14: 742 | O14: 0 | P14: 743 | Q14: 1
A15: 14 | B15: ki | C15: =800+800 -> 1600 | D15: =800+800 -> 1600 | E15: 1600 | F15: 0 | G15: 1600 | H15: 0 | J15: 14 | K15: be | L15: 800 | M15: =400*2 -> 800 | N15: 800 | O15: 0 | P15: 800 | Q15: 0
A16: 15 | B16: ki | C16: 1716 | D16: =800*2+800/7 -> 1714.285714 | E16: 1716 | F16: 0 | G16: 1714 | H16: -2 | J16: 15 | K16: be | L16: 857 | M16: =400*2+400/7 -> 857.1428571 | N16: 857 | O16: 0 | P16: 857 | Q16: 0
A17: 16 | B17: ki | C17: 1830 | D17: =800*2+800/7*2 -> 1828.571429 | E17: 1830 | F17: 0 | G17: 1829 | H17: -1 | J17: 16 | K17: be | L17: 914 | M17: =400*2+400/7*2 -> 914.2857143 | N17: 914 | O17: 0 | P17: 914 | Q17: 0
A18: 17 | B18: ki | C18: 1944 | D18: =800*2+800/7*3 -> 1942.857143 | E18: 1944 | F18: 0 | G18: 1943 | H18: -1 | J18: 17 | K18: be | L18: 971 | M18: =400*2+400/7*3 -> 971.4285714 | N18: 971 | O18: 0 | P18: 971 | Q18: 0
A19: 18 | B19: ki | C19: 2058 | D19: =800*2+800/7*4 -> 2057.142857 | E19: 2058 | F19: 0 | G19: 2057 | H19: -1 | J19: 18 | K19: be | L19: 1028 | M19: =400*2+400/7*4 -> 1028.571429 | N19: 1028 | O19: 0 | P19: 1029 | Q19: 1
A20: 19 | B20: ki | C20: 2172 | D20: =800*2+800/7*5 -> 2171.428571 | E20: 2172 | F20: 0 | G20: 2171 | H20: -1 | J20: 19 | K20: be | L20: 1085 | M20: =400*2+400/7*5 -> 1085.714286 | N20: 1085 | O20: 0 | P20: 1086 | Q20: 1
A21: 20 | B21: ki | C21: 2286 | D21: =800*2+800/7*6 -> 2285.714286 | E21: 2286 | F21: 0 | G21: 2286 | H21: 0 | J21: 20 | K21: be | L21: 1142 | M21: =400*2+400/7*6 -> 1142.857143 | N21: 1142 | O21: 0 | P21: 1143 | Q21: 1
A22: 21 | B22: ki | C22: 2400 | D22: =800*3 -> 2400 | E22: 2400 | F22: 0 | G22: 2400 | H22: 0 | J22: 21 | K22: be | L22: 1200 | M22: =400*3 -> 1200 | N22: 1200 | O22: 0 | P22: 1200 | Q22: 0
A23: 22 | B23: ki | C23: 2516 | D23: =800*3+800/7 -> 2514.285714 | E23: 2516 | F23: 0 | G23: 2514 | H23: -2 | J23: 22 | K23: be | L23: 1257 | M23: =400*3+400/7 -> 1257.142857 | N23: 1257 | O23: 0 | P23: 1257 | Q23: 0
A24: 23 | B24: ki | C24: 2630 | D24: =800*3+800/7*2 -> 2628.571429 | E24: 2630 | F24: 0 | G24: 2629 | H24: -1 | J24: 23 | K24: be | L24: 1314 | M24: =400*3+400/7*2 -> 1314.285714 | N24: 1314 | O24: 0 | P24: 1314 | Q24: 0
A25: 24 | B25: ki | C25: 2744 | D25: =800*3+800/7*3 -> 2742.857143 | E25: 2744 | F25: 0 | G25: 2743 | H25: -1 | J25: 24 | K25: be | L25: 1371 | M25: =400*3+400/7*3 -> 1371.428571 | N25: 1371 | O25: 0 | P25: 1371 | Q25: 0
A26: 25 | B26: ki | C26: 2858 | D26: =800*3+800/7*4 -> 2857.142857 | E26: 2858 | F26: 0 | G26: 2857 | H26: -1 | J26: 25 | K26: be | L26: 1428 | M26: =400*3+400/7*4 -> 1428.571429 | N26: 1428 | O26: 0 | P26: 1429 | Q26: 1
A27: 26 | B27: ki | C27: 2972 | D27: =800*3+800/7*5 -> 2971.428571 | E27: 2972 | F27: 0 | G27: 2971 | H27: -1 | J27: 26 | K27: be | L27: 1485 | M27: =400*3+400/7*5 -> 1485.714286 | N27: 1485 | O27: 0 | P27: 1486 | Q27: 1
A28: 27 | B28: ki | C28: 3086 | D28: =800*3+800/7*6 -> 3085.714286 | E28: 3086 | F28: 0 | G28: 3086 | H28: 0 | J28: 27 | K28: be | L28: 1542 | M28: =400*3+400/7*6 -> 1542.857143 | N28: 1542 | O28: 0 | P28: 1543 | Q28: 1
A29: 28 | B29: ki | C29: 3200 | D29: =800*4 -> 3200 | E29: 3200 | F29: 0 | G29: 3200 | H29: 0 | J29: 28 | K29: be | L29: 1600 | M29: =400*4 -> 1600 | N29: 1600 | O29: 0 | P29: 1600 | Q29: 0
A30: 29 | B30: ki | C30: 3316 | D30: =800*4+800/7 -> 3314.285714 | E30: 3316 | F30: 0 | G30: 3314 | H30: -2 | J30: 29 | K30: be | L30: 1657 | M30: =400*4+400/7 -> 1657.142857 | N30: 1657 | O30: 0 | P30: 1657 | Q30: 0
A31: 30 | B31: ki | C31: 3430 | D31: =800*4+800/7*2 -> 3428.571429 | E31: 3430 | F31: 0 | G31: 3429 | H31: -1 | J31: 30 | K31: be | L31: 1714 | M31: =400*4+400/7*2 -> 1714.285714 | N31: 1714 | O31: 0 | P31: 1714 | Q31: 0
A32: 31 | B32: ki | C32: 3544 | D32: =800*4+800/7*3 -> 3542.857143 | E32: 3544 | F32: 0 | G32: 3543 | H32: -1 | J32: 31 | K32: be | L32: 1771 | M32: =400*4+400/7*3 -> 1771.428571 | N32: 1771 | O32: 0 | P32: 1771 | Q32: 0
A33: 32 | B33: ki | C33: 3658 | D33: =800*4+800/7*4 -> 3657.142857 | E33: 3658 | F33: 0 | G33: 3657 | H33: -1 | J33: 32 | K33: be | L33: 1828 | M33: =400*4+400/7*4 -> 1828.571429 | N33: 1828 | O33: 0 | P33: 1829 | Q33: 1
A34: 33 | B34: ki | C34: 3772 | D34: =800*4+800/7*5 -> 3771.428571 | E34: 3772 | F34: 0 | G34: 3771 | H34: -1 | J34: 33 | K34: be | L34: 1885 | M34: =400*4+400/7*5 -> 1885.714286 | N34: 1885 | O34: 0 | P34: 1886 | Q34: 1
A35: 34 | B35: ki | C35: 3886 | D35: =800*4+800/7*6 -> 3885.714286 | E35: 3886 | F35: 0 | G35: 3886 | H35: 0 | J35: 34 | K35: be | L35: 1942 | M35: =400*4+400/7*6 -> 1942.857143 | N35: 1942 | O35: 0 | P35: 1943 | Q35: 1
A36: 35 | B36: ki | C36: 4000 | D36: =800*5 -> 4000 | E36: 4000 | F36: 0 | G36: 4000 | H36: 0 | J36: 35 | K36: be | L36: 2000 | M36: =400*5 -> 2000 | N36: 2000 | O36: 0 | P36: 2000 | Q36: 0
A37: 36 | B37: ki | C37: 4116 | D37: =800*5+800/7 -> 4114.285714 | E37: 4116 | F37: 0 | G37: 4114 | H37: -2 | J37: 36 | K37: be | L37: 2057 | M37: =400*5+400/7 -> 2057.142857 | N37: 2057 | O37: 0 | P37: 2057 | Q37: 0
A38: 37 | B38: ki | C38: 4230 | D38: =800*5+800/7*2 -> 4228.571429 | E38: 4230 | F38: 0 | G38: 4229 | H38: -1 | J38: 37 | K38: be | L38: 2114 | M38: =400*5+400/7*2 -> 2114.285714 | N38: 2114 | O38: 0 | P38: 2114 | Q38: 0
A39: 38 | B39: ki | C39: 4344 | D39: =800*5+800/7*3 -> 4342.857143 | E39: 4344 | F39: 0 | G39: 4343 | H39: -1 | J39: 38 | K39: be | L39: 2171 | M39: =400*5+400/7*3 -> 2171.428571 | N39: 2171 | O39: 0 | P39: 2171 | Q39: 0
A40: 39 | B40: ki | C40: 4458 | D40: =800*5+800/7*4 -> 4457.142857 | E40: 4458 | F40: 0 | G40: 4457 | H40: -1 | J40: 39 | K40: be | L40: 2228 | M40: =400*5+400/7*4 -> 2228.571429 | N40: 2228 | O40: 0 | P40: 2229 | Q40: 1
A41: 40 | B41: ki | C41: 4572 | D41: =800*5+800/7*5 -> 4571.428571 | E41: 4572 | F41: 0 | G41: 4571 | H41: -1 | J41: 40 | K41: be | L41: 2285 | M41: =400*5+400/7*5 -> 2285.714286 | N41: 2285 | O41: 0 | P41: 2286 | Q41: 1
A42: 41 | B42: ki | C42: 4686 | D42: =800*5+800/7*6 -> 4685.714286 | E42: 4686 | F42: 0 | G42: 4686 | H42: 0 | J42: 41 | K42: be | L42: 2342 | M42: =400*5+400/7*6 -> 2342.857143 | N42: 2342 | O42: 0 | P42: 2343 | Q42: 1
A43: 42 | B43: ki | C43: 4800 | D43: =800*6 -> 4800 | E43: 4800 | F43: 0 | G43: 4800 | H43: 0 | J43: 42 | K43: be | L43: 2400 | M43: =400*6 -> 2400 | N43: 2400 | O43: 0 | P43: 2400 | Q43: 0
A44: =A43+1 -> 43 | C44: 4916 | D44: =EVEN((800*ROUNDDOWN(A44/7,0))+(A44-ROUNDDOWN(A44/7,0)*7)*800/7) -> 4916 | L44: 2458 | M44: =EVEN((400*ROUNDDOWN(A44/7,0))+(A44-ROUNDDOWN(A44/7,0)*7)*400/7) -> 2458
A45: =A44+1 -> 44 | C45: 5030 | D45: =EVEN((800*ROUNDDOWN(A45/7,0))+(A45-ROUNDDOWN(A45/7,0)*7)*800/7) -> 5030 | E45: =A45-ROUNDDOWN(A45/7,0)*7 -> 2 | L45: 2516 | M45: =EVEN((400*ROUNDDOWN(A45/7,0))+(A45-ROUNDDOWN(A45/7,0)*7)*400/7) -> 2516
A46: 45 | C46: 5144 | D46: 5144 | E46: =A46-ROUNDDOWN(A46/7,0)*7 -> 3 | L46: 2572 | M46: 2572
A47: 46 | C47: 5258 | D47: 5258 | E47: =A47-ROUNDDOWN(A47/7,0)*7 -> 4 | L47: 2630 | M47: 2630
A48: 47 | C48: 5372 | D48: 5372 | L48: 2686 | M48: 2686
A49: 48 | C49: 5486 | D49: 5486 | L49: 2744 | M49: 2744
A50: 49 | C50: 5600 | D50: 5600 | L50: 2800 | M50: 2800
A51: 50 | C51: 5716 | D51: 5716 | L51: 2858 | M51: 2858
A52: 51 | C52: 5830 | D52: 5830 | L52: 2916 | M52: 2916
A53: 52 | C53: 5944 | D53: 5944 | L53: 2972 | M53: 2972
A54: 53 | C54: 6058 | D54: 6058 | L54: 3030 | M54: 3030
A55: 54 | C55: 6172 | D55: 6172 | L55: 3086 | M55: 3086
A56: 55 | C56: 6286 | D56: 6286 | L56: 3144 | M56: 3144
A57: 56 | C57: 6400 | D57: 6400 | L57: 3200 | M57: 3200
A58: 57 | C58: 6516 | D58: 6516 | L58: 3258 | M58: 3258
A59: 58 | C59: 6630 | D59: 6630 | L59: 3316 | M59: 3316
A60: 59 | C60: 6744 | D60: 6744 | L60: 3372 | M60: 3372
A61: 60 | C61: 6858 | D61: 6858 | L61: 3430 | M61: 3430
A62: 61 | C62: 6972 | D62: 6972 | L62: 3486 | M62: 3486
A63: 62 | C63: 7086 | D63: 7086 | L63: 3544 | M63: 3544
A64: 63 | C64: 7200 | D64: 7200 | L64: 3600 | M64: 3600
A65: 64 | C65: 7316 | D65: 7316 | L65: 3658 | M65: 3658
A66: 65 | C66: 7430 | D66: 7430 | L66: 3716 | M66: 3716
A67: 66 | C67: 7544 | D67: 7544 | L67: 3772 | M67: 3772
A68: =A67+1 -> 67 | C68: 7658 | D68: 7658 | L68: 3830 | M68: 3830
A69: 68 | C69: 7772 | D69: 7772 | L69: 3886 | M69: 3886
A70: 69 | C70: 7886 | D70: 7886 | L70: 3944 | M70: 3944
A71: 70 | C71: 8000 | D71: 8000 | L71: 4000 | M71: 4000
A72: 71 | C72: 8116 | D72: 8116 | L72: 4058 | M72: 4058
A73: 72 | C73: 8230 | D73: 8230 | L73: 4116 | M73: 4116
A74: 73 | C74: 8344 | D74: 8344 | L74: 4172 | M74: 4172
A75: 74 | C75: 8458 | D75: 8458 | L75: 4230 | M75: 4230
A76: 75 | C76: 8572 | D76: 8572 | L76: 4286 | M76: 4286
A77: 76 | C77: 8686 | D77: 8686 | L77: 4344 | M77: 4344
A78: 77 | C78: 8800 | D78: 8800 | L78: 4400 | M78: 4400
A79: 78 | C79: 8916 | D79: 8916 | L79: 4458 | M79: 4458
A80: 79 | C80: 9030 | D80: 9030 | L80: 4516 | M80: 4516
A81: 80 | C81: 9144 | D81: 9144 | L81: 4572 | M81: 4572
A82: 81 | C82: 9258 | D82: 9258 | L82: 4630 | M82: 4630
A83: 82 | C83: 9372 | D83: 9372 | L83: 4686 | M83: 4686
A84: 83 | C84: 9486 | D84: 9486 | L84: 4744 | M84: 4744
A85: 84 | C85: 9600 | D85: 9600 | L85: 4800 | M85: 4800
A86: 85 | C86: 9716 | D86: 9716 | L86: 4858 | M86: 4858
A87: 86 | C87: 9830 | D87: 9830 | L87: 4916 | M87: 4916
A88: 87 | C88: 9944 | D88: 9944 | L88: 4972 | M88: 4972
A89: 88 | C89: 10058 | D89: 10058 | L89: 5030 | M89: 5030
A90: 89 | C90: 10172 | D90: 10172 | L90: 5086 | M90: 5086
A91: 90 | C91: 10286 | D91: 10286 | L91: 5144 | M91: 5144
